{"text_format":"1","workbook":"xlsx","n_sheets":20,"sheets":["ФОРМА","Памятка","1дм(1,","2)","П","2дм(1,","2) ","П ","пр2дм(1,","2,3)","П  ","2дм-д(1,","2)  ","П   ","4дм(1,","2,3,4)","П    ","5дм(1,","2)   ","П     "],"not_rendered":{"charts":0,"images":13,"macros":1,"external_links":0,"defined_names":20,"comments":1,"pivot_tables":0},"unopened":[],"bounds":{"document_bytes":16777216,"sheet_cells":100000,"rows_first":2000,"rows_last":500,"rows_between":2000,"halvings":0,"cell_chars":16384,"cell_head_chars":4096},"cells_cut":0,"cells_raw":0,"read":"whole","date_system":"1900"}

{"sheet":"ФОРМА","index":0,"n_rows":37,"n_cols":18,"rows_kept":37,"cut":false,"hidden":false,"merged":[[0,1,0,10],[28,4,28,5],[29,4,29,5],[11,5,11,10],[12,5,12,10],[13,5,13,10],[14,5,14,10],[15,5,15,10],[27,4,27,5],[26,4,26,10],[24,4,24,10],[25,4,25,10],[1,1,1,10],[10,2,15,2],[10,1,15,1],[3,4,3,10],[4,4,4,10],[6,4,6,10],[9,5,10,10],[7,4,7,10],[8,4,8,10],[5,4,5,10],[22,4,22,10],[17,4,17,10],[18,4,18,10],[19,4,19,10],[20,4,20,10],[21,4,21,10],[16,4,16,10],[31,1,32,10],[35,1,35,10],[34,1,34,10],[36,1,36,10]]}
[null,"ВНИМАНИЕ! Для обеспечения полной функциональности файла необходимо включить макросы (кнопка «Включить содержимое» на желтой панели сообщений ⤣  )"]
[null,"Первичные сведения об отчитывающейся организации (индивидуальном предпринимателе),\nкоторые будут занесены в соответствующую форму государственной статистической отчетности"]
[]
[null,"№\nп/п","Показатель",null,"Данные\n(ячейки для заполнения выделены зеленым цветом)"]
[null,1,"Полное наименование организации"]
[null,2,"Сокращенное наименование организации"]
[null,3,"ФИО руководителя организации (полностью)"]
[null,4,"ФИО индивидуального предпринимателя (полностью)"]
[null,5,"Почтовый адрес"]
[null,null,null,null,null,"Осуществление операций с драгоценными камнями"]
[null,6,"Специфика деятельности, связанная с заполнением форм государственной статистической отчетности (отметьте один или несколько вариантов; для получения дополнительной информации наведите курсор на интересующее поле)",{"$f":"IF(E11,ROW(),\"\")","v":""},false,null,null,null,null,null,null,"1-ДМ","1дм",{"$f":"IFERROR(SMALL($D$11:$D$16,ROW()-10),\"\")","v":""},{"$f":"IF(N11=\"\",\"\",VLOOKUP(N11,$D$11:$L$16,9,0))","v":""},{"$f":"IF(N11=\"\",\"\",VLOOKUP(N11,$D$11:$M$16,10,0))","v":""}]
[null,null,null,"",false,"Осуществление операций с драгоценными металлами",null,null,null,null,null,"2-ДМ","2дм","",{"$f":"IF(N12=\"\",\"\",VLOOKUP(N12,$D$11:$L$16,9,0))","v":""},{"$f":"IF(N12=\"\",\"\",VLOOKUP(N12,$D$11:$M$16,10,0))","v":""},{"$f":"IF(AND(E11=FALSE,E12=FALSE,E13=FALSE,E14=FALSE,E15=FALSE,E16=FALSE),\"Выберите специфику деятельности\",IF(E16=TRUE,\"март\",\"\"))","v":"Выберите специфику деятельности"},{"$f":"IF(OR(E11=TRUE,E12=TRUE,E13=TRUE,E14=TRUE,E15=TRUE,E16=TRUE),YEAR(TODAY()),\"Выберите специфику деятельности\")","v":"Выберите специфику деятельности"}]
[null,null,null,"",false,"Осуществление операций с драгоценными металлами и их сдача в виде лома и отходов",null,null,null,null,null,"Приложение к 2-ДМ","пр2дм","","","",{"$f":"IF(AND(E11=FALSE,E12=FALSE,E13=FALSE,E14=FALSE,E15=FALSE,E16=FALSE),\"Выберите специфику деятельности\",IF(OR(E12=TRUE,E13=TRUE,E16=TRUE),\"июнь\",\"\"))","v":"Выберите специфику деятельности"},{"$f":"IF(OR(E11=TRUE,E12=TRUE,E13=TRUE,E14=TRUE,E15=TRUE,E16=TRUE),R12-1,\"Выберите специфику деятельности\")","v":"Выберите специфику деятельности"}]
[null,null,null,"",false,"Изготовление изделий, полуфабрикатов, солей и кислот из давальческих драгоценных металлов",null,null,null,null,null,"2-ДМ (давальческое сырье)","2дм-д","","","",{"$f":"IF(AND(E11=FALSE,E12=FALSE,E13=FALSE,E14=FALSE,E15=FALSE,E16=FALSE),\"Выберите специфику деятельности\",IF(E16=TRUE,\"сентябрь\",\"\"))","v":"Выберите специфику деятельности"},{"$f":"IF(OR(E11=TRUE,E12=TRUE,E13=TRUE,E14=TRUE,E15=TRUE,E16=TRUE),R13-1,\"Выберите специфику деятельности\")","v":"Выберите специфику деятельности"}]
[null,null,null,"",false,"Наличие в собственном распоряжении основных средств, покупных комплектующих изделий, кино-, фото-, рентгеноматериалов, кабельной продукции, серебряно-цинковых элементов питания (аккумуляторов), запасных частей и других материальных ценностей, в составе которых содержатся драгоценные металлы",null,null,null,null,null,"4-ДМ","4дм","","","",{"$f":"IF(OR(E11=TRUE,E12=TRUE,E13=TRUE,E14=TRUE,E15=TRUE,E16=TRUE),\"декабрь\",\"Выберите специфику деятельности\")","v":"Выберите специфику деятельности"},{"$f":"IF(OR(E11=TRUE,E12=TRUE,E13=TRUE,E14=TRUE,E15=TRUE,E16=TRUE),R14-1,\"Выберите специфику деятельности\")","v":"Выберите специфику деятельности"}]
[null,null,null,"",false,"Осуществление аффинажа",null,null,null,null,null,"5-ДМ","5дм","","","",null,{"$f":"IF(OR(E11=TRUE,E12=TRUE,E13=TRUE,E14=TRUE,E15=TRUE,E16=TRUE),R15-1,\"Выберите специфику деятельности\")","v":"Выберите специфику деятельности"}]
[null,7,"ИНН отчитывающейся организации\n(индивидуального предпринимателя)"]
[null,8,"Код отчитывающейся организации\n(индивидуального предпринимателя) по ОКПО",null,null,null,null,null,null,null,null,null,null,null,null,null,null,{"$f":"IF(OR(E11=TRUE,E12=TRUE,E13=TRUE,E14=TRUE,E15=TRUE,E16=TRUE),R16-1,\"Выберите специфику деятельности\")","v":"Выберите специфику деятельности"}]
[null,9,"Код вида деятельности по ОКВЭД",null,null,null,null,null,null,null,null,null,null,null,null,null,null,{"$f":"IF(OR(E11=TRUE,E12=TRUE,E13=TRUE,E14=TRUE,E15=TRUE,E16=TRUE),R18-1,\"Выберите специфику деятельности\")","v":"Выберите специфику деятельности"}]
[null,10,"Код территории по ОКАТО",null,null,null,null,null,null,null,null,null,null,null,null,null,null,{"$f":"IF(OR(E11=TRUE,E12=TRUE,E13=TRUE,E14=TRUE,E15=TRUE,E16=TRUE),R19-1,\"Выберите специфику деятельности\")","v":"Выберите специфику деятельности"}]
[null,11,"Код министерства (ведомства),\nоргана управления по ОКОГУ",null,null,null,null,null,null,null,null,null,null,null,null,null,null,{"$f":"IF(OR(E11=TRUE,E12=TRUE,E13=TRUE,E14=TRUE,E15=TRUE,E16=TRUE),R20-1,\"Выберите специфику деятельности\")","v":"Выберите специфику деятельности"}]
[null,12,"Код организационно-правовой формы по ОКОПФ",null,null,null,null,null,null,null,null,null,null,null,null,null,null,{"$f":"IF(OR(E11=TRUE,E12=TRUE,E13=TRUE,E14=TRUE,E15=TRUE,E16=TRUE),R21-1,\"Выберите специфику деятельности\")","v":"Выберите специфику деятельности"}]
[null,13,"Код формы собственности по ОКФС",null,null,null,null,null,null,null,null,null,null,null,null,null,null,{"$f":"IF(OR(E11=TRUE,E12=TRUE,E13=TRUE,E14=TRUE,E15=TRUE,E16=TRUE),R22-1,\"Выберите специфику деятельности\")","v":"Выберите специфику деятельности"}]
[null,14,"Отчетный период",null,null,null,"Январь -",null,null,"года"]
[null,15,"Должность лица, ответственного за составление формы"]
[null,16,"ФИО лица, ответственного за составление формы (полностью)"]
[null,17,"Номер контактного телефона"]
[null,18,{"$f":"IF(AND(E28=\"-\",G28=\"-\",H28=\"-\",I28=\"-\",J28=\"-\",K28=\"-\"),\"Формы государственной статистической отчетности\nдля заполнения\",IF(SUM(E30:K30)=1,\"Форма государственной статистической отчетности\nдля заполнения (нажмите, чтобы перейти)\",\"Формы государственной статистической отчетности\nдля заполнения (нажмите, чтобы перейти)\"))","v":"Формы государственной статистической отчетности\nдля заполнения"},null,{"$f":"IF(E11=TRUE,L11,\"-\")","v":"-"},null,{"$f":"IF(E12=TRUE,L12,\"-\")","v":"-"},{"$f":"IF(E13=TRUE,LEFT(L13,10)&\"\n\"&RIGHT(L13,6),\"-\")","v":"-"},{"$f":"IF(E14=TRUE,L14,\"-\")","v":"-"},{"$f":"IF(E15=TRUE,L15,\"-\")","v":"-"},{"$f":"IF(E16=TRUE,L16,\"-\")","v":"-"}]
[null,19,"Периодичность и срок сдачи",null,{"$f":"IF(E28=\"-\",\"-\",\"Год\"&IF(AND(H24=\"Декабрь\",NOT(I24=\"\")),\"\n(\"&\"до 01.03.\"&I24+1&\")\",\"\n(выберите\nотчетный период)\"))","v":"-"},null,{"$f":"IF(G28=\"-\",\"-\",\"Полугодие и год\"&IF(AND(H24=\"Июнь\",NOT(I24=\"\")),\"\n(\"&\"до 05.08.\"&I24&\")\",IF(AND(H24=\"Декабрь\",NOT(I24=\"\")),\"\n(\"&\"до 01.03.\"&I24+1&\")\",\"\n(выберите\nотчетный период)\")))","v":"-"},{"$f":"IF(H28=\"-\",\"-\",\"Полугодие и год\"&IF(AND(H24=\"Июнь\",NOT(I24=\"\")),\"\n(\"&\"до 05.08.\"&I24&\")\",IF(AND(H24=\"Декабрь\",NOT(I24=\"\")),\"\n(\"&\"до 01.03.\"&I24+1&\")\",\"\n(выберите\nотчетный период)\")))","v":"-"},{"$f":"IF(I28=\"-\",\"-\",\"Год\"&IF(AND(H24=\"Декабрь\",NOT(I24=\"\")),\"\n(\"&\"до 01.03.\"&I24+1&\")\",\"\n(выберите\nотчетный период)\"))","v":"-"},{"$f":"IF(J28=\"-\",\"-\",\"Год\"&IF(AND(H24=\"Декабрь\",NOT(I24=\"\")),\"\n(\"&\"до 01.03.\"&I24+1&\")\",\"\n(выберите\nотчетный период)\"))","v":"-"},{"$f":"IF(K28=\"-\",\"-\",\"Квартал и год\"&IF(AND(H24=\"Март\",NOT(I24=\"\")),\"\n(\"&\"до \"&TEXT(DATEVALUE(\"01.04.\"&I24)+59,\"ДД.ММ.ГГГГ\")&\")\",IF(AND(H24=\"Июнь\",NOT(I24=\"\")),\"\n(\"&\"до \"&TEXT(DATEVALUE(\"01.07.\"&I24)+59,\"ДД.ММ.ГГГГ\")&\")\",IF(AND(H24=\"Сентябрь\",NOT(I24=\"\")),\"\n(\"&\"до \"&TEXT(DATEVALUE(\"01.10.\"&I24)+59,\"ДД.ММ.ГГГГ\")&\")\",IF(AND(H24=\"Декабрь\",NOT(I24=\"\")),\"\n(\"&\"до \"&TEXT(DATEVALUE(\"01.01.\"&I24+1)+59,\"ДД.ММ.ГГГГ\")&\")\",\"\n(выберите\nотчетный период)\")))))","v":"-"}]
[null,null,null,null,{"$f":"IF(E28=\"-\",0,1)","v":0},null,{"$f":"IF(G28=\"-\",0,1)","v":0},{"$f":"IF(H28=\"-\",0,1)","v":0},{"$f":"IF(I28=\"-\",0,1)","v":0},{"$f":"IF(J28=\"-\",0,1)","v":0},{"$f":"IF(K28=\"-\",0,1)","v":0}]
[]
[null,"Статистическая отчетность по указанным формам в установленные сроки представляется в Гохран России по адресу: 121170, г. Москва, ул. 1812 года, д. 14, а также направляется письмом по электронной почте: gpudova@gokhran.ru"]
[]
[]
[null,"По всем вопросам, касающимся заполнения указанных форм, следует обращаться в Гохран России:"]
[null,"– по электронной почте: gpudova@gokhran.ru"]
[null,"– по телефону: +7 (499) 249-88-07 (контактное лицо – Пудова Галина Николаевна)"]

{"sheet":"Памятка","index":1,"n_rows":33,"n_cols":8,"rows_kept":33,"cut":false,"hidden":false,"merged":[[18,1,18,2],[26,1,27,7],[28,1,29,7],[30,1,31,7],[32,1,32,7],[20,1,20,10],[21,1,21,10],[22,1,22,10],[17,1,17,7],[0,1,2,7],[8,6,9,6],[8,7,9,7],[14,1,15,1],[14,2,15,2],[14,3,15,3],[14,5,15,5],[14,7,15,7],[14,6,15,6],[10,2,11,2],[10,1,11,1],[10,3,11,3],[3,1,4,2],[8,1,9,1],[8,2,9,2],[8,3,9,3],[5,1,6,1],[5,2,6,2],[3,3,6,3],[10,7,11,7],[10,6,11,6],[3,4,6,4],[3,5,6,5],[3,7,6,7],[3,6,6,6]]}
[null,"Статистический инструментарий для организации Минфином России статистического наблюдения\nза поступлением, расходом и остатками алмазов, драгоценных металлов и изделий из них"]
[]
[]
[null,"Форма статистической отчетности",null,"Отчитывающиеся субъекты","Периодичность представления формы","Сроки представления формы после отчетного периода","Порядок заполнения и представления формы","Бланк формы"]
[]
[null,"Номер","Наименование"]
[]
[null,"1-ДМ","Сведения об остатках, поступлении и расходе алмазов в инструменте, порошках и пастах","Юридические лица и индивидуальные предприниматели, осуществляющие операции с драгоценными камнями:\n - приобретающие природные алмазы и расходующие их на различные цели\n - изготавливающие алмазный инструмент, порошки и пасты","Год","1 марта","Открыть","Открыть"]
[null,"2-ДМ","Сведения об остатках, поступлении и расходе драгоценных металлов и изделий из них","Юридические лица и индивидуальные предприниматели, осуществляющие операции с драгоценными металлами:\n - приобретающие драгоценные металлы в установленном порядке:\n      а) в Госфонде России в счет плана отпуска, утверждаемого Правительством РФ\n      б) путем совершения сделок купли-продажи драгоценных металлов, в порядке, установленном законодательством РФ\n      в) по импорту\n - использующие драгоценные металлы для различных видов деятельности, включая снабженческие и сбытовые организации\n - производящие оплату и отпуск со своих складов и баз драгоценных металлов и изделий из них\n - осуществляющие оптовую торговлю драгоценными металлами","Полугодие","5 августа","Открыть","Открыть"]
[null,null,null,null,"Год","1 марта"]
[null,"Приложение\nк 2-ДМ","Сведения об остатках, поступлении и сдаче драгоценных металлов в виде лома и отходов для последующей переработки и аффинажа","Юридические лица и индивидуальные предприниматели, осуществляющие операции с драгоценными металлами и их сдачу в виде лома и отходов:\n- располагающие источниками образования лома и отходов драгоценных металлов\n- осуществляющие деятельность по закупке или приему на давальческой основе у владельцев лома и отходов с целью их дальнейшей утилизации, первичной обработки, переработки в концентрат и другие полупродукты в целях их аффинажа\n- изготовляющие полуфабрикаты и изделия из давальческого сырья\n\n","Полугодие","5 августа","Открыть","Открыть"]
[null,null,null,null,"Год","1 марта"]
[null,"2-ДМ\n(давальческое сырье)","Сведения об остатках, поступлении и расходе драгоценных металлов, полученных для выполнения давальческих заказов","Юридические лица и индивидуальные предприниматели, осуществляющие изготовление изделий, полуфабрикатов, солей и кислот из давальческих драгоценных металлов","Год","1 марта","Открыть","Открыть"]
[null,"4-ДМ","Сведения об остатках, поступлении и расходе драгоценных металлов, содержащихся в составе приборов, оборудования и других изделий","Юридические лица и индивидуальные предприниматели, имеющие в своем распоряжении основные средства, покупные комплектующие изделия, кино-, фото-, рентгеноматериалы, кабельную продукцию, серебряно-цинковые элементы питания (аккумуляторы), запасные части и другие материальные ценности, в составе которых содержатся драгоценные металлы","Год","1 марта","Открыть","Открыть"]
[null,"5-ДМ","Сведения о поступлении лома и отходов и производстве из них аффинированных драгоценных металлов","Юридические лица, осуществляющие аффинаж","Квартал","На 60 день","Открыть","Открыть"]
[null,null,null,null,"Год"]
[]
[null,"Статистическая отчетность по указанным формам в установленные сроки представляется в Гохран России по адресу: 121170, г. Москва, ул. 1812 года, д. 14, а также направляется письмом по электронной почте:"]
[null,"gpudova@gokhran.ru"]
[]
[null,"По всем вопросам, касающимся заполнения указанных форм, следует обращаться в Гохран России:"]
[null,"– по электронной почте: gpudova@gokhran.ru"]
[null,"– по телефону: +7 (499) 249-88-07 (контактное лицо – Пудова Галина Николаевна)"]
[]
[null,"Нормативно-правовая база"]
[]
[null,"1. Постановление Росстата от 14.11.2007 N 88 «Об утверждении статистического инструментария для организации Минфином России статистического наблюдения за поступлением, расходом и остатками алмазов, драгоценных металлов и изделий из них»"]
[]
[null,"2. Приказ Минфина России от 09.12.2016 № 231н «Об утверждении Инструкции о порядке учета и хранения драгоценных металлов, драгоценных камней, продукции из них и ведения отчетности при их производстве, использовании и обращении»"]
[]
[null,"3. Постановление Правительства РФ от 28.09.2000 N 731 «Об утверждении Правил учета и хранения драгоценных металлов, драгоценных камней и продукции из них, а также ведения соответствующей отчетности»"]
[]
[null,"4. Распоряжение Правительства РФ от 06.05.2008 № 671-р «Об утверждении Федерального плана статистических работ»"]

{"sheet":"1дм(1,","index":2,"n_rows":31,"n_cols":137,"rows_kept":31,"cut":false,"hidden":false,"merged":[[29,96,29,115],[29,116,29,135],[29,136,29,155],[30,1,30,15],[30,16,30,35],[30,36,30,55],[30,56,30,75],[30,76,30,95],[30,96,30,115],[30,116,30,135],[30,136,30,155],[29,1,29,15],[29,16,29,35],[29,36,29,55],[29,56,29,75],[29,76,29,95],[27,1,28,15],[27,16,27,155],[28,16,28,35],[28,36,28,55],[28,56,28,75],[28,76,28,95],[28,96,28,115],[28,116,28,135],[28,136,28,155],[24,1,24,151],[26,1,26,151],[0,20,0,136],[8,30,8,126],[13,1,13,81],[13,82,13,116],[4,14,4,142],[9,30,9,126],[18,6,18,81],[22,1,22,151],[6,20,6,136],[16,2,17,81],[10,75,10,80],[2,20,2,136],[21,2,21,150],[23,16,23,150],[13,125,13,151],[14,125,16,151],[14,2,14,81],[14,82,15,116],[16,82,18,116],[15,2,15,5],[15,6,15,81],[18,2,18,5],[17,125,18,151]]}
[null,null,null,null,null,null,null,null,null,null,null,null,null,null,null,null,null,null,null,null,"ФЕДЕРАЛЬНОЕ ГОСУДАРСТВЕННОЕ СТАТИСТИЧЕСКОЕ НАБЛЮДЕНИЕ"]
[]
[null,null,null,null,null,null,null,null,null,null,null,null,null,null,null,null,null,null,null,null,"КОНФИДЕНЦИАЛЬНОСТЬ ГАРАНТИРУЕТСЯ ПОЛУЧАТЕЛЕМ ИНФОРМАЦИИ"]
[]
[null,null,null,null,null,null,null,null,null,null,null,null,null,null,"Нарушение порядка представления статистической информации, а равно представление недостоверной статистической информации\nвлечет ответственность, установленную статьей 13.19 Кодекса Российской Федерации об административных правонарушениях\n от 30.12.2001 № 195-ФЗ, а также статьей 3 Закона Российской Федерации от 13.05.92 № 2761-1 \"Об ответственности за нарушение\n порядка представления государственной статистической отчетности\""]
[]
[null,null,null,null,null,null,null,null,null,null,null,null,null,null,null,null,null,null,null,null,"В соответствии со статьей 6 Федерального закона от 27.07.2006 № 152-ФЗ \"О персональных данных\" обработка персональных данных осуществляется для статистических целей при условии обязательного обезличивания персональных данных"]
[]
[null,null,null,null,null,null,null,null,null,null,null,null,null,null,null,null,null,null,null,null,null,null,null,null,null,null,null,null,null,null,"СВЕДЕНИЯ ОБ ОСТАТКАХ, ПОСТУПЛЕНИИ И РАСХОДЕ АЛМАЗОВ В ИНСТРУМЕНТЕ, "]
[null,null,null,null,null,null,null,null,null,null,null,null,null,null,null,null,null,null,null,null,null,null,null,null,null,null,null,null,null,null,"ПОРОШКАХ И ПАСТАХ"]
[null,null,null,null,null,null,null,null,null,null,null,null,null,null,null,null,null,null,null,null,null,null,null,null,null,null,null,null,null,null,null,null,null,null,null,null,null,null,null,null,null,null,null,null,null,null,null,null,null,null,null,null,null,null,null,null,null,null,null,null,null,null,null,null,null,null,null,null,null,null,null,null,null,null,"за",{"$f":"IF(ФОРМА!I24=\"\",\"-\",ФОРМА!I24)","v":"-"},null,null,null,null,null,"г."]
[]
[]
[null,"Представляют:",null,null,null,null,null,null,null,null,null,null,null,null,null,null,null,null,null,null,null,null,null,null,null,null,null,null,null,null,null,null,null,null,null,null,null,null,null,null,null,null,null,null,null,null,null,null,null,null,null,null,null,null,null,null,null,null,null,null,null,null,null,null,null,null,null,null,null,null,null,null,null,null,null,null,null,null,null,null,null,null,"Сроки представления",null,null,null,null,null,null,null,null,null,null,null,null,null,null,null,null,null,null,null,null,null,null,null,null,null,null,null,null,null,null,null,null,null,null,null,null,null,null,null,null,null,null,"Форма № 1-ДМ"]
[null,null,"юридические лица, физические лица, занимающиеся предпринимательской деятельностью без образования юридического лица (индивидуальные предприниматели), осуществляющие операции с драгоценными камнями:",null,null,null,null,null,null,null,null,null,null,null,null,null,null,null,null,null,null,null,null,null,null,null,null,null,null,null,null,null,null,null,null,null,null,null,null,null,null,null,null,null,null,null,null,null,null,null,null,null,null,null,null,null,null,null,null,null,null,null,null,null,null,null,null,null,null,null,null,null,null,null,null,null,null,null,null,null,null,null,"1 марта \nпосле отчетного периода",null,null,null,null,null,null,null,null,null,null,null,null,null,null,null,null,null,null,null,null,null,null,null,null,null,null,null,null,null,null,null,null,null,null,null,null,null,null,null,null,null,null,"Утверждена\nПостановлением Росстата\nот 14.11.2007 № 88"]
[null,null,"-",null,null,null,"Гохрану России (121170, г. Москва, ул. 1812 года, дом 14)"]
[null,null,"Гохран России:",null,null,null,null,null,null,null,null,null,null,null,null,null,null,null,null,null,null,null,null,null,null,null,null,null,null,null,null,null,null,null,null,null,null,null,null,null,null,null,null,null,null,null,null,null,null,null,null,null,null,null,null,null,null,null,null,null,null,null,null,null,null,null,null,null,null,null,null,null,null,null,null,null,null,null,null,null,null,null,"по согласованной программе \nи срокам"]
[null,null,null,null,null,null,null,null,null,null,null,null,null,null,null,null,null,null,null,null,null,null,null,null,null,null,null,null,null,null,null,null,null,null,null,null,null,null,null,null,null,null,null,null,null,null,null,null,null,null,null,null,null,null,null,null,null,null,null,null,null,null,null,null,null,null,null,null,null,null,null,null,null,null,null,null,null,null,null,null,null,null,null,null,null,null,null,null,null,null,null,null,null,null,null,null,null,null,null,null,null,null,null,null,null,null,null,null,null,null,null,null,null,null,null,null,null,null,null,null,null,null,null,null,null,"Годовая"]
[null,null,"-",null,null,null,"Росстату (107450, Москва, ул. Мясницкая, д. 39, строение 1)"]
[]
[null,null,"Наименование отчитывающейся организации (фамилия, имя, отчество индивидуального предпринимателя)"]
[null,null,{"$f":"IF(AND(ФОРМА!E5=\"\",ФОРМА!E8=\"\"),\"-\",IF(ФОРМА!E5=\"\",ФОРМА!E8,IF(ФОРМА!E6=\"\",ФОРМА!E5,ФОРМА!E5&\" (\"&ФОРМА!E6&\")\")))","v":"-"}]
[]
[null,null,"Почтовый адрес",null,null,null,null,null,null,null,null,null,null,null,null,null,{"$f":"IF(ФОРМА!E9=\"\",\"-\",ФОРМА!E9)","v":"-"}]
[]
[]
[null,"Линия отрыва (для отчетности, представляемой индивидуальным предпринимателем)"]
[null,"Код\nформы\nпо ОКУД",null,null,null,null,null,null,null,null,null,null,null,null,null,null,"Код "]
[null,null,null,null,null,null,null,null,null,null,null,null,null,null,null,null,"отчитывающейся организации (индивидуального предпринимателя)\nпо ОКПО",null,null,null,null,null,null,null,null,null,null,null,null,null,null,null,null,null,null,null,"вида деятельности\nпо ОКВЭД",null,null,null,null,null,null,null,null,null,null,null,null,null,null,null,null,null,null,null,"территории\nпо ОКАТО",null,null,null,null,null,null,null,null,null,null,null,null,null,null,null,null,null,null,null,"министерства (ведомства), органа управления \nпо ОКОГУ",null,null,null,null,null,null,null,null,null,null,null,null,null,null,null,null,null,null,null,"организационно-правовой формы\nпо ОКОПФ",null,null,null,null,null,null,null,null,null,null,null,null,null,null,null,null,null,null,null,"формы собственности\nпо ОКФС"]
[null,1,null,null,null,null,null,null,null,null,null,null,null,null,null,null,2,null,null,null,null,null,null,null,null,null,null,null,null,null,null,null,null,null,null,null,3,null,null,null,null,null,null,null,null,null,null,null,null,null,null,null,null,null,null,null,4,null,null,null,null,null,null,null,null,null,null,null,null,null,null,null,null,null,null,null,5,null,null,null,null,null,null,null,null,null,null,null,null,null,null,null,null,null,null,null,6,null,null,null,null,null,null,null,null,null,null,null,null,null,null,null,null,null,null,null,7,null,null,null,null,null,null,null,null,null,null,null,null,null,null,null,null,null,null,null,8]
[null,"0607068",null,null,null,null,null,null,null,null,null,null,null,null,null,null,{"$f":"IF(ФОРМА!$E$18=\"\",\"-\",ФОРМА!$E$18)","v":"-"},null,null,null,null,null,null,null,null,null,null,null,null,null,null,null,null,null,null,null,{"$f":"IF(ФОРМА!$E$19=\"\",\"-\",ФОРМА!$E$19)","v":"-"},null,null,null,null,null,null,null,null,null,null,null,null,null,null,null,null,null,null,null,{"$f":"IF(ФОРМА!$E$20=\"\",\"-\",ФОРМА!$E$20)","v":"-"},null,null,null,null,null,null,null,null,null,null,null,null,null,null,null,null,null,null,null,{"$f":"IF(ФОРМА!$E$21=\"\",\"-\",ФОРМА!$E$21)","v":"-"},null,null,null,null,null,null,null,null,null,null,null,null,null,null,null,null,null,null,null,{"$f":"IF(ФОРМА!$E$22=\"\",\"-\",ФОРМА!$E$22)","v":"-"},null,null,null,null,null,null,null,null,null,null,null,null,null,null,null,null,null,null,null,{"$f":"IF(ФОРМА!$E$23=\"\",\"-\",ФОРМА!$E$23)","v":"-"}]

{"sheet":"2)","index":3,"n_rows":46,"n_cols":168,"rows_kept":46,"cut":false,"hidden":false,"merged":[[41,38,42,61],[41,66,42,100],[38,38,39,70],[1,136,1,149],[6,136,6,149],[2,120,2,135],[1,120,1,135],[6,120,6,135],[5,90,5,103],[7,136,7,149],[2,136,2,149],[7,120,7,135],[7,90,7,103],[7,104,7,119],[1,74,1,89],[6,74,6,89],[7,74,7,89],[4,59,4,73],[4,74,4,89],[5,59,5,73],[5,74,5,89],[2,59,2,73],[2,74,2,89],[3,59,3,73],[2,90,2,103],[2,104,2,119],[3,90,3,103],[3,104,3,119],[3,120,3,135],[3,136,3,149],[6,90,6,103],[6,104,6,119],[1,90,1,103],[1,104,1,119],[4,90,4,103],[4,104,4,119],[5,136,5,149],[4,120,4,135],[4,136,4,149],[5,120,5,135],[5,104,5,119],[1,150,1,166],[2,150,2,166],[3,150,3,166],[4,150,4,166],[5,150,5,166],[6,150,6,166],[29,2,29,51],[26,59,27,73],[3,74,3,89],[1,1,1,51],[6,1,6,51],[1,52,1,58],[6,52,6,58],[4,1,4,51],[4,52,4,58],[5,1,5,51],[5,52,5,58],[1,59,1,73],[6,59,6,73],[2,1,2,51],[2,52,2,58],[3,1,3,51],[3,52,3,58],[9,74,10,88],[8,90,8,103],[8,120,8,135],[8,136,8,149],[8,104,8,119],[19,52,19,58],[19,74,19,88],[8,1,8,51],[10,2,10,51],[9,52,10,58],[17,90,17,102],[18,90,18,102],[19,90,19,102],[11,120,15,134],[9,120,10,134],[17,120,17,134],[11,149,15,149],[11,136,15,148],[20,74,20,88],[21,74,21,88],[22,74,22,88],[44,97,44,100],[36,1,36,167],[37,1,37,167],[22,2,22,51],[21,59,21,73],[45,38,45,61],[45,66,45,100],[44,38,44,61],[44,66,44,67],[44,68,44,71],[44,72,44,74],[44,75,44,89],[44,90,44,93],[44,94,44,96],[30,2,30,51],[23,2,23,51],[25,2,25,51],[24,2,24,51],[26,2,26,51],[28,2,28,51],[27,2,27,51],[7,150,7,166],[8,150,8,166],[7,52,7,58],[16,2,16,51],[18,2,18,51],[8,52,8,58],[15,2,15,51],[17,2,17,51],[7,1,7,51],[17,74,17,88],[18,74,18,88],[9,90,10,102],[11,90,15,102],[16,90,16,102],[9,89,10,89],[11,89,15,89],[11,74,15,88],[16,74,16,88],[7,59,7,73],[9,59,10,73],[8,74,8,89],[9,135,10,135],[9,136,10,148],[9,149,10,149],[25,52,25,58],[18,52,18,58],[9,2,9,51],[16,59,16,73],[17,59,17,73],[18,59,18,73],[16,52,16,58],[17,52,17,58],[12,2,12,51],[13,2,13,51],[14,2,14,51],[20,52,20,58],[20,2,20,51],[20,59,20,73],[21,52,21,58],[24,52,24,58],[19,59,19,73],[11,59,15,73],[22,52,22,58],[22,59,22,73],[21,2,21,51],[19,2,19,51],[29,52,30,58],[29,59,30,73],[8,59,8,73],[42,106,42,131],[43,38,43,61],[43,66,43,100],[43,106,43,131],[31,52,32,58],[28,59,28,73],[28,52,28,58],[11,2,11,51],[11,52,15,58],[40,38,40,70],[40,75,40,100],[31,2,31,51],[39,75,39,100],[31,59,32,73],[26,52,27,58],[24,59,24,73],[25,59,25,73],[23,59,23,73],[26,74,27,88],[32,2,32,51],[23,52,23,58],[23,74,23,88],[24,74,24,88],[25,74,25,88],[31,74,32,88],[29,74,30,88],[28,74,28,88],[26,90,27,102],[28,90,28,102],[29,90,30,102],[31,90,32,102],[20,90,20,102],[21,90,21,102],[22,90,22,102],[23,90,23,102],[24,90,24,102],[25,90,25,102],[26,89,27,89],[29,89,30,89],[31,89,32,89],[24,104,24,118],[31,120,32,134],[29,120,30,134],[28,120,28,134],[26,120,27,134],[16,120,16,134],[24,120,24,134],[25,120,25,134],[25,104,25,118],[28,104,28,118],[18,120,18,134],[19,120,19,134],[20,120,20,134],[21,120,21,134],[22,120,22,134],[23,120,23,134],[21,104,21,118],[22,104,22,118],[23,104,23,118],[26,149,27,149],[29,149,30,149],[31,149,32,149],[9,103,10,103],[11,103,15,103],[26,103,27,103],[29,103,30,103],[31,103,32,103],[9,119,10,119],[11,119,15,119],[26,119,27,119],[29,119,30,119],[31,119,32,119],[31,104,32,118],[29,104,30,118],[26,104,27,118],[16,104,16,118],[11,104,15,118],[9,104,10,118],[17,104,17,118],[18,104,18,118],[19,104,19,118],[20,104,20,118],[11,135,15,135],[26,135,27,135],[29,135,30,135],[31,135,32,135],[16,136,16,148],[17,136,17,148],[18,136,18,148],[19,136,19,148],[20,136,20,148],[21,136,21,148],[22,136,22,148],[23,136,23,148],[24,136,24,148],[25,136,25,148],[26,136,27,148],[28,136,28,148],[29,136,30,148],[31,136,32,148],[9,167,10,167],[11,167,15,167],[26,167,27,167],[29,167,30,167],[31,167,32,167],[31,150,32,166],[29,150,30,166],[28,150,28,166],[26,150,27,166],[16,150,16,166],[11,150,15,166],[9,150,10,166],[17,150,17,166],[18,150,18,166],[19,150,19,166],[20,150,20,166],[21,150,21,166],[22,150,22,166],[23,150,23,166],[24,150,24,166],[25,150,25,166]]}
[null,null,null,null,null,null,null,null,null,null,null,null,null,null,null,null,null,null,null,null,null,null,null,null,null,null,null,null,null,null,null,null,null,null,null,null,null,null,null,null,null,null,null,null,null,null,null,null,null,null,null,null,null,null,null,null,null,null,null,null,null,null,null,null,null,null,null,null,null,null,null,null,null,null,null,null,null,null,null,null,null,null,null,null,null,null,null,null,null,null,null,null,null,null,null,null,null,null,null,null,null,null,null,null,null,null,null,null,null,null,null,null,null,null,null,null,null,null,null,null,null,null,null,null,null,null,null,null,null,null,null,null,null,null,null,null,null,null,null,null,null,null,null,null,null,null,null,null,null,null,null,null,null,null,null,null,null,null,null,null,null,null,null,null,null,"Код по ОКЕИ: метрический карат -162"]
[null,"Наименование инструмента, порошков и паст",null,null,null,null,null,null,null,null,null,null,null,null,null,null,null,null,null,null,null,null,null,null,null,null,null,null,null,null,null,null,null,null,null,null,null,null,null,null,null,null,null,null,null,null,null,null,null,null,null,null,"№",null,null,null,null,null,null,"Код",null,null,null,null,null,null,null,null,null,null,null,null,null,null,"Остаток",null,null,null,null,null,null,null,null,null,null,null,null,null,null,null,"Поступило",null,null,null,null,null,null,null,null,null,null,null,null,null,"Израсходовано",null,null,null,null,null,null,null,null,null,null,null,null,null,null,null,"Кроме того,",null,null,null,null,null,null,null,null,null,null,null,null,null,null,null,"Остаток",null,null,null,null,null,null,null,null,null,null,null,null,null,"Кроме того,"]
[null,"из природных алмазов",null,null,null,null,null,null,null,null,null,null,null,null,null,null,null,null,null,null,null,null,null,null,null,null,null,null,null,null,null,null,null,null,null,null,null,null,null,null,null,null,null,null,null,null,null,null,null,null,null,null," стро-",null,null,null,null,null,null,"по ОКП",null,null,null,null,null,null,null,null,null,null,null,null,null,null,"на начало",null,null,null,null,null,null,null,null,null,null,null,null,null,null,null,"в отчетном",null,null,null,null,null,null,null,null,null,null,null,null,null," за отчетный",null,null,null,null,null,null,null,null,null,null,null,null,null,null,null,"передано",null,null,null,null,null,null,null,null,null,null,null,null,null,null,null,"на конец",null,null,null,null,null,null,null,null,null,null,null,null,null,"остатки алмазов"]
[null,null,null,null,null,null,null,null,null,null,null,null,null,null,null,null,null,null,null,null,null,null,null,null,null,null,null,null,null,null,null,null,null,null,null,null,null,null,null,null,null,null,null,null,null,null,null,null,null,null,null,null,"ки",null,null,null,null,null,null,null,null,null,null,null,null,null,null,null,null,null,null,null,null,null,"отчетного года",null,null,null,null,null,null,null,null,null,null,null,null,null,null,null,"году - всего:",null,null,null,null,null,null,null,null,null,null,null,null,null,"год - всего",null,null,null,null,null,null,null,null,null,null,null,null,null,null,null,"в отчетном ",null,null,null,null,null,null,null,null,null,null,null,null,null,null,null,"отчетного",null,null,null,null,null,null,null,null,null,null,null,null,null,"в отработанном,"]
[null,null,null,null,null,null,null,null,null,null,null,null,null,null,null,null,null,null,null,null,null,null,null,null,null,null,null,null,null,null,null,null,null,null,null,null,null,null,null,null,null,null,null,null,null,null,null,null,null,null,null,null,null,null,null,null,null,null,null,null,null,null,null,null,null,null,null,null,null,null,null,null,null,null,null,null,null,null,null,null,null,null,null,null,null,null,null,null,null,null,null,null,null,null,null,null,null,null,null,null,null,null,null,null,null,null,null,null,null,null,null,null,null,null,null,null,null,null,null,null,"году другим",null,null,null,null,null,null,null,null,null,null,null,null,null,null,null,"года - всего",null,null,null,null,null,null,null,null,null,null,null,null,null,"пришедшем"]
[null,null,null,null,null,null,null,null,null,null,null,null,null,null,null,null,null,null,null,null,null,null,null,null,null,null,null,null,null,null,null,null,null,null,null,null,null,null,null,null,null,null,null,null,null,null,null,null,null,null,null,null,null,null,null,null,null,null,null,null,null,null,null,null,null,null,null,null,null,null,null,null,null,null,null,null,null,null,null,null,null,null,null,null,null,null,null,null,null,null,null,null,null,null,null,null,null,null,null,null,null,null,null,null,null,null,null,null,null,null,null,null,null,null,null,null,null,null,null,null,"предприятиям",null,null,null,null,null,null,null,null,null,null,null,null,null,null,null,null,null,null,null,null,null,null,null,null,null,null,null,null,null,"в негодность"]
[null,null,null,null,null,null,null,null,null,null,null,null,null,null,null,null,null,null,null,null,null,null,null,null,null,null,null,null,null,null,null,null,null,null,null,null,null,null,null,null,null,null,null,null,null,null,null,null,null,null,null,null,null,null,null,null,null,null,null,null,null,null,null,null,null,null,null,null,null,null,null,null,null,null,null,null,null,null,null,null,null,null,null,null,null,null,null,null,null,null,null,null,null,null,null,null,null,null,null,null,null,null,null,null,null,null,null,null,null,null,null,null,null,null,null,null,null,null,null,null,"(организациям)",null,null,null,null,null,null,null,null,null,null,null,null,null,null,null,null,null,null,null,null,null,null,null,null,null,null,null,null,null,"инструменте"]
[null,null,null,null,null,null,null,null,null,null,null,null,null,null,null,null,null,null,null,null,null,null,null,null,null,null,null,null,null,null,null,null,null,null,null,null,null,null,null,null,null,null,null,null,null,null,null,null,null,null,null,null,null,null,null,null,null,null,null,null,null,null,null,null,null,null,null,null,null,null,null,null,null,null,null,null,null,null,null,null,null,null,null,null,null,null,null,null,null,null,null,null,null,null,null,null,null,null,null,null,null,null,null,null,null,null,null,null,null,null,null,null,null,null,null,null,null,null,null,null,null,null,null,null,null,null,null,null,null,null,null,null,null,null,null,null,null,null,null,null,null,null,null,null,null,null,null,null,null,null,"(отходы)"]
[null,1,null,null,null,null,null,null,null,null,null,null,null,null,null,null,null,null,null,null,null,null,null,null,null,null,null,null,null,null,null,null,null,null,null,null,null,null,null,null,null,null,null,null,null,null,null,null,null,null,null,null,2,null,null,null,null,null,null,3,null,null,null,null,null,null,null,null,null,null,null,null,null,null,4,null,null,null,null,null,null,null,null,null,null,null,null,null,null,null,5,null,null,null,null,null,null,null,null,null,null,null,null,null,6,null,null,null,null,null,null,null,null,null,null,null,null,null,null,null,7,null,null,null,null,null,null,null,null,null,null,null,null,null,null,null,8,null,null,null,null,null,null,null,null,null,null,null,null,null,9]
[null,null,"1. Всего природных алмазов в инструменте,",null,null,null,null,null,null,null,null,null,null,null,null,null,null,null,null,null,null,null,null,null,null,null,null,null,null,null,null,null,null,null,null,null,null,null,null,null,null,null,null,null,null,null,null,null,null,null,null,null,"01",null,null,null,null,null,null,"397100",null,null,null,null,null,null,null,null,null,null,null,null,null,null,{"$f":"IF(AND(BW12=\"\",BW17=\"\",BW18=\"\",BW19=\"\",BW20=\"\",BW21=\"\",BW22=\"\",BW23=\"\",BW24=\"\",BW25=\"\",BW26=\"\",BW27=\"\",BW29=\"\",BW30=\"\"),\"\",IF(CL10=0,\"-\",CL10))","v":""},null,null,null,null,null,null,null,null,null,null,null,null,null,null,{"$f":"SUM(CL12:CL31)","v":0},{"$f":"IF(AND(CM12=\"\",CM17=\"\",CM18=\"\",CM19=\"\",CM20=\"\",CM21=\"\",CM22=\"\",CM23=\"\",CM24=\"\",CM25=\"\",CM26=\"\",CM27=\"\",CM29=\"\",CM30=\"\"),\"\",IF(CZ10=0,\"-\",CZ10))","v":""},null,null,null,null,null,null,null,null,null,null,null,null,{"$f":"SUM(CZ12:CZ31)","v":0},{"$f":"IF(AND(DA12=\"\",DA17=\"\",DA18=\"\",DA19=\"\",DA20=\"\",DA21=\"\",DA22=\"\",DA23=\"\",DA24=\"\",DA25=\"\",DA26=\"\",DA27=\"\",DA29=\"\",DA30=\"\"),\"\",IF(DP10=0,\"-\",DP10))","v":""},null,null,null,null,null,null,null,null,null,null,null,null,null,null,{"$f":"SUM(DP12:DP31)","v":0},{"$f":"IF(AND(DQ12=\"\",DQ17=\"\",DQ18=\"\",DQ19=\"\",DQ20=\"\",DQ21=\"\",DQ22=\"\",DQ23=\"\",DQ24=\"\",DQ25=\"\",DQ26=\"\",DQ27=\"\",DQ29=\"\",DQ30=\"\"),\"\",IF(EF10=0,\"-\",EF10))","v":""},null,null,null,null,null,null,null,null,null,null,null,null,null,null,{"$f":"SUM(EF12:EF31)","v":0},{"$f":"IF(AND(EG12=\"\",EG17=\"\",EG18=\"\",EG19=\"\",EG20=\"\",EG21=\"\",EG22=\"\",EG23=\"\",EG24=\"\",EG25=\"\",EG26=\"\",EG27=\"\",EG29=\"\",EG30=\"\"),\"\",IF(ET10=0,\"-\",ET10))","v":""},null,null,null,null,null,null,null,null,null,null,null,null,{"$f":"SUM(ET12:ET31)","v":0},{"$f":"IF(AND(EU12=\"\",EU17=\"\",EU18=\"\",EU19=\"\",EU20=\"\",EU21=\"\",EU22=\"\",EU23=\"\",EU24=\"\",EU25=\"\",EU26=\"\",EU27=\"\",EU29=\"\",EU30=\"\"),\"\",IF(FL10=0,\"-\",FL10))","v":""},null,null,null,null,null,null,null,null,null,null,null,null,null,null,null,null,{"$f":"SUM(FL12:FL31)","v":0}]
[null,null,"порошках и пастах (сумма строк 2 - 15)"]
[null,null,"в том числе:",null,null,null,null,null,null,null,null,null,null,null,null,null,null,null,null,null,null,null,null,null,null,null,null,null,null,null,null,null,null,null,null,null,null,null,null,null,null,null,null,null,null,null,null,null,null,null,null,null,"02",null,null,null,null,null,null,"397174",null,null,null,null,null,null,null,null,null,null,null,null,null,null,null,null,null,null,null,null,null,null,null,null,null,null,null,null,null,{"$f":"IF(ISERROR(1+BW12),0,BW12)","v":0},null,null,null,null,null,null,null,null,null,null,null,null,null,{"$f":"IF(ISERROR(1+CM12),0,CM12)","v":0},null,null,null,null,null,null,null,null,null,null,null,null,null,null,null,{"$f":"IF(ISERROR(1+DA12),0,DA12)","v":0},null,null,null,null,null,null,null,null,null,null,null,null,null,null,null,{"$f":"IF(ISERROR(1+DQ12),0,DQ12)","v":0},{"$f":"IF(AND(BW12=\"\",CM12=\"\",DA12=\"\",DQ12=\"\"),\"\",IF(ET12=0,\"-\",ET12))","v":""},null,null,null,null,null,null,null,null,null,null,null,null,{"$f":"CL12+CZ12-DP12-EF12","v":0},null,null,null,null,null,null,null,null,null,null,null,null,null,null,null,null,null,{"$f":"IF(ISERROR(1+EU12),0,EU12)","v":0}]
[null,null,"в наконечниках к приборам для измерения"]
[null,null,"твердости и активного контроля, в иглах"]
[null,null,"граверных, а также к приборам для измерения"]
[null,null,"шероховатости поверхности"]
[null,null,"в волоках",null,null,null,null,null,null,null,null,null,null,null,null,null,null,null,null,null,null,null,null,null,null,null,null,null,null,null,null,null,null,null,null,null,null,null,null,null,null,null,null,null,null,null,null,null,null,null,null,null,"03",null,null,null,null,null,null,"397171",null,null,null,null,null,null,null,null,null,null,null,null,null,null,null,null,null,null,null,null,null,null,null,null,null,null,null,null,null,{"$f":"IF(ISERROR(1+BW17),0,BW17)","v":0},null,null,null,null,null,null,null,null,null,null,null,null,null,{"$f":"IF(ISERROR(1+CM17),0,CM17)","v":0},null,null,null,null,null,null,null,null,null,null,null,null,null,null,null,{"$f":"IF(ISERROR(1+DA17),0,DA17)","v":0},null,null,null,null,null,null,null,null,null,null,null,null,null,null,null,{"$f":"IF(ISERROR(1+DQ17),0,DQ17)","v":0},"",null,null,null,null,null,null,null,null,null,null,null,null,0,null,null,null,null,null,null,null,null,null,null,null,null,null,null,null,null,null,{"$f":"IF(ISERROR(1+EU17),0,EU17)","v":0}]
[null,null,"в резцах",null,null,null,null,null,null,null,null,null,null,null,null,null,null,null,null,null,null,null,null,null,null,null,null,null,null,null,null,null,null,null,null,null,null,null,null,null,null,null,null,null,null,null,null,null,null,null,null,null,"04",null,null,null,null,null,null,"397173",null,null,null,null,null,null,null,null,null,null,null,null,null,null,null,null,null,null,null,null,null,null,null,null,null,null,null,null,null,0,null,null,null,null,null,null,null,null,null,null,null,null,null,0,null,null,null,null,null,null,null,null,null,null,null,null,null,null,null,0,null,null,null,null,null,null,null,null,null,null,null,null,null,null,null,0,"",null,null,null,null,null,null,null,null,null,null,null,null,0,null,null,null,null,null,null,null,null,null,null,null,null,null,null,null,null,null,0]
[null,null,"в сверлах выборочных и для очковых линз",null,null,null,null,null,null,null,null,null,null,null,null,null,null,null,null,null,null,null,null,null,null,null,null,null,null,null,null,null,null,null,null,null,null,null,null,null,null,null,null,null,null,null,null,null,null,null,null,null,"05",null,null,null,null,null,null,"397178",null,null,null,null,null,null,null,null,null,null,null,null,null,null,null,null,null,null,null,null,null,null,null,null,null,null,null,null,null,0,null,null,null,null,null,null,null,null,null,null,null,null,null,0,null,null,null,null,null,null,null,null,null,null,null,null,null,null,null,0,null,null,null,null,null,null,null,null,null,null,null,null,null,null,null,0,"",null,null,null,null,null,null,null,null,null,null,null,null,0,null,null,null,null,null,null,null,null,null,null,null,null,null,null,null,null,null,0]
[null,null,"в стеклорезах",null,null,null,null,null,null,null,null,null,null,null,null,null,null,null,null,null,null,null,null,null,null,null,null,null,null,null,null,null,null,null,null,null,null,null,null,null,null,null,null,null,null,null,null,null,null,null,null,null,"06",null,null,null,null,null,null,"397177",null,null,null,null,null,null,null,null,null,null,null,null,null,null,null,null,null,null,null,null,null,null,null,null,null,null,null,null,null,0,null,null,null,null,null,null,null,null,null,null,null,null,null,0,null,null,null,null,null,null,null,null,null,null,null,null,null,null,null,0,null,null,null,null,null,null,null,null,null,null,null,null,null,null,null,0,"",null,null,null,null,null,null,null,null,null,null,null,null,0,null,null,null,null,null,null,null,null,null,null,null,null,null,null,null,null,null,0]
[null,null,"в иглах для правки резьбошлифовальных кругов",null,null,null,null,null,null,null,null,null,null,null,null,null,null,null,null,null,null,null,null,null,null,null,null,null,null,null,null,null,null,null,null,null,null,null,null,null,null,null,null,null,null,null,null,null,null,null,null,null,"07",null,null,null,null,null,null,"397175",null,null,null,null,null,null,null,null,null,null,null,null,null,null,null,null,null,null,null,null,null,null,null,null,null,null,null,null,null,0,null,null,null,null,null,null,null,null,null,null,null,null,null,0,null,null,null,null,null,null,null,null,null,null,null,null,null,null,null,0,null,null,null,null,null,null,null,null,null,null,null,null,null,null,null,0,"",null,null,null,null,null,null,null,null,null,null,null,null,0,null,null,null,null,null,null,null,null,null,null,null,null,null,null,null,null,null,0]
[null,null,"в алмазах, оправах",null,null,null,null,null,null,null,null,null,null,null,null,null,null,null,null,null,null,null,null,null,null,null,null,null,null,null,null,null,null,null,null,null,null,null,null,null,null,null,null,null,null,null,null,null,null,null,null,null,"08",null,null,null,null,null,null,"397176",null,null,null,null,null,null,null,null,null,null,null,null,null,null,null,null,null,null,null,null,null,null,null,null,null,null,null,null,null,0,null,null,null,null,null,null,null,null,null,null,null,null,null,0,null,null,null,null,null,null,null,null,null,null,null,null,null,null,null,0,null,null,null,null,null,null,null,null,null,null,null,null,null,null,null,0,"",null,null,null,null,null,null,null,null,null,null,null,null,0,null,null,null,null,null,null,null,null,null,null,null,null,null,null,null,null,null,0]
[null,null,"в долотах и головках для бурения",null,null,null,null,null,null,null,null,null,null,null,null,null,null,null,null,null,null,null,null,null,null,null,null,null,null,null,null,null,null,null,null,null,null,null,null,null,null,null,null,null,null,null,null,null,null,null,null,null,"09",null,null,null,null,null,null,"397154",null,null,null,null,null,null,null,null,null,null,null,null,null,null,null,null,null,null,null,null,null,null,null,null,null,null,null,null,null,0,null,null,null,null,null,null,null,null,null,null,null,null,null,0,null,null,null,null,null,null,null,null,null,null,null,null,null,null,null,0,null,null,null,null,null,null,null,null,null,null,null,null,null,null,null,0,"",null,null,null,null,null,null,null,null,null,null,null,null,0,null,null,null,null,null,null,null,null,null,null,null,null,null,null,null,null,null,0]
[null,null,"в коронках и расширителях",null,null,null,null,null,null,null,null,null,null,null,null,null,null,null,null,null,null,null,null,null,null,null,null,null,null,null,null,null,null,null,null,null,null,null,null,null,null,null,null,null,null,null,null,null,null,null,null,null,"10",null,null,null,null,null,null,"397155",null,null,null,null,null,null,null,null,null,null,null,null,null,null,null,null,null,null,null,null,null,null,null,null,null,null,null,null,null,0,null,null,null,null,null,null,null,null,null,null,null,null,null,0,null,null,null,null,null,null,null,null,null,null,null,null,null,null,null,0,null,null,null,null,null,null,null,null,null,null,null,null,null,null,null,0,"",null,null,null,null,null,null,null,null,null,null,null,null,0,null,null,null,null,null,null,null,null,null,null,null,null,null,null,null,null,null,0]
[null,null,"в роликах",null,null,null,null,null,null,null,null,null,null,null,null,null,null,null,null,null,null,null,null,null,null,null,null,null,null,null,null,null,null,null,null,null,null,null,null,null,null,null,null,null,null,null,null,null,null,null,null,null,"11",null,null,null,null,null,null,"397161",null,null,null,null,null,null,null,null,null,null,null,null,null,null,null,null,null,null,null,null,null,null,null,null,null,null,null,null,null,0,null,null,null,null,null,null,null,null,null,null,null,null,null,0,null,null,null,null,null,null,null,null,null,null,null,null,null,null,null,0,null,null,null,null,null,null,null,null,null,null,null,null,null,null,null,0,"",null,null,null,null,null,null,null,null,null,null,null,null,0,null,null,null,null,null,null,null,null,null,null,null,null,null,null,null,null,null,0]
[null,null,"в карандашах для правки абразивных кругов",null,null,null,null,null,null,null,null,null,null,null,null,null,null,null,null,null,null,null,null,null,null,null,null,null,null,null,null,null,null,null,null,null,null,null,null,null,null,null,null,null,null,null,null,null,null,null,null,null,"12",null,null,null,null,null,null,"397162",null,null,null,null,null,null,null,null,null,null,null,null,null,null,null,null,null,null,null,null,null,null,null,null,null,null,null,null,null,0,null,null,null,null,null,null,null,null,null,null,null,null,null,0,null,null,null,null,null,null,null,null,null,null,null,null,null,null,null,0,null,null,null,null,null,null,null,null,null,null,null,null,null,null,null,0,"",null,null,null,null,null,null,null,null,null,null,null,null,0,null,null,null,null,null,null,null,null,null,null,null,null,null,null,null,null,null,0]
[null,null,"в пластинах, гребенках и другом специальном ",null,null,null,null,null,null,null,null,null,null,null,null,null,null,null,null,null,null,null,null,null,null,null,null,null,null,null,null,null,null,null,null,null,null,null,null,null,null,null,null,null,null,null,null,null,null,null,null,null,"13",null,null,null,null,null,null,"397169",null,null,null,null,null,null,null,null,null,null,null,null,null,null,null,null,null,null,null,null,null,null,null,null,null,null,null,null,null,0,null,null,null,null,null,null,null,null,null,null,null,null,null,0,null,null,null,null,null,null,null,null,null,null,null,null,null,null,null,0,null,null,null,null,null,null,null,null,null,null,null,null,null,null,null,0,"",null,null,null,null,null,null,null,null,null,null,null,null,0,null,null,null,null,null,null,null,null,null,null,null,null,null,null,null,null,null,0]
[null,null,"инструменте для правки абразивных кругов"]
[null,null,"в брусках для правки шарошлифовальных кругов",null,null,null,null,null,null,null,null,null,null,null,null,null,null,null,null,null,null,null,null,null,null,null,null,null,null,null,null,null,null,null,null,null,null,null,null,null,null,null,null,null,null,null,null,null,null,null,null,null,"14",null,null,null,null,null,null,"397167",null,null,null,null,null,null,null,null,null,null,null,null,null,null,null,null,null,null,null,null,null,null,null,null,null,null,null,null,null,0,null,null,null,null,null,null,null,null,null,null,null,null,null,{"$f":"IF(ISERROR(1+CM29),0,CM29)","v":0},null,null,null,null,null,null,null,null,null,null,null,null,null,null,null,0,null,null,null,null,null,null,null,null,null,null,null,null,null,null,null,0,"",null,null,null,null,null,null,null,null,null,null,null,null,0,null,null,null,null,null,null,null,null,null,null,null,null,null,null,null,null,null,{"$f":"IF(ISERROR(1+EU29),0,EU29)","v":0}]
[null,null,"в алмазно-абразивном инструменте из порошков",null,null,null,null,null,null,null,null,null,null,null,null,null,null,null,null,null,null,null,null,null,null,null,null,null,null,null,null,null,null,null,null,null,null,null,null,null,null,null,null,null,null,null,null,null,null,null,null,null,"15",null,null,null,null,null,null,"3971000001 ***",null,null,null,null,null,null,null,null,null,null,null,null,null,null,null,null,null,null,null,null,null,null,null,null,null,null,null,null,null,0,null,null,null,null,null,null,null,null,null,null,null,null,null,{"$f":"IF(ISERROR(1+CM30),0,CM30)","v":0},null,null,null,null,null,null,null,null,null,null,null,null,null,null,null,0,null,null,null,null,null,null,null,null,null,null,null,null,null,null,null,0,"",null,null,null,null,null,null,null,null,null,null,null,null,0,null,null,null,null,null,null,null,null,null,null,null,null,null,null,null,null,null,{"$f":"IF(ISERROR(1+EU30),0,EU30)","v":0}]
[null,null,"природных алмазов"]
[null,null,"из них в кругах отрезных сегментных",null,null,null,null,null,null,null,null,null,null,null,null,null,null,null,null,null,null,null,null,null,null,null,null,null,null,null,null,null,null,null,null,null,null,null,null,null,null,null,null,null,null,null,null,null,null,null,null,null,"16",null,null,null,null,null,null,"397152",null,null,null,null,null,null,null,null,null,null,null,null,null,null,null,null,null,null,null,null,null,null,null,null,null,null,null,null,null,0,null,null,null,null,null,null,null,null,null,null,null,null,null,{"$f":"IF(ISERROR(1+CM32),0,CM32)","v":0},null,null,null,null,null,null,null,null,null,null,null,null,null,null,null,0,null,null,null,null,null,null,null,null,null,null,null,null,null,null,null,0,"",null,null,null,null,null,null,null,null,null,null,null,null,0,null,null,null,null,null,null,null,null,null,null,null,null,null,null,null,null,null,{"$f":"IF(ISERROR(1+EU32),0,EU32)","v":0}]
[null,null,"и штрипсовых плитах"]
[]
[null,"_____***_Локальный код."]
[null,"Примечание:"]
[null,"а) данные по каждой строке отчета по графам 4 плюс 5 минус 6 минус 7 должны быть равны данным графы 8;\nб) по каждой графе отчета по инструменту, порошкам и пастам из природных алмазов данные по строке 1 должны равняться сумме данных строк 2 - 15."]
[null,"Линия отрыва (для отчетности, представляемой индивидуальным предпринимателем)"]
[null,"Руководитель организации",null,null,null,null,null,null,null,null,null,null,null,null,null,null,null,null,null,null,null,null,null,null,null,null,null,null,null,null,null,null,null,null,null,null,null,null,{"$f":"IFERROR(IF(AND(ФОРМА!E7=\"\",ФОРМА!E8=\"\"),\"-\",IF(ФОРМА!E7=\"\",CONCATENATE(LEFT(TRIM(ФОРМА!E8),FIND(\" \",TRIM(ФОРМА!E8),1)),MID(TRIM(ФОРМА!E8),FIND(\" \",TRIM(ФОРМА!E8),1)+1,1),\".\",MID(TRIM(ФОРМА!E8),FIND(\" \",TRIM(ФОРМА!E8),FIND(\" \",TRIM(ФОРМА!E8),1)+1)+1,1),\".\"),CONCATENATE(LEFT(TRIM(ФОРМА!E7),FIND(\" \",TRIM(ФОРМА!E7),1)),MID(TRIM(ФОРМА!E7),FIND(\" \",TRIM(ФОРМА!E7),1)+1,1),\".\",MID(TRIM(ФОРМА!E7),FIND(\" \",TRIM(ФОРМА!E7),FIND(\" \",TRIM(ФОРМА!E7),1)+1)+1,1),\".\"))),\"Данные введены некорректно\")","v":"-"}]
[null,"(индивидуальный предприниматель)"]
[null,null,null,null,null,null,null,null,null,null,null,null,null,null,null,null,null,null,null,null,null,null,null,null,null,null,null,null,null,null,null,null,null,null,null,null,null,null,"(Ф.И.О.)",null,null,null,null,null,null,null,null,null,null,null,null,null,null,null,null,null,null,null,null,null,null,null,null,null,null,null,null,null,null,null,null,null,null,null,null,"(подпись)"]
[null,"Должностное лицо, ответственное ",null,null,null,null,null,null,null,null,null,null,null,null,null,null,null,null,null,null,null,null,null,null,null,null,null,null,null,null,null,null,null,null,null,null,null,null,{"$f":"IF(ФОРМА!E25=\"\",\"-\",ФОРМА!E25)","v":"-"},null,null,null,null,null,null,null,null,null,null,null,null,null,null,null,null,null,null,null,null,null,null,null,null,null,null,null,{"$f":"IFERROR(IF(ФОРМА!E26=\"\",\"-\",CONCATENATE(LEFT(TRIM(ФОРМА!E26),FIND(\" \",TRIM(ФОРМА!E26),1)),MID(TRIM(ФОРМА!E26),FIND(\" \",TRIM(ФОРМА!E26),1)+1,1),\".\",MID(TRIM(ФОРМА!E26),FIND(\" \",TRIM(ФОРМА!E26),FIND(\" \",TRIM(ФОРМА!E26),1)+1)+1,1),\".\")),\"Данные введены некорректно\")","v":"-"}]
[null,"за составление формы"]
[null,null,null,null,null,null,null,null,null,null,null,null,null,null,null,null,null,null,null,null,null,null,null,null,null,null,null,null,null,null,null,null,null,null,null,null,null,null,"(должность)",null,null,null,null,null,null,null,null,null,null,null,null,null,null,null,null,null,null,null,null,null,null,null,null,null,null,null,"(Ф.И.О.)",null,null,null,null,null,null,null,null,null,null,null,null,null,null,null,null,null,null,null,null,null,null,null,null,null,null,null,null,null,null,null,null,null,null,null,null,null,null,null,"(подпись)"]
[null,null,null,null,null,null,null,null,null,null,null,null,null,null,null,null,null,null,null,null,null,null,null,null,null,null,null,null,null,null,null,null,null,null,null,null,null,null,{"$f":"IF(ФОРМА!E27=\"\",\"-\",ФОРМА!E27)","v":"-"},null,null,null,null,null,null,null,null,null,null,null,null,null,null,null,null,null,null,null,null,null,null,null,null,null,null,null,"«",null,null,null,null,null,"»",null,null,null,null,null,null,null,null,null,null,null,null,null,null,null,null,null,20,null,null,null,null,null,null," год"]
[null,null,null,null,null,null,null,null,null,null,null,null,null,null,null,null,null,null,null,null,null,null,null,null,null,null,null,null,null,null,null,null,null,null,null,null,null,null,"(номер контактного телефона)",null,null,null,null,null,null,null,null,null,null,null,null,null,null,null,null,null,null,null,null,null,null,null,null,null,null,null,"(дата составления документа)"]

{"sheet":"П","index":4,"n_rows":0,"n_cols":0,"rows_kept":0,"cut":false,"hidden":false,"merged":[]}

{"sheet":"2дм(1,","index":5,"n_rows":31,"n_cols":137,"rows_kept":31,"cut":false,"hidden":false,"merged":[[6,20,6,136],[16,2,17,81],[8,30,8,126],[9,30,9,126],[28,116,28,135],[28,136,28,155],[16,82,18,116],[18,2,18,5],[27,1,28,15],[27,16,27,155],[28,16,28,35],[28,36,28,55],[21,2,21,150],[23,17,23,150],[0,20,0,136],[4,14,4,142],[11,30,11,126],[2,20,2,136],[17,125,18,151],[13,125,13,151],[14,125,16,151],[14,2,14,81],[14,82,15,116],[15,2,15,5],[15,6,15,81],[18,6,18,81],[10,87,10,92],[10,72,10,85],[13,1,13,81],[13,82,13,116],[30,76,30,95],[30,96,30,115],[30,116,30,135],[30,56,30,75],[29,76,29,95],[29,56,29,75],[30,136,30,155],[29,96,29,115],[29,116,29,135],[29,136,29,155],[22,1,22,151],[24,1,24,151],[26,1,26,151],[30,1,30,15],[30,16,30,35],[30,36,30,55],[29,1,29,15],[29,16,29,35],[29,36,29,55],[28,56,28,75],[28,76,28,95],[28,96,28,115]]}
[null,null,null,null,null,null,null,null,null,null,null,null,null,null,null,null,null,null,null,null,"ФЕДЕРАЛЬНОЕ ГОСУДАРСТВЕННОЕ СТАТИСТИЧЕСКОЕ НАБЛЮДЕНИЕ"]
[]
[null,null,null,null,null,null,null,null,null,null,null,null,null,null,null,null,null,null,null,null,"КОНФИДЕНЦИАЛЬНОСТЬ ГАРАНТИРУЕТСЯ ПОЛУЧАТЕЛЕМ ИНФОРМАЦИИ"]
[]
[null,null,null,null,null,null,null,null,null,null,null,null,null,null,"Нарушение порядка представления статистической информации, а равно представление недостоверной статистической информации\nвлечет ответственность, установленную статьей 13.19 Кодекса Российской Федерации об административных правонарушениях\n от 30.12.2001 № 195-ФЗ, а также статьей 3 Закона Российской Федерации от 13.05.92 № 2761-1 \"Об ответственности за нарушение\n порядка представления государственной статистической отчетности\""]
[]
[null,null,null,null,null,null,null,null,null,null,null,null,null,null,null,null,null,null,null,null,"В соответствии со статьей 6 Федерального закона от 27.07.2006 № 152-ФЗ \"О персональных данных\" обработка персональных данных осуществляется для статистических целей при условии обязательного обезличивания персональных данных"]
[]
[null,null,null,null,null,null,null,null,null,null,null,null,null,null,null,null,null,null,null,null,null,null,null,null,null,null,null,null,null,null,"СВЕДЕНИЯ ОБ ОСТАТКАХ, ПОСТУПЛЕНИИ И РАСХОДЕ "]
[null,null,null,null,null,null,null,null,null,null,null,null,null,null,null,null,null,null,null,null,null,null,null,null,null,null,null,null,null,null,"ДРАГОЦЕННЫХ МЕТАЛЛОВ И ИЗДЕЛИЙ ИЗ НИХ"]
[null,null,null,null,null,null,null,null,null,null,null,null,null,null,null,null,null,null,null,null,null,null,null,null,null,null,null,null,null,null,null,null,null,null,null,null,null,null,null,null,null,null,null,null,null,null,null,null,null,null,null,null,null,null,null,null,null,null,null,null,null,null,null,null,null,null,null,null,null,null,null,"за январь - ",{"$f":"IF(ФОРМА!H24=\"\",\"-\",ФОРМА!H24)","v":"-"},null,null,null,null,null,null,null,null,null,null,null,null,null,null,{"$f":"IF(ФОРМА!I24=\"\",\"-\",ФОРМА!I24)","v":"-"},null,null,null,null,null,"г."]
[null,null,null,null,null,null,null,null,null,null,null,null,null,null,null,null,null,null,null,null,null,null,null,null,null,null,null,null,null,null,"(нарастающим итогом)"]
[]
[null,"Представляют:",null,null,null,null,null,null,null,null,null,null,null,null,null,null,null,null,null,null,null,null,null,null,null,null,null,null,null,null,null,null,null,null,null,null,null,null,null,null,null,null,null,null,null,null,null,null,null,null,null,null,null,null,null,null,null,null,null,null,null,null,null,null,null,null,null,null,null,null,null,null,null,null,null,null,null,null,null,null,null,null,"Сроки представления",null,null,null,null,null,null,null,null,null,null,null,null,null,null,null,null,null,null,null,null,null,null,null,null,null,null,null,null,null,null,null,null,null,null,null,null,null,null,null,null,null,null,"Форма № 2-ДМ"]
[null,null,"юридические лица, физические лица, занимающиеся предпринимательской деятельностью без образования юридического лица (индивидуальные предприниматели), осуществляющие операции с драгоценными металлами:",null,null,null,null,null,null,null,null,null,null,null,null,null,null,null,null,null,null,null,null,null,null,null,null,null,null,null,null,null,null,null,null,null,null,null,null,null,null,null,null,null,null,null,null,null,null,null,null,null,null,null,null,null,null,null,null,null,null,null,null,null,null,null,null,null,null,null,null,null,null,null,null,null,null,null,null,null,null,null,"за год - 1 марта,\nза полугодие - 5 августа\nпосле отчетного периода",null,null,null,null,null,null,null,null,null,null,null,null,null,null,null,null,null,null,null,null,null,null,null,null,null,null,null,null,null,null,null,null,null,null,null,null,null,null,null,null,null,null,"Утверждена\nПостановлением Росстата\nот 14.11.2007 № 88"]
[null,null,"-",null,null,null,"Гохрану России (121170, г. Москва, ул. 1812 года, дом 14)"]
[null,null,"Гохран России:",null,null,null,null,null,null,null,null,null,null,null,null,null,null,null,null,null,null,null,null,null,null,null,null,null,null,null,null,null,null,null,null,null,null,null,null,null,null,null,null,null,null,null,null,null,null,null,null,null,null,null,null,null,null,null,null,null,null,null,null,null,null,null,null,null,null,null,null,null,null,null,null,null,null,null,null,null,null,null,"по согласованной \nпрограмме и срокам"]
[null,null,null,null,null,null,null,null,null,null,null,null,null,null,null,null,null,null,null,null,null,null,null,null,null,null,null,null,null,null,null,null,null,null,null,null,null,null,null,null,null,null,null,null,null,null,null,null,null,null,null,null,null,null,null,null,null,null,null,null,null,null,null,null,null,null,null,null,null,null,null,null,null,null,null,null,null,null,null,null,null,null,null,null,null,null,null,null,null,null,null,null,null,null,null,null,null,null,null,null,null,null,null,null,null,null,null,null,null,null,null,null,null,null,null,null,null,null,null,null,null,null,null,null,null,{"$f":"IF(BU11=\"июнь\",\"Полугодовая\",IF(BU11=\"декабрь\",\"Годовая\",\"Полугодовая, годовая\"))","v":"Полугодовая, годовая"}]
[null,null,"-",null,null,null,"Росстату (107450, Москва, ул. Мясницкая, д. 39, строение 1)"]
[]
[null,null,"Наименование отчитывающейся организации (фамилия, имя, отчество индивидуального предпринимателя)"]
[null,null,{"$f":"IF(AND(ФОРМА!E5=\"\",ФОРМА!E8=\"\"),\"-\",IF(ФОРМА!E5=\"\",ФОРМА!E8,IF(ФОРМА!E6=\"\",ФОРМА!E5,ФОРМА!E5&\" (\"&ФОРМА!E6&\")\")))","v":"-"}]
[]
[null,null,"Почтовый адрес",null,null,null,null,null,null,null,null,null,null,null,null,null,null,{"$f":"IF(ФОРМА!E9=\"\",\"-\",ФОРМА!E9)","v":"-"}]
[]
[]
[null,"Линия отрыва (для отчетности, представляемой индивидуальным предпринимателем)"]
[null,"Код\nформы\nпо ОКУД",null,null,null,null,null,null,null,null,null,null,null,null,null,null,"Код "]
[null,null,null,null,null,null,null,null,null,null,null,null,null,null,null,null,"отчитывающейся организации (индивидуального предпринимателя)\nпо ОКПО",null,null,null,null,null,null,null,null,null,null,null,null,null,null,null,null,null,null,null,"вида деятельности\nпо ОКВЭД",null,null,null,null,null,null,null,null,null,null,null,null,null,null,null,null,null,null,null,"территории\nпо ОКАТО",null,null,null,null,null,null,null,null,null,null,null,null,null,null,null,null,null,null,null,"министерства (ведомства), органа управления \nпо ОКОГУ",null,null,null,null,null,null,null,null,null,null,null,null,null,null,null,null,null,null,null,"организационно-правовой формы\nпо ОКОПФ",null,null,null,null,null,null,null,null,null,null,null,null,null,null,null,null,null,null,null,"формы собственности\nпо ОКФС"]
[null,1,null,null,null,null,null,null,null,null,null,null,null,null,null,null,2,null,null,null,null,null,null,null,null,null,null,null,null,null,null,null,null,null,null,null,3,null,null,null,null,null,null,null,null,null,null,null,null,null,null,null,null,null,null,null,4,null,null,null,null,null,null,null,null,null,null,null,null,null,null,null,null,null,null,null,5,null,null,null,null,null,null,null,null,null,null,null,null,null,null,null,null,null,null,null,6,null,null,null,null,null,null,null,null,null,null,null,null,null,null,null,null,null,null,null,7,null,null,null,null,null,null,null,null,null,null,null,null,null,null,null,null,null,null,null,8]
[null,"0607069",null,null,null,null,null,null,null,null,null,null,null,null,null,null,{"$f":"IF(ФОРМА!$E$18=\"\",\"-\",ФОРМА!$E$18)","v":"-"},null,null,null,null,null,null,null,null,null,null,null,null,null,null,null,null,null,null,null,{"$f":"IF(ФОРМА!$E$19=\"\",\"-\",ФОРМА!$E$19)","v":"-"},null,null,null,null,null,null,null,null,null,null,null,null,null,null,null,null,null,null,null,{"$f":"IF(ФОРМА!$E$20=\"\",\"-\",ФОРМА!$E$20)","v":"-"},null,null,null,null,null,null,null,null,null,null,null,null,null,null,null,null,null,null,null,{"$f":"IF(ФОРМА!$E$21=\"\",\"-\",ФОРМА!$E$21)","v":"-"},null,null,null,null,null,null,null,null,null,null,null,null,null,null,null,null,null,null,null,{"$f":"IF(ФОРМА!$E$22=\"\",\"-\",ФОРМА!$E$22)","v":"-"},null,null,null,null,null,null,null,null,null,null,null,null,null,null,null,null,null,null,null,{"$f":"IF(ФОРМА!$E$23=\"\",\"-\",ФОРМА!$E$23)","v":"-"}]

{"sheet":"2) ","index":6,"n_rows":28,"n_cols":173,"rows_kept":28,"cut":false,"hidden":false,"merged":[[2,69,3,81],[1,47,3,58],[2,59,3,68],[1,59,1,81],[1,1,3,25],[16,32,16,46],[16,26,16,31],[13,32,13,46],[14,32,14,46],[15,26,15,31],[15,32,15,46],[13,26,13,31],[14,26,14,31],[13,2,13,25],[15,2,15,25],[14,2,14,25],[16,2,16,25],[9,2,9,25],[7,2,7,25],[8,2,8,25],[7,26,7,31],[6,26,6,31],[5,32,5,46],[10,2,10,25],[4,26,4,31],[4,1,4,25],[10,92,10,107],[10,108,10,122],[11,92,11,107],[11,108,11,122],[5,2,5,25],[5,26,5,31],[6,2,6,25],[5,92,5,107],[6,92,6,107],[4,82,4,91],[11,69,11,81],[10,69,10,81],[5,108,5,122],[4,59,4,68],[4,69,4,81],[4,32,4,46],[4,47,4,58],[5,47,5,57],[5,59,5,67],[6,59,6,67],[6,47,6,57],[11,157,11,173],[12,157,12,173],[9,157,9,173],[10,157,10,173],[10,144,10,156],[12,92,12,107],[12,108,12,122],[11,133,11,143],[16,133,16,143],[16,157,16,173],[14,157,14,173],[16,144,16,156],[15,157,15,173],[15,133,15,143],[13,157,13,173],[14,133,14,143],[14,144,14,156],[15,144,15,156],[12,133,12,143],[12,144,12,156],[13,133,13,143],[13,144,13,156],[11,144,11,156],[10,133,10,143],[3,92,3,107],[2,82,3,91],[1,26,3,31],[5,144,5,156],[6,133,6,143],[9,92,9,107],[9,108,9,122],[9,133,9,143],[9,26,9,31],[9,69,9,81],[8,26,8,31],[8,69,8,81],[5,69,5,81],[2,133,2,156],[3,133,3,143],[3,144,3,156],[4,92,4,107],[4,108,4,122],[4,123,4,132],[7,69,7,81],[9,144,9,156],[1,32,3,46],[6,32,6,46],[6,69,6,81],[1,157,3,173],[1,123,1,156],[1,82,1,122],[2,123,3,132],[3,108,3,122],[8,157,8,173],[4,133,4,143],[4,144,4,156],[8,92,8,107],[8,108,8,122],[8,133,8,143],[8,144,8,156],[6,144,6,156],[7,144,7,156],[2,92,2,122],[5,133,5,143],[7,133,7,143],[4,157,4,173],[5,157,5,173],[7,157,7,173],[6,108,6,122],[7,92,7,107],[7,108,7,122],[6,157,6,173],[12,69,12,81],[16,69,16,81],[7,32,7,46],[15,47,15,57],[16,47,16,57],[13,59,13,67],[14,59,14,67],[15,59,15,67],[16,59,16,67],[8,47,8,57],[9,47,9,57],[10,47,10,57],[11,47,11,57],[12,47,12,57],[13,47,13,57],[14,69,14,81],[13,69,13,81],[15,69,15,81],[12,2,12,25],[10,32,10,46],[11,32,11,46],[12,32,12,46],[12,26,12,31],[10,26,10,31],[11,2,11,25],[11,26,11,31],[7,59,7,67],[8,59,8,67],[9,59,9,67],[10,59,10,67],[11,59,11,67],[12,59,12,67],[8,32,8,46],[9,32,9,46],[7,47,7,57],[27,37,27,61],[27,65,27,100],[19,1,19,157],[26,75,26,88],[26,89,26,93],[26,97,26,100],[26,37,26,61],[26,65,26,66],[24,106,24,130],[25,37,25,61],[25,65,25,100],[25,106,25,130],[22,37,22,70],[22,75,22,100],[26,72,26,74],[26,94,26,96],[21,75,21,100],[23,65,24,100],[23,37,24,61],[20,37,21,70],[26,67,26,71],[13,82,13,90],[14,47,14,57],[14,82,14,90],[15,82,15,90],[16,82,16,90],[16,92,16,107],[14,92,14,107],[15,92,15,107],[13,92,13,107],[14,123,14,131],[15,123,15,131],[16,123,16,131],[5,82,5,90],[6,82,6,90],[7,82,7,90],[8,82,8,90],[9,82,9,90],[5,123,5,131],[6,123,6,131],[7,123,7,131],[8,123,8,131],[9,123,9,131],[10,123,10,131],[11,123,11,131],[12,123,12,131],[13,123,13,131],[16,108,16,122],[15,108,15,122],[13,108,13,122],[14,108,14,122],[12,82,12,90],[10,82,10,90],[11,82,11,90]]}
[null,null,null,null,null,null,null,null,null,null,null,null,null,null,null,null,null,null,null,null,null,null,null,null,null,null,null,null,null,null,null,null,null,null,null,null,null,null,null,null,null,null,null,null,null,null,null,null,null,null,null,null,null,null,null,null,null,null,null,null,null,null,null,null,null,null,null,null,null,null,null,null,null,null,null,null,null,null,null,null,null,null,null,null,null,null,null,null,null,null,null,null,null,null,null,null,null,null,null,null,null,null,null,null,null,null,null,null,null,null,null,null,null,null,null,null,null,null,null,null,null,null,null,null,null,null,null,null,null,null,null,null,null,null,null,null,null,null,null,null,null,null,null,null,null,null,null,null,null,null,null,null,null,null,null,null,null,null,null,null,null,null,null,null,null,null,null,null,null,null,null,null,"Код по ОКЕИ: грамм - 163"]
[null,"Драгоценные металлы\nи изделия из них",null,null,null,null,null,null,null,null,null,null,null,null,null,null,null,null,null,null,null,null,null,null,null,null,"№\nстро-ки",null,null,null,null,null,"Код\nпо ОКП",null,null,null,null,null,null,null,null,null,null,null,null,null,null,"Остаток\nна начало отчетного года",null,null,null,null,null,null,null,null,null,null,null,"Поступило с начала отчетного года",null,null,null,null,null,null,null,null,null,null,null,null,null,null,null,null,null,null,null,null,null,null,"Израсходовано с начала отчетного\nгода",null,null,null,null,null,null,null,null,null,null,null,null,null,null,null,null,null,null,null,null,null,null,null,null,null,null,null,null,null,null,null,null,null,null,null,null,null,null,null,null,"Остаток на конец отчетного периода",null,null,null,null,null,null,null,null,null,null,null,null,null,null,null,null,null,null,null,null,null,null,null,null,null,null,null,null,null,null,null,null,null,"Кроме того, остатки драгоценных металлов, не поддающихся взвешиванию, в незавершенном производстве на конец отчетного периода"]
[null,null,null,null,null,null,null,null,null,null,null,null,null,null,null,null,null,null,null,null,null,null,null,null,null,null,null,null,null,null,null,null,null,null,null,null,null,null,null,null,null,null,null,null,null,null,null,null,null,null,null,null,null,null,null,null,null,null,null,"всего",null,null,null,null,null,null,null,null,null,"в том числе\nв счет пла-на отпуска драгоцен-ных метал-лов из Гос-фонда России",null,null,null,null,null,null,null,null,null,null,null,null,"всего",null,null,null,null,null,null,null,null,null,"в том числе:",null,null,null,null,null,null,null,null,null,null,null,null,null,null,null,null,null,null,null,null,null,null,null,null,null,null,null,null,null,null,"всего",null,null,null,null,null,null,null,null,null,"в том числе:"]
[null,null,null,null,null,null,null,null,null,null,null,null,null,null,null,null,null,null,null,null,null,null,null,null,null,null,null,null,null,null,null,null,null,null,null,null,null,null,null,null,null,null,null,null,null,null,null,null,null,null,null,null,null,null,null,null,null,null,null,null,null,null,null,null,null,null,null,null,null,null,null,null,null,null,null,null,null,null,null,null,null,null,null,null,null,null,null,null,null,null,null,null,"на производст-венные нужды, научно-иссле-довательские цели, включая отходы\nи потери",null,null,null,null,null,null,null,null,null,null,null,null,null,null,null,"реализовано другим организациям",null,null,null,null,null,null,null,null,null,null,null,null,null,null,null,null,null,null,null,null,null,null,null,null,"в сырье, полуфаб-рикатах \nи незавер-шенном произ-водстве",null,null,null,null,null,null,null,null,null,null,"в оборудо-вании и ла-бораторной посуде"]
[null,1,null,null,null,null,null,null,null,null,null,null,null,null,null,null,null,null,null,null,null,null,null,null,null,null,2,null,null,null,null,null,3,null,null,null,null,null,null,null,null,null,null,null,null,null,null,4,null,null,null,null,null,null,null,null,null,null,null,5,null,null,null,null,null,null,null,null,null,6,null,null,null,null,null,null,null,null,null,null,null,null,7,null,null,null,null,null,null,null,null,null,8,null,null,null,null,null,null,null,null,null,null,null,null,null,null,null,9,null,null,null,null,null,null,null,null,null,null,null,null,null,null,10,null,null,null,null,null,null,null,null,null,11,null,null,null,null,null,null,null,null,null,null,12,null,null,null,null,null,null,null,null,null,null,null,null,13]
[null,null,"Золото",null,null,null,null,null,null,null,null,null,null,null,null,null,null,null,null,null,null,null,null,null,null,null,"01",null,null,null,null,null,"175340",null,null,null,null,null,null,null,null,null,null,null,null,null,null,null,null,null,null,null,null,null,null,null,null,null,{"$f":"IF(ISERROR(1+AV6),0,AV6)","v":0},null,null,null,null,null,null,null,null,null,{"$f":"IF(ISERROR(1+BH6),0,BH6)","v":0},null,null,null,null,null,null,null,null,null,null,null,null,null,null,null,null,null,null,null,null,null,null,{"$f":"IF(ISERROR(1+CE6),0,CE6)","v":0},null,null,null,null,null,null,null,null,null,null,null,null,null,null,null,null,null,null,null,null,null,null,null,null,null,null,null,null,null,null,null,{"$f":"IF(AND(AV6=\"\",BH6=\"\",CE6=\"\"),\"\",IF(EC6=0,\"-\",EC6))","v":""},null,null,null,null,null,null,null,null,{"$f":"BG6+BQ6-CN6","v":0}]
[null,null,"Серебро",null,null,null,null,null,null,null,null,null,null,null,null,null,null,null,null,null,null,null,null,null,null,null,"02",null,null,null,null,null,"175220",null,null,null,null,null,null,null,null,null,null,null,null,null,null,null,null,null,null,null,null,null,null,null,null,null,{"$f":"IF(ISERROR(1+AV7),0,AV7)","v":0},null,null,null,null,null,null,null,null,null,{"$f":"IF(ISERROR(1+BH7),0,BH7)","v":0},null,null,null,null,null,null,null,null,null,null,null,null,null,null,null,null,null,null,null,null,null,null,{"$f":"IF(ISERROR(1+CE7),0,CE7)","v":0},null,null,null,null,null,null,null,null,null,null,null,null,null,null,null,null,null,null,null,null,null,null,null,null,null,null,null,null,null,null,null,{"$f":"IF(AND(AV7=\"\",BH7=\"\",CE7=\"\"),\"\",IF(EC7=0,\"-\",EC7))","v":""},null,null,null,null,null,null,null,null,{"$f":"BG7+BQ7-CN7","v":0}]
[null,null,"Соли серебра для химанализов в пересчете на металл",null,null,null,null,null,null,null,null,null,null,null,null,null,null,null,null,null,null,null,null,null,null,null,"03",null,null,null,null,null,"1752408801 ***",null,null,null,null,null,null,null,null,null,null,null,null,null,null,null,null,null,null,null,null,null,null,null,null,null,0,null,null,null,null,null,null,null,null,null,0,null,null,null,null,null,null,null,null,null,null,null,null,null,null,null,null,null,null,null,null,null,null,0,null,null,null,null,null,null,null,null,null,null,null,null,null,null,null,null,null,null,null,null,null,null,null,null,null,null,null,null,null,null,null,"",null,null,null,null,null,null,null,null,0,null,null,null,null,null,null,null,null,null,null,null,"Х",null,null,null,null,null,null,null,null,null,null,null,null,"Х"]
[null,null,"Платина",null,null,null,null,null,null,null,null,null,null,null,null,null,null,null,null,null,null,null,null,null,null,null,"04",null,null,null,null,null,"175120",null,null,null,null,null,null,null,null,null,null,null,null,null,null,null,null,null,null,null,null,null,null,null,null,null,0,null,null,null,null,null,null,null,null,null,0,null,null,null,null,null,null,null,null,null,null,null,null,null,null,null,null,null,null,null,null,null,null,0,null,null,null,null,null,null,null,null,null,null,null,null,null,null,null,null,null,null,null,null,null,null,null,null,null,null,null,null,null,null,null,"",null,null,null,null,null,null,null,null,0]
[null,null,"Платина в лабораторной посуде для химанализов",null,null,null,null,null,null,null,null,null,null,null,null,null,null,null,null,null,null,null,null,null,null,null,"05",null,null,null,null,null,"1995000001 ***",null,null,null,null,null,null,null,null,null,null,null,null,null,null,null,null,null,null,null,null,null,null,null,null,null,0,null,null,null,null,null,null,null,null,null,0,null,null,null,null,null,null,null,null,null,null,null,null,null,null,null,null,null,null,null,null,null,null,0,null,null,null,null,null,null,null,null,null,null,null,null,null,null,null,null,null,null,null,null,null,null,null,null,null,null,null,null,null,null,null,"",null,null,null,null,null,null,null,null,0,"Х",null,null,null,null,null,null,null,null,null,null,null,null,null,null,null,null,null,null,null,null,null,null,null,"Х"]
[null,null,"Иридий",null,null,null,null,null,null,null,null,null,null,null,null,null,null,null,null,null,null,null,null,null,null,null,"06",null,null,null,null,null,"175171",null,null,null,null,null,null,null,null,null,null,null,null,null,null,null,null,null,null,null,null,null,null,null,null,null,0,null,null,null,null,null,null,null,null,null,0,null,null,null,null,null,null,null,null,null,null,null,null,null,null,null,null,null,null,null,null,null,null,0,null,null,null,null,null,null,null,null,null,null,null,null,null,null,null,null,null,null,null,null,null,null,null,null,null,null,null,null,null,null,null,"",null,null,null,null,null,null,null,null,0]
[null,null,"Родий",null,null,null,null,null,null,null,null,null,null,null,null,null,null,null,null,null,null,null,null,null,null,null,"07",null,null,null,null,null,"175161",null,null,null,null,null,null,null,null,null,null,null,null,null,null,null,null,null,null,null,null,null,null,null,null,null,0,null,null,null,null,null,null,null,null,null,0,null,null,null,null,null,null,null,null,null,null,null,null,null,null,null,null,null,null,null,null,null,null,0,null,null,null,null,null,null,null,null,null,null,null,null,null,null,null,null,null,null,null,null,null,null,null,null,null,null,null,null,null,null,null,"",null,null,null,null,null,null,null,null,0]
[null,null,"Палладий",null,null,null,null,null,null,null,null,null,null,null,null,null,null,null,null,null,null,null,null,null,null,null,"08",null,null,null,null,null,"175140",null,null,null,null,null,null,null,null,null,null,null,null,null,null,null,null,null,null,null,null,null,null,null,null,null,0,null,null,null,null,null,null,null,null,null,0,null,null,null,null,null,null,null,null,null,null,null,null,null,null,null,null,null,null,null,null,null,null,0,null,null,null,null,null,null,null,null,null,null,null,null,null,null,null,null,null,null,null,null,null,null,null,null,null,null,null,null,null,null,null,"",null,null,null,null,null,null,null,null,0]
[null,null,"Рутений",null,null,null,null,null,null,null,null,null,null,null,null,null,null,null,null,null,null,null,null,null,null,null,"09",null,null,null,null,null,"175181",null,null,null,null,null,null,null,null,null,null,null,null,null,null,null,null,null,null,null,null,null,null,null,null,null,0,null,null,null,null,null,null,null,null,null,0,null,null,null,null,null,null,null,null,null,null,null,null,null,null,null,null,null,null,null,null,null,null,0,null,null,null,null,null,null,null,null,null,null,null,null,null,null,null,null,null,null,null,null,null,null,null,null,null,null,null,null,null,null,null,"",null,null,null,null,null,null,null,null,0]
[null,null,"Осмий",null,null,null,null,null,null,null,null,null,null,null,null,null,null,null,null,null,null,null,null,null,null,null,"10",null,null,null,null,null,"175191",null,null,null,null,null,null,null,null,null,null,null,null,null,null,null,null,null,null,null,null,null,null,null,null,null,0,null,null,null,null,null,null,null,null,null,0,null,null,null,null,null,null,null,null,null,null,null,null,null,null,null,null,null,null,null,null,null,null,0,null,null,null,null,null,null,null,null,null,null,null,null,null,null,null,null,null,null,null,null,null,null,null,null,null,null,null,null,null,null,null,"",null,null,null,null,null,null,null,null,0]
[null,null,"Сусальное золото",null,null,null,null,null,null,null,null,null,null,null,null,null,null,null,null,null,null,null,null,null,null,null,"11",null,null,null,null,null,"186780",null,null,null,null,null,null,null,null,null,null,null,null,null,null,null,null,null,null,null,null,null,null,null,null,null,0,null,null,null,null,null,null,null,null,null,0,null,null,null,null,null,null,null,null,null,null,null,null,null,null,null,null,null,null,null,null,null,null,0,null,null,null,null,null,null,null,null,null,null,null,null,null,null,null,null,null,null,null,null,null,null,null,null,null,null,null,null,null,null,null,"",null,null,null,null,null,null,null,null,0,null,null,null,null,null,null,null,null,null,null,null,"Х",null,null,null,null,null,null,null,null,null,null,null,null,"Х"]
[null,null,"Платинородиевые термопары \n",null,null,null,null,null,null,null,null,null,null,null,null,null,null,null,null,null,null,null,null,null,null,null,"12",null,null,null,null,null,"4211518801 ***",null,null,null,null,null,null,null,null,null,null,null,null,null,null,null,null,null,null,null,null,null,null,null,null,null,0,null,null,null,null,null,null,null,null,null,0,null,null,null,null,null,null,null,null,null,null,null,null,null,null,null,null,null,null,null,null,null,null,0,null,null,null,null,null,null,null,null,null,null,null,null,null,null,null,null,null,null,null,null,null,null,null,null,null,null,null,null,null,null,null,"",null,null,null,null,null,null,null,null,0,null,null,null,null,null,null,null,null,null,null,null,null,null,null,null,null,null,null,null,null,null,null,null,null,"Х"]
[]
[null,"_____***_Локальный код."]
[null,"Линия отрыва (для отчетности, представляемой индивидуальным предпринимателем)"]
[null,"Руководитель организации",null,null,null,null,null,null,null,null,null,null,null,null,null,null,null,null,null,null,null,null,null,null,null,null,null,null,null,null,null,null,null,null,null,null,null,{"$f":"IFERROR(IF(AND(ФОРМА!E7=\"\",ФОРМА!E8=\"\"),\"-\",IF(ФОРМА!E7=\"\",CONCATENATE(LEFT(TRIM(ФОРМА!E8),FIND(\" \",TRIM(ФОРМА!E8),1)),MID(TRIM(ФОРМА!E8),FIND(\" \",TRIM(ФОРМА!E8),1)+1,1),\".\",MID(TRIM(ФОРМА!E8),FIND(\" \",TRIM(ФОРМА!E8),FIND(\" \",TRIM(ФОРМА!E8),1)+1)+1,1),\".\"),CONCATENATE(LEFT(TRIM(ФОРМА!E7),FIND(\" \",TRIM(ФОРМА!E7),1)),MID(TRIM(ФОРМА!E7),FIND(\" \",TRIM(ФОРМА!E7),1)+1,1),\".\",MID(TRIM(ФОРМА!E7),FIND(\" \",TRIM(ФОРМА!E7),FIND(\" \",TRIM(ФОРМА!E7),1)+1)+1,1),\".\"))),\"Данные введены некорректно\")","v":"-"}]
[null,"(индивидуальный предприниматель)"]
[null,null,null,null,null,null,null,null,null,null,null,null,null,null,null,null,null,null,null,null,null,null,null,null,null,null,null,null,null,null,null,null,null,null,null,null,null,"(Ф.И.О.)",null,null,null,null,null,null,null,null,null,null,null,null,null,null,null,null,null,null,null,null,null,null,null,null,null,null,null,null,null,null,null,null,null,null,null,null,null,"(подпись)"]
[null,"Должностное лицо, ответственное ",null,null,null,null,null,null,null,null,null,null,null,null,null,null,null,null,null,null,null,null,null,null,null,null,null,null,null,null,null,null,null,null,null,null,null,{"$f":"IF(ФОРМА!E25=\"\",\"-\",ФОРМА!E25)","v":"-"},null,null,null,null,null,null,null,null,null,null,null,null,null,null,null,null,null,null,null,null,null,null,null,null,null,null,null,{"$f":"IFERROR(IF(ФОРМА!E26=\"\",\"-\",CONCATENATE(LEFT(TRIM(ФОРМА!E26),FIND(\" \",TRIM(ФОРМА!E26),1)),MID(TRIM(ФОРМА!E26),FIND(\" \",TRIM(ФОРМА!E26),1)+1,1),\".\",MID(TRIM(ФОРМА!E26),FIND(\" \",TRIM(ФОРМА!E26),FIND(\" \",TRIM(ФОРМА!E26),1)+1)+1,1),\".\")),\"Данные введены некорректно\")","v":"-"}]
[null,"за составление формы"]
[null,null,null,null,null,null,null,null,null,null,null,null,null,null,null,null,null,null,null,null,null,null,null,null,null,null,null,null,null,null,null,null,null,null,null,null,null,"(должность)",null,null,null,null,null,null,null,null,null,null,null,null,null,null,null,null,null,null,null,null,null,null,null,null,null,null,null,"(Ф.И.О.)",null,null,null,null,null,null,null,null,null,null,null,null,null,null,null,null,null,null,null,null,null,null,null,null,null,null,null,null,null,null,null,null,null,null,null,null,null,null,null,null,"(подпись)"]
[null,null,null,null,null,null,null,null,null,null,null,null,null,null,null,null,null,null,null,null,null,null,null,null,null,null,null,null,null,null,null,null,null,null,null,null,null,{"$f":"IF(ФОРМА!E27=\"\",\"-\",ФОРМА!E27)","v":"-"},null,null,null,null,null,null,null,null,null,null,null,null,null,null,null,null,null,null,null,null,null,null,null,null,null,null,null,"«",null,null,null,null,null,null,"»",null,null,null,null,null,null,null,null,null,null,null,null,null,null,null,null,20,null,null,null,null,null,null,null," год"]
[null,null,null,null,null,null,null,null,null,null,null,null,null,null,null,null,null,null,null,null,null,null,null,null,null,null,null,null,null,null,null,null,null,null,null,null,null,"(номер контактного телефона)",null,null,null,null,null,null,null,null,null,null,null,null,null,null,null,null,null,null,null,null,null,null,null,null,null,null,null,"(дата составления документа)"]

{"sheet":"П ","index":7,"n_rows":0,"n_cols":0,"rows_kept":0,"cut":false,"hidden":false,"merged":[]}

{"sheet":"пр2дм(1,","index":8,"n_rows":31,"n_cols":137,"rows_kept":31,"cut":false,"hidden":false,"merged":[[26,1,26,151],[13,123,13,153],[16,82,18,116],[14,2,14,81],[14,82,15,116],[15,2,15,5],[15,6,15,81],[18,2,18,5],[17,125,18,151],[16,2,17,81],[24,1,24,151],[22,1,22,151],[13,1,13,81],[13,82,13,116],[18,6,18,81],[14,123,16,153],[0,20,0,136],[4,14,4,142],[2,20,2,136],[6,20,6,136],[8,30,8,126],[9,30,9,126],[10,72,10,85],[10,87,10,92],[11,30,11,126],[30,76,30,95],[30,96,30,115],[21,2,21,150],[23,17,23,150],[30,116,30,135],[30,136,30,155],[29,116,29,135],[29,136,29,155],[30,1,30,15],[30,16,30,35],[30,36,30,55],[30,56,30,75],[27,1,28,15],[27,16,27,155],[28,16,28,35],[28,36,28,55],[28,56,28,75],[28,76,28,95],[28,96,28,115],[28,116,28,135],[28,136,28,155],[29,96,29,115],[29,1,29,15],[29,16,29,35],[29,36,29,55],[29,56,29,75],[29,76,29,95]]}
[null,null,null,null,null,null,null,null,null,null,null,null,null,null,null,null,null,null,null,null,"ФЕДЕРАЛЬНОЕ ГОСУДАРСТВЕННОЕ СТАТИСТИЧЕСКОЕ НАБЛЮДЕНИЕ"]
[]
[null,null,null,null,null,null,null,null,null,null,null,null,null,null,null,null,null,null,null,null,"КОНФИДЕНЦИАЛЬНОСТЬ ГАРАНТИРУЕТСЯ ПОЛУЧАТЕЛЕМ ИНФОРМАЦИИ"]
[]
[null,null,null,null,null,null,null,null,null,null,null,null,null,null,"Нарушение порядка представления статистической информации, а равно представление недостоверной статистической информации\nвлечет ответственность, установленную статьей 13.19 Кодекса Российской Федерации об административных правонарушениях\n от 30.12.2001 № 195-ФЗ, а также статьей 3 Закона Российской Федерации от 13.05.92 № 2761-1 \"Об ответственности за нарушение\n порядка представления государственной статистической отчетности\""]
[]
[null,null,null,null,null,null,null,null,null,null,null,null,null,null,null,null,null,null,null,null,"В соответствии со статьей 6 Федерального закона от 27.07.2006 № 152-ФЗ \"О персональных данных\" обработка персональных данных осуществляется для статистических целей при условии обязательного обезличивания персональных данных"]
[]
[null,null,null,null,null,null,null,null,null,null,null,null,null,null,null,null,null,null,null,null,null,null,null,null,null,null,null,null,null,null,"СВЕДЕНИЯ ОБ ОСТАТКАХ, ПОСТУПЛЕНИИ И СДАЧЕ ДРАГОЦЕННЫХ МЕТАЛЛОВ "]
[null,null,null,null,null,null,null,null,null,null,null,null,null,null,null,null,null,null,null,null,null,null,null,null,null,null,null,null,null,null,"В ВИДЕ ЛОМА И ОТХОДОВ ДЛЯ ПОСЛЕДУЮЩЕЙ ПЕРЕРАБОТКИ И АФФИНАЖА"]
[null,null,null,null,null,null,null,null,null,null,null,null,null,null,null,null,null,null,null,null,null,null,null,null,null,null,null,null,null,null,null,null,null,null,null,null,null,null,null,null,null,null,null,null,null,null,null,null,null,null,null,null,null,null,null,null,null,null,null,null,null,null,null,null,null,null,null,null,null,null,null,"за январь - ",{"$f":"IF(ФОРМА!H24=\"\",\"-\",ФОРМА!H24)","v":"-"},null,null,null,null,null,null,null,null,null,null,null,null,null,null,{"$f":"IF(ФОРМА!I24=\"\",\"-\",ФОРМА!I24)","v":"-"},null,null,null,null,null,"г."]
[null,null,null,null,null,null,null,null,null,null,null,null,null,null,null,null,null,null,null,null,null,null,null,null,null,null,null,null,null,null,"(нарастающим итогом)"]
[]
[null,"Представляют:",null,null,null,null,null,null,null,null,null,null,null,null,null,null,null,null,null,null,null,null,null,null,null,null,null,null,null,null,null,null,null,null,null,null,null,null,null,null,null,null,null,null,null,null,null,null,null,null,null,null,null,null,null,null,null,null,null,null,null,null,null,null,null,null,null,null,null,null,null,null,null,null,null,null,null,null,null,null,null,null,"Сроки представления",null,null,null,null,null,null,null,null,null,null,null,null,null,null,null,null,null,null,null,null,null,null,null,null,null,null,null,null,null,null,null,null,null,null,null,null,null,null,null,null,"Приложение к форме № 2-ДМ"]
[null,null,"юридические лица, физические лица, занимающиеся предпринимательской деятельностью без образования юридического лица (индивидуальные предприниматели), осуществляющие операции с драгоценными металлами \nи их сдачу в виде лома и отходов:",null,null,null,null,null,null,null,null,null,null,null,null,null,null,null,null,null,null,null,null,null,null,null,null,null,null,null,null,null,null,null,null,null,null,null,null,null,null,null,null,null,null,null,null,null,null,null,null,null,null,null,null,null,null,null,null,null,null,null,null,null,null,null,null,null,null,null,null,null,null,null,null,null,null,null,null,null,null,null,"за год - 1 марта,\nза полугодие - 5 августа\nпосле отчетного периода",null,null,null,null,null,null,null,null,null,null,null,null,null,null,null,null,null,null,null,null,null,null,null,null,null,null,null,null,null,null,null,null,null,null,null,null,null,null,null,null,"Утверждена\nПостановлением Росстата\nот 14.11.2007 № 88"]
[null,null,"-",null,null,null,"Гохрану России (121170, г. Москва, ул. 1812 года, дом 14)"]
[null,null,"Гохран России:",null,null,null,null,null,null,null,null,null,null,null,null,null,null,null,null,null,null,null,null,null,null,null,null,null,null,null,null,null,null,null,null,null,null,null,null,null,null,null,null,null,null,null,null,null,null,null,null,null,null,null,null,null,null,null,null,null,null,null,null,null,null,null,null,null,null,null,null,null,null,null,null,null,null,null,null,null,null,null,"по согласованной \nпрограмме и срокам"]
[null,null,null,null,null,null,null,null,null,null,null,null,null,null,null,null,null,null,null,null,null,null,null,null,null,null,null,null,null,null,null,null,null,null,null,null,null,null,null,null,null,null,null,null,null,null,null,null,null,null,null,null,null,null,null,null,null,null,null,null,null,null,null,null,null,null,null,null,null,null,null,null,null,null,null,null,null,null,null,null,null,null,null,null,null,null,null,null,null,null,null,null,null,null,null,null,null,null,null,null,null,null,null,null,null,null,null,null,null,null,null,null,null,null,null,null,null,null,null,null,null,null,null,null,null,{"$f":"IF(BU11=\"июнь\",\"Полугодовая\",IF(BU11=\"декабрь\",\"Годовая\",\"Полугодовая, годовая\"))","v":"Полугодовая, годовая"}]
[null,null,"-",null,null,null,"Росстату (107450, г. Москва, ул. Мясницкая, д. 39, строение 1)"]
[]
[null,null,"Наименование отчитывающейся организации (фамилия, имя, отчество индивидуального предпринимателя)"]
[null,null,{"$f":"IF(AND(ФОРМА!E5=\"\",ФОРМА!E8=\"\"),\"-\",IF(ФОРМА!E5=\"\",ФОРМА!E8,IF(ФОРМА!E6=\"\",ФОРМА!E5,ФОРМА!E5&\" (\"&ФОРМА!E6&\")\")))","v":"-"}]
[]
[null,null,"Почтовый адрес",null,null,null,null,null,null,null,null,null,null,null,null,null,null,{"$f":"IF(ФОРМА!E9=\"\",\"-\",ФОРМА!E9)","v":"-"}]
[]
[]
[null,"Линия отрыва (для отчетности, представляемой индивидуальным предпринимателем)"]
[null,"Код\nформы\nпо ОКУД",null,null,null,null,null,null,null,null,null,null,null,null,null,null,"Код "]
[null,null,null,null,null,null,null,null,null,null,null,null,null,null,null,null,"отчитывающейся организации (индивидуального предпринимателя)\nпо ОКПО",null,null,null,null,null,null,null,null,null,null,null,null,null,null,null,null,null,null,null,"вида деятельности\nпо ОКВЭД",null,null,null,null,null,null,null,null,null,null,null,null,null,null,null,null,null,null,null,"территории\nпо ОКАТО",null,null,null,null,null,null,null,null,null,null,null,null,null,null,null,null,null,null,null,"министерства (ведомства), органа управления \nпо ОКОГУ",null,null,null,null,null,null,null,null,null,null,null,null,null,null,null,null,null,null,null,"организационно-правовой формы\nпо ОКОПФ",null,null,null,null,null,null,null,null,null,null,null,null,null,null,null,null,null,null,null,"формы собственности\nпо ОКФС"]
[null,1,null,null,null,null,null,null,null,null,null,null,null,null,null,null,2,null,null,null,null,null,null,null,null,null,null,null,null,null,null,null,null,null,null,null,3,null,null,null,null,null,null,null,null,null,null,null,null,null,null,null,null,null,null,null,4,null,null,null,null,null,null,null,null,null,null,null,null,null,null,null,null,null,null,null,5,null,null,null,null,null,null,null,null,null,null,null,null,null,null,null,null,null,null,null,6,null,null,null,null,null,null,null,null,null,null,null,null,null,null,null,null,null,null,null,7,null,null,null,null,null,null,null,null,null,null,null,null,null,null,null,null,null,null,null,8]
[null,"0607070",null,null,null,null,null,null,null,null,null,null,null,null,null,null,{"$f":"IF(ФОРМА!$E$18=\"\",\"-\",ФОРМА!$E$18)","v":"-"},null,null,null,null,null,null,null,null,null,null,null,null,null,null,null,null,null,null,null,{"$f":"IF(ФОРМА!$E$19=\"\",\"-\",ФОРМА!$E$19)","v":"-"},null,null,null,null,null,null,null,null,null,null,null,null,null,null,null,null,null,null,null,{"$f":"IF(ФОРМА!$E$20=\"\",\"-\",ФОРМА!$E$20)","v":"-"},null,null,null,null,null,null,null,null,null,null,null,null,null,null,null,null,null,null,null,{"$f":"IF(ФОРМА!$E$21=\"\",\"-\",ФОРМА!$E$21)","v":"-"},null,null,null,null,null,null,null,null,null,null,null,null,null,null,null,null,null,null,null,{"$f":"IF(ФОРМА!$E$22=\"\",\"-\",ФОРМА!$E$22)","v":"-"},null,null,null,null,null,null,null,null,null,null,null,null,null,null,null,null,null,null,null,{"$f":"IF(ФОРМА!$E$23=\"\",\"-\",ФОРМА!$E$23)","v":"-"}]

{"sheet":"2,3)","index":9,"n_rows":50,"n_cols":165,"rows_kept":50,"cut":false,"hidden":false,"merged":[[20,2,20,65],[19,66,20,73],[28,1,29,65],[28,66,29,73],[46,105,46,130],[47,38,47,61],[47,66,47,100],[47,105,47,130],[29,117,29,133],[26,86,26,99],[26,101,26,115],[26,117,26,132],[27,86,27,99],[31,66,31,73],[32,2,32,65],[32,66,32,73],[30,74,30,85],[27,2,27,65],[27,66,27,73],[31,74,31,85],[31,2,31,65],[39,2,39,65],[35,66,35,73],[36,66,36,73],[48,93,48,95],[48,96,48,100],[48,38,48,61],[48,66,48,67],[48,68,48,71],[48,72,48,74],[48,75,48,88],[48,89,48,92],[45,66,46,100],[45,38,46,61],[1,86,2,100],[24,117,24,132],[25,117,25,132],[4,2,4,65],[4,66,4,73],[5,2,5,65],[16,2,16,65],[9,2,9,65],[11,74,12,85],[15,2,15,65],[7,74,7,85],[8,74,8,85],[7,2,7,65],[8,2,8,65],[8,66,8,73],[7,66,7,73],[3,1,3,65],[3,66,3,73],[2,117,2,133],[1,117,1,149],[1,101,2,116],[25,134,25,149],[1,74,2,85],[1,66,2,73],[1,1,2,65],[27,74,27,85],[26,2,26,65],[24,101,24,115],[25,101,25,115],[25,2,25,65],[25,66,25,73],[25,74,25,85],[22,2,22,65],[24,2,24,65],[24,66,24,73],[24,74,24,85],[24,86,24,99],[25,86,25,99],[22,86,23,99],[22,100,23,100],[26,66,26,73],[26,74,26,85],[17,74,17,85],[18,74,18,85],[22,66,23,73],[22,74,23,85],[17,2,17,65],[18,2,18,65],[33,164,34,164],[37,86,37,99],[37,101,37,115],[37,117,37,132],[37,150,37,163],[33,86,34,99],[33,100,34,100],[33,101,34,115],[33,116,34,116],[33,117,34,132],[33,133,34,133],[33,150,34,163],[33,134,34,149],[37,74,37,85],[30,134,30,149],[30,1,30,65],[30,66,30,73],[38,134,38,149],[30,86,30,100],[30,101,30,116],[30,117,30,133],[35,134,35,149],[36,134,36,149],[38,101,38,115],[38,117,38,132],[49,38,49,61],[49,66,49,100],[36,2,36,65],[39,66,39,73],[39,74,39,85],[38,66,38,73],[37,66,37,73],[38,74,38,85],[33,2,33,65],[33,66,34,73],[33,74,34,85],[44,75,44,100],[35,74,35,85],[36,74,36,85],[39,86,39,99],[38,2,38,65],[37,2,37,65],[34,2,34,65],[35,2,35,65],[44,38,44,70],[43,75,43,100],[42,38,43,70],[38,86,38,99],[41,1,41,155],[28,74,29,85],[32,74,32,85],[19,74,20,85],[19,2,19,65],[21,2,21,65],[21,66,21,73],[21,74,21,85],[23,2,23,65],[3,117,3,133],[3,74,3,85],[5,66,6,73],[5,74,6,85],[3,86,3,100],[3,101,3,116],[4,74,4,85],[4,117,4,132],[4,101,4,115],[4,86,4,99],[5,117,6,132],[5,101,6,115],[5,86,6,99],[11,86,12,99],[11,101,12,115],[9,74,9,85],[14,2,14,65],[12,2,12,65],[11,2,11,65],[13,2,13,65],[11,117,12,132],[18,66,18,73],[17,66,17,73],[9,86,9,99],[9,101,9,115],[9,117,9,132],[10,86,10,99],[10,101,10,115],[10,117,10,132],[13,66,13,73],[14,66,14,73],[9,66,9,73],[13,74,13,85],[14,74,14,85],[11,66,12,73],[16,66,16,73],[16,74,16,85],[15,66,15,73],[15,74,15,85],[16,86,16,99],[7,86,7,99],[7,101,7,115],[7,117,7,132],[7,150,7,163],[8,86,8,99],[1,150,2,163],[10,2,10,65],[10,74,10,85],[10,66,10,73],[4,150,4,163],[5,150,6,163],[8,134,8,149],[9,134,9,149],[4,134,4,149],[5,134,6,149],[3,150,3,163],[8,150,8,163],[9,150,9,163],[10,150,10,163],[6,2,6,65],[2,134,2,149],[10,134,10,149],[3,134,3,149],[7,134,7,149],[5,164,6,164],[5,133,6,133],[5,116,6,116],[5,100,6,100],[11,100,12,100],[11,116,12,116],[11,133,12,133],[11,164,12,164],[19,164,20,164],[16,101,16,115],[16,117,16,132],[16,150,16,163],[19,134,20,149],[18,134,18,149],[11,134,12,149],[13,134,13,149],[11,150,12,163],[14,134,14,149],[15,134,15,149],[17,134,17,149],[16,134,16,149],[8,101,8,115],[8,117,8,132],[17,86,17,99],[17,101,17,115],[17,117,17,132],[17,150,17,163],[22,164,23,164],[21,86,21,99],[21,101,21,115],[21,117,21,132],[21,150,21,163],[21,134,21,149],[18,86,18,99],[18,101,18,115],[18,117,18,132],[18,150,18,163],[19,86,20,99],[19,100,20,100],[19,101,20,115],[19,116,20,116],[19,117,20,132],[19,133,20,133],[19,150,20,163],[22,134,23,149],[13,86,13,99],[13,101,13,115],[13,117,13,132],[13,150,13,163],[14,86,14,99],[14,101,14,115],[14,117,14,132],[14,150,14,163],[15,86,15,99],[15,101,15,115],[15,117,15,132],[15,150,15,163],[38,150,38,163],[22,101,23,115],[22,116,23,116],[22,117,23,132],[22,133,23,133],[22,150,23,163],[24,134,24,149],[30,150,30,163],[28,150,29,163],[24,150,24,163],[25,150,25,163],[26,150,26,163],[27,101,27,115],[27,117,27,132],[27,150,27,163],[26,134,26,149],[32,134,32,149],[28,117,28,149],[29,134,29,149],[27,134,27,149],[28,86,29,100],[28,101,29,116],[39,101,39,115],[39,117,39,132],[39,150,39,163],[31,86,31,99],[31,101,31,115],[31,117,31,132],[31,150,31,163],[32,86,32,99],[32,101,32,115],[32,117,32,132],[32,150,32,163],[35,86,35,99],[35,101,35,115],[35,117,35,132],[35,150,35,163],[36,86,36,99],[36,101,36,115],[36,117,36,132],[36,150,36,163],[39,134,39,149],[37,134,37,149],[31,134,31,149]]}
[null,null,null,null,null,null,null,null,null,null,null,null,null,null,null,null,null,null,null,null,null,null,null,null,null,null,null,null,null,null,null,null,null,null,null,null,null,null,null,null,null,null,null,null,null,null,null,null,null,null,null,null,null,null,null,null,null,null,null,null,null,null,null,null,null,null,null,null,null,null,null,null,null,null,null,null,null,null,null,null,null,null,null,null,null,null,null,null,null,null,null,null,null,null,null,null,null,null,null,null,null,null,null,null,null,null,null,null,null,null,null,null,null,null,null,null,null,null,null,null,null,null,null,null,null,null,null,null,null,null,null,null,null,null,null,null,null,null,null,null,null,null,null,null,null,null,null,null,null,null,null,null,null,null,null,null,null,null,null,null,null,null,"Код по ОКЕИ: грамм - 163"]
[null,"Драгоценные металлы и источники образования\nих отходов и лома",null,null,null,null,null,null,null,null,null,null,null,null,null,null,null,null,null,null,null,null,null,null,null,null,null,null,null,null,null,null,null,null,null,null,null,null,null,null,null,null,null,null,null,null,null,null,null,null,null,null,null,null,null,null,null,null,null,null,null,null,null,null,null,null,"Код\nстроки",null,null,null,null,null,null,null,"Код\nпо ОКП",null,null,null,null,null,null,null,null,null,null,null,"Остаток\nна начало отчетного года",null,null,null,null,null,null,null,null,null,null,null,null,null,null,"Поступило\nв ломе и отхо-дах с начала отчетного года",null,null,null,null,null,null,null,null,null,null,null,null,null,null,null,"Сдано для последующей переработки и аффинажа",null,null,null,null,null,null,null,null,null,null,null,null,null,null,null,null,null,null,null,null,null,null,null,null,null,null,null,null,null,null,null,null,"Остаток\nна конец отчетного периода"]
[null,null,null,null,null,null,null,null,null,null,null,null,null,null,null,null,null,null,null,null,null,null,null,null,null,null,null,null,null,null,null,null,null,null,null,null,null,null,null,null,null,null,null,null,null,null,null,null,null,null,null,null,null,null,null,null,null,null,null,null,null,null,null,null,null,null,null,null,null,null,null,null,null,null,null,null,null,null,null,null,null,null,null,null,null,null,null,null,null,null,null,null,null,null,null,null,null,null,null,null,null,null,null,null,null,null,null,null,null,null,null,null,null,null,null,null,null,"всего",null,null,null,null,null,null,null,null,null,null,null,null,null,null,null,null,"в том числе \nв организации-заготовители"]
[null,1,null,null,null,null,null,null,null,null,null,null,null,null,null,null,null,null,null,null,null,null,null,null,null,null,null,null,null,null,null,null,null,null,null,null,null,null,null,null,null,null,null,null,null,null,null,null,null,null,null,null,null,null,null,null,null,null,null,null,null,null,null,null,null,null,2,null,null,null,null,null,null,null,3,null,null,null,null,null,null,null,null,null,null,null,4,null,null,null,null,null,null,null,null,null,null,null,null,null,null,5,null,null,null,null,null,null,null,null,null,null,null,null,null,null,null,6,null,null,null,null,null,null,null,null,null,null,null,null,null,null,null,null,7,null,null,null,null,null,null,null,null,null,null,null,null,null,null,null,8]
[null,null,"Золото - всего",null,null,null,null,null,null,null,null,null,null,null,null,null,null,null,null,null,null,null,null,null,null,null,null,null,null,null,null,null,null,null,null,null,null,null,null,null,null,null,null,null,null,null,null,null,null,null,null,null,null,null,null,null,null,null,null,null,null,null,null,null,null,null,"020",null,null,null,null,null,null,null,"178510",null,null,null,null,null,null,null,null,null,null,null,null,null,null,null,null,null,null,null,null,null,null,null,null,null,{"$f":"IF(ISERROR(1+CI5),0,CI5)","v":0},null,null,null,null,null,null,null,null,null,null,null,null,null,null,null,{"$f":"IF(ISERROR(1+CX5),0,CX5)","v":0},null,null,null,null,null,null,null,null,null,null,null,null,null,null,null,null,{"$f":"IF(ISERROR(1+DN5),0,DN5)","v":0},null,null,null,null,null,null,null,null,null,null,null,null,null,null,null,null,{"$f":"IF(AND(CI5=\"\",CX5=\"\",DN5=\"\"),\"\",IF(FI5=0,\"-\",FI5))","v":""},null,null,null,null,null,null,null,null,null,null,null,null,null,{"$f":"CW5+DM5-ED5","v":0}]
[null,null,"в том числе:",null,null,null,null,null,null,null,null,null,null,null,null,null,null,null,null,null,null,null,null,null,null,null,null,null,null,null,null,null,null,null,null,null,null,null,null,null,null,null,null,null,null,null,null,null,null,null,null,null,null,null,null,null,null,null,null,null,null,null,null,null,null,null,"021",null,null,null,null,null,null,null,"Х",null,null,null,null,null,null,null,null,null,null,null,null,null,null,null,null,null,null,null,null,null,null,null,null,null,0,null,null,null,null,null,null,null,null,null,null,null,null,null,null,null,0,null,null,null,null,null,null,null,null,null,null,null,null,null,null,null,null,0,null,null,null,null,null,null,null,null,null,null,null,null,null,null,null,null,"",null,null,null,null,null,null,null,null,null,null,null,null,null,0]
[null,null,"от производства продукции"]
[null,null,"от проведения научно-исследовательских и опытных работ",null,null,null,null,null,null,null,null,null,null,null,null,null,null,null,null,null,null,null,null,null,null,null,null,null,null,null,null,null,null,null,null,null,null,null,null,null,null,null,null,null,null,null,null,null,null,null,null,null,null,null,null,null,null,null,null,null,null,null,null,null,null,null,"022",null,null,null,null,null,null,null,"Х",null,null,null,null,null,null,null,null,null,null,null,null,null,null,null,null,null,null,null,null,null,null,null,null,null,{"$f":"IF(ISERROR(1+CI8),0,CI8)","v":0},null,null,null,null,null,null,null,null,null,null,null,null,null,null,null,0,null,null,null,null,null,null,null,null,null,null,null,null,null,null,null,null,0,null,null,null,null,null,null,null,null,null,null,null,null,null,null,null,null,"",null,null,null,null,null,null,null,null,null,null,null,null,null,{"$f":"CW8+DM8-ED8","v":0}]
[null,null,"от комплектующих изделий",null,null,null,null,null,null,null,null,null,null,null,null,null,null,null,null,null,null,null,null,null,null,null,null,null,null,null,null,null,null,null,null,null,null,null,null,null,null,null,null,null,null,null,null,null,null,null,null,null,null,null,null,null,null,null,null,null,null,null,null,null,null,null,"023",null,null,null,null,null,null,null,"Х",null,null,null,null,null,null,null,null,null,null,null,null,null,null,null,null,null,null,null,null,null,null,null,null,null,0,null,null,null,null,null,null,null,null,null,null,null,null,null,null,null,0,null,null,null,null,null,null,null,null,null,null,null,null,null,null,null,null,0,null,null,null,null,null,null,null,null,null,null,null,null,null,null,null,null,"",null,null,null,null,null,null,null,null,null,null,null,null,null,0]
[null,null,"от использования приборов, оборудования и других изделий",null,null,null,null,null,null,null,null,null,null,null,null,null,null,null,null,null,null,null,null,null,null,null,null,null,null,null,null,null,null,null,null,null,null,null,null,null,null,null,null,null,null,null,null,null,null,null,null,null,null,null,null,null,null,null,null,null,null,null,null,null,null,null,"024",null,null,null,null,null,null,null,"Х",null,null,null,null,null,null,null,null,null,null,null,null,null,null,null,null,null,null,null,null,null,null,null,null,null,0,null,null,null,null,null,null,null,null,null,null,null,null,null,null,null,0,null,null,null,null,null,null,null,null,null,null,null,null,null,null,null,null,0,null,null,null,null,null,null,null,null,null,null,null,null,null,null,null,null,"",null,null,null,null,null,null,null,null,null,null,null,null,null,0]
[null,null,"Серебро - всего",null,null,null,null,null,null,null,null,null,null,null,null,null,null,null,null,null,null,null,null,null,null,null,null,null,null,null,null,null,null,null,null,null,null,null,null,null,null,null,null,null,null,null,null,null,null,null,null,null,null,null,null,null,null,null,null,null,null,null,null,null,null,null,"040",null,null,null,null,null,null,null,"178520",null,null,null,null,null,null,null,null,null,null,null,null,null,null,null,null,null,null,null,null,null,null,null,null,null,0,null,null,null,null,null,null,null,null,null,null,null,null,null,null,null,0,null,null,null,null,null,null,null,null,null,null,null,null,null,null,null,null,0,null,null,null,null,null,null,null,null,null,null,null,null,null,null,null,null,"",null,null,null,null,null,null,null,null,null,null,null,null,null,0]
[null,null,"в том числе:",null,null,null,null,null,null,null,null,null,null,null,null,null,null,null,null,null,null,null,null,null,null,null,null,null,null,null,null,null,null,null,null,null,null,null,null,null,null,null,null,null,null,null,null,null,null,null,null,null,null,null,null,null,null,null,null,null,null,null,null,null,null,null,"041",null,null,null,null,null,null,null,"Х",null,null,null,null,null,null,null,null,null,null,null,null,null,null,null,null,null,null,null,null,null,null,null,null,null,0,null,null,null,null,null,null,null,null,null,null,null,null,null,null,null,0,null,null,null,null,null,null,null,null,null,null,null,null,null,null,null,null,0,null,null,null,null,null,null,null,null,null,null,null,null,null,null,null,null,"",null,null,null,null,null,null,null,null,null,null,null,null,null,0]
[null,null,"от производства продукции"]
[null,null,"от проведения научно-исследовательских и опытных работ",null,null,null,null,null,null,null,null,null,null,null,null,null,null,null,null,null,null,null,null,null,null,null,null,null,null,null,null,null,null,null,null,null,null,null,null,null,null,null,null,null,null,null,null,null,null,null,null,null,null,null,null,null,null,null,null,null,null,null,null,null,null,null,"042",null,null,null,null,null,null,null,"Х",null,null,null,null,null,null,null,null,null,null,null,null,null,null,null,null,null,null,null,null,null,null,null,null,null,0,null,null,null,null,null,null,null,null,null,null,null,null,null,null,null,0,null,null,null,null,null,null,null,null,null,null,null,null,null,null,null,null,0,null,null,null,null,null,null,null,null,null,null,null,null,null,null,null,null,"",null,null,null,null,null,null,null,null,null,null,null,null,null,0]
[null,null,"от использования кино-, фото-, рентгеноматериалов",null,null,null,null,null,null,null,null,null,null,null,null,null,null,null,null,null,null,null,null,null,null,null,null,null,null,null,null,null,null,null,null,null,null,null,null,null,null,null,null,null,null,null,null,null,null,null,null,null,null,null,null,null,null,null,null,null,null,null,null,null,null,null,"043",null,null,null,null,null,null,null,"Х",null,null,null,null,null,null,null,null,null,null,null,null,null,null,null,null,null,null,null,null,null,null,null,null,null,0,null,null,null,null,null,null,null,null,null,null,null,null,null,null,null,0,null,null,null,null,null,null,null,null,null,null,null,null,null,null,null,null,0,null,null,null,null,null,null,null,null,null,null,null,null,null,null,null,null,"",null,null,null,null,null,null,null,null,null,null,null,null,null,0]
[null,null,"от использования аккумуляторов",null,null,null,null,null,null,null,null,null,null,null,null,null,null,null,null,null,null,null,null,null,null,null,null,null,null,null,null,null,null,null,null,null,null,null,null,null,null,null,null,null,null,null,null,null,null,null,null,null,null,null,null,null,null,null,null,null,null,null,null,null,null,null,"044",null,null,null,null,null,null,null,"Х",null,null,null,null,null,null,null,null,null,null,null,null,null,null,null,null,null,null,null,null,null,null,null,null,null,0,null,null,null,null,null,null,null,null,null,null,null,null,null,null,null,0,null,null,null,null,null,null,null,null,null,null,null,null,null,null,null,null,0,null,null,null,null,null,null,null,null,null,null,null,null,null,null,null,null,"",null,null,null,null,null,null,null,null,null,null,null,null,null,0]
[null,null,"от комплектующих изделий",null,null,null,null,null,null,null,null,null,null,null,null,null,null,null,null,null,null,null,null,null,null,null,null,null,null,null,null,null,null,null,null,null,null,null,null,null,null,null,null,null,null,null,null,null,null,null,null,null,null,null,null,null,null,null,null,null,null,null,null,null,null,null,"045",null,null,null,null,null,null,null,"Х",null,null,null,null,null,null,null,null,null,null,null,null,null,null,null,null,null,null,null,null,null,null,null,null,null,0,null,null,null,null,null,null,null,null,null,null,null,null,null,null,null,0,null,null,null,null,null,null,null,null,null,null,null,null,null,null,null,null,0,null,null,null,null,null,null,null,null,null,null,null,null,null,null,null,null,"",null,null,null,null,null,null,null,null,null,null,null,null,null,0]
[null,null,"от кабельной продукции",null,null,null,null,null,null,null,null,null,null,null,null,null,null,null,null,null,null,null,null,null,null,null,null,null,null,null,null,null,null,null,null,null,null,null,null,null,null,null,null,null,null,null,null,null,null,null,null,null,null,null,null,null,null,null,null,null,null,null,null,null,null,null,"046",null,null,null,null,null,null,null,"Х",null,null,null,null,null,null,null,null,null,null,null,null,null,null,null,null,null,null,null,null,null,null,null,null,null,0,null,null,null,null,null,null,null,null,null,null,null,null,null,null,null,0,null,null,null,null,null,null,null,null,null,null,null,null,null,null,null,null,0,null,null,null,null,null,null,null,null,null,null,null,null,null,null,null,null,"",null,null,null,null,null,null,null,null,null,null,null,null,null,0]
[null,null,"от использования приборов, оборудования и других изделий",null,null,null,null,null,null,null,null,null,null,null,null,null,null,null,null,null,null,null,null,null,null,null,null,null,null,null,null,null,null,null,null,null,null,null,null,null,null,null,null,null,null,null,null,null,null,null,null,null,null,null,null,null,null,null,null,null,null,null,null,null,null,null,"047",null,null,null,null,null,null,null,"Х",null,null,null,null,null,null,null,null,null,null,null,null,null,null,null,null,null,null,null,null,null,null,null,null,null,0,null,null,null,null,null,null,null,null,null,null,null,null,null,null,null,0,null,null,null,null,null,null,null,null,null,null,null,null,null,null,null,null,0,null,null,null,null,null,null,null,null,null,null,null,null,null,null,null,null,"",null,null,null,null,null,null,null,null,null,null,null,null,null,0]
[null,null,"из них:",null,null,null,null,null,null,null,null,null,null,null,null,null,null,null,null,null,null,null,null,null,null,null,null,null,null,null,null,null,null,null,null,null,null,null,null,null,null,null,null,null,null,null,null,null,null,null,null,null,null,null,null,null,null,null,null,null,null,null,null,null,null,null,"048",null,null,null,null,null,null,null,"Х",null,null,null,null,null,null,null,null,null,null,null,null,null,null,null,null,null,null,null,null,null,null,null,null,null,0,null,null,null,null,null,null,null,null,null,null,null,null,null,null,null,0,null,null,null,null,null,null,null,null,null,null,null,null,null,null,null,null,0,null,null,null,null,null,null,null,null,null,null,null,null,null,null,null,null,"",null,null,null,null,null,null,null,null,null,null,null,null,null,0]
[null,null,"от низковольтной аппаратуры"]
[null,null,"Платина - всего",null,null,null,null,null,null,null,null,null,null,null,null,null,null,null,null,null,null,null,null,null,null,null,null,null,null,null,null,null,null,null,null,null,null,null,null,null,null,null,null,null,null,null,null,null,null,null,null,null,null,null,null,null,null,null,null,null,null,null,null,null,null,null,"100",null,null,null,null,null,null,null,"178531",null,null,null,null,null,null,null,null,null,null,null,null,null,null,null,null,null,null,null,null,null,null,null,null,null,0,null,null,null,null,null,null,null,null,null,null,null,null,null,null,null,0,null,null,null,null,null,null,null,null,null,null,null,null,null,null,null,null,0,null,null,null,null,null,null,null,null,null,null,null,null,null,null,null,null,"",null,null,null,null,null,null,null,null,null,null,null,null,null,0]
[null,null,"в том числе:",null,null,null,null,null,null,null,null,null,null,null,null,null,null,null,null,null,null,null,null,null,null,null,null,null,null,null,null,null,null,null,null,null,null,null,null,null,null,null,null,null,null,null,null,null,null,null,null,null,null,null,null,null,null,null,null,null,null,null,null,null,null,null,"101",null,null,null,null,null,null,null,"Х",null,null,null,null,null,null,null,null,null,null,null,null,null,null,null,null,null,null,null,null,null,null,null,null,null,0,null,null,null,null,null,null,null,null,null,null,null,null,null,null,null,0,null,null,null,null,null,null,null,null,null,null,null,null,null,null,null,null,0,null,null,null,null,null,null,null,null,null,null,null,null,null,null,null,null,"",null,null,null,null,null,null,null,null,null,null,null,null,null,0]
[null,null,"от производства продукции"]
[null,null,"от проведения научно-исследовательских и опытных работ",null,null,null,null,null,null,null,null,null,null,null,null,null,null,null,null,null,null,null,null,null,null,null,null,null,null,null,null,null,null,null,null,null,null,null,null,null,null,null,null,null,null,null,null,null,null,null,null,null,null,null,null,null,null,null,null,null,null,null,null,null,null,null,"102",null,null,null,null,null,null,null,"Х",null,null,null,null,null,null,null,null,null,null,null,null,null,null,null,null,null,null,null,null,null,null,null,null,null,0,null,null,null,null,null,null,null,null,null,null,null,null,null,null,null,0,null,null,null,null,null,null,null,null,null,null,null,null,null,null,null,null,0,null,null,null,null,null,null,null,null,null,null,null,null,null,null,null,null,"",null,null,null,null,null,null,null,null,null,null,null,null,null,0]
[null,null,"от использования лабораторной посуды и оснастки оборудования",null,null,null,null,null,null,null,null,null,null,null,null,null,null,null,null,null,null,null,null,null,null,null,null,null,null,null,null,null,null,null,null,null,null,null,null,null,null,null,null,null,null,null,null,null,null,null,null,null,null,null,null,null,null,null,null,null,null,null,null,null,null,null,"103",null,null,null,null,null,null,null,"Х",null,null,null,null,null,null,null,null,null,null,null,null,null,null,null,null,null,null,null,null,null,null,null,null,null,0,null,null,null,null,null,null,null,null,null,null,null,null,null,null,null,0,null,null,null,null,null,null,null,null,null,null,null,null,null,null,null,null,0,null,null,null,null,null,null,null,null,null,null,null,null,null,null,null,null,"",null,null,null,null,null,null,null,null,null,null,null,null,null,0]
[null,null,"от комплектующих изделий",null,null,null,null,null,null,null,null,null,null,null,null,null,null,null,null,null,null,null,null,null,null,null,null,null,null,null,null,null,null,null,null,null,null,null,null,null,null,null,null,null,null,null,null,null,null,null,null,null,null,null,null,null,null,null,null,null,null,null,null,null,null,null,"104",null,null,null,null,null,null,null,"Х",null,null,null,null,null,null,null,null,null,null,null,null,null,null,null,null,null,null,null,null,null,null,null,null,null,0,null,null,null,null,null,null,null,null,null,null,null,null,null,null,null,0,null,null,null,null,null,null,null,null,null,null,null,null,null,null,null,null,0,null,null,null,null,null,null,null,null,null,null,null,null,null,null,null,null,"",null,null,null,null,null,null,null,null,null,null,null,null,null,0]
[null,null,"от использования термопар и термометров сопротивления",null,null,null,null,null,null,null,null,null,null,null,null,null,null,null,null,null,null,null,null,null,null,null,null,null,null,null,null,null,null,null,null,null,null,null,null,null,null,null,null,null,null,null,null,null,null,null,null,null,null,null,null,null,null,null,null,null,null,null,null,null,null,null,"105",null,null,null,null,null,null,null,"Х",null,null,null,null,null,null,null,null,null,null,null,null,null,null,null,null,null,null,null,null,null,null,null,null,null,0,null,null,null,null,null,null,null,null,null,null,null,null,null,null,null,0,null,null,null,null,null,null,null,null,null,null,null,null,null,null,null,null,0,null,null,null,null,null,null,null,null,null,null,null,null,null,null,null,null,"",null,null,null,null,null,null,null,null,null,null,null,null,null,0]
[null,"Драгоценные металлы и источники образования\nих отходов и лома",null,null,null,null,null,null,null,null,null,null,null,null,null,null,null,null,null,null,null,null,null,null,null,null,null,null,null,null,null,null,null,null,null,null,null,null,null,null,null,null,null,null,null,null,null,null,null,null,null,null,null,null,null,null,null,null,null,null,null,null,null,null,null,null,"Код\nстроки",null,null,null,null,null,null,null,"Код\nпо ОКП",null,null,null,null,null,null,null,null,null,null,null,"Остаток\nна начало отчетного года",null,null,null,null,null,null,null,null,null,null,null,null,null,null,"Поступило\nв ломе и отхо-дах с начала отчетного года",null,null,null,null,null,null,null,null,null,null,null,null,null,null,null,"Сдано для последующей переработки и аффинажа",null,null,null,null,null,null,null,null,null,null,null,null,null,null,null,null,null,null,null,null,null,null,null,null,null,null,null,null,null,null,null,null,"Остаток\nна конец отчетного периода"]
[null,null,null,null,null,null,null,null,null,null,null,null,null,null,null,null,null,null,null,null,null,null,null,null,null,null,null,null,null,null,null,null,null,null,null,null,null,null,null,null,null,null,null,null,null,null,null,null,null,null,null,null,null,null,null,null,null,null,null,null,null,null,null,null,null,null,null,null,null,null,null,null,null,null,null,null,null,null,null,null,null,null,null,null,null,null,null,null,null,null,null,null,null,null,null,null,null,null,null,null,null,null,null,null,null,null,null,null,null,null,null,null,null,null,null,null,null,"всего",null,null,null,null,null,null,null,null,null,null,null,null,null,null,null,null,"в том числе \nв организации-заготовители"]
[null,1,null,null,null,null,null,null,null,null,null,null,null,null,null,null,null,null,null,null,null,null,null,null,null,null,null,null,null,null,null,null,null,null,null,null,null,null,null,null,null,null,null,null,null,null,null,null,null,null,null,null,null,null,null,null,null,null,null,null,null,null,null,null,null,null,2,null,null,null,null,null,null,null,3,null,null,null,null,null,null,null,null,null,null,null,4,null,null,null,null,null,null,null,null,null,null,null,null,null,null,5,null,null,null,null,null,null,null,null,null,null,null,null,null,null,null,6,null,null,null,null,null,null,null,null,null,null,null,null,null,null,null,null,7,null,null,null,null,null,null,null,null,null,null,null,null,null,null,null,8]
[null,null,"от использования приборов, оборудования и других изделий",null,null,null,null,null,null,null,null,null,null,null,null,null,null,null,null,null,null,null,null,null,null,null,null,null,null,null,null,null,null,null,null,null,null,null,null,null,null,null,null,null,null,null,null,null,null,null,null,null,null,null,null,null,null,null,null,null,null,null,null,null,null,null,"106",null,null,null,null,null,null,null,"Х",null,null,null,null,null,null,null,null,null,null,null,null,null,null,null,null,null,null,null,null,null,null,null,null,null,{"$f":"IF(ISERROR(1+CI32),0,CI32)","v":0},null,null,null,null,null,null,null,null,null,null,null,null,null,null,null,{"$f":"IF(ISERROR(1+CX32),0,CX32)","v":0},null,null,null,null,null,null,null,null,null,null,null,null,null,null,null,null,{"$f":"IF(ISERROR(1+DN32),0,DN32)","v":0},null,null,null,null,null,null,null,null,null,null,null,null,null,null,null,null,{"$f":"IF(AND(CI32=\"\",CX32=\"\",DN32=\"\"),\"\",IF(FI32=0,\"-\",FI32))","v":""},null,null,null,null,null,null,null,null,null,null,null,null,null,{"$f":"CW32+DM32-ED32","v":0}]
[null,null,"Металлы платиновой группы - всего",null,null,null,null,null,null,null,null,null,null,null,null,null,null,null,null,null,null,null,null,null,null,null,null,null,null,null,null,null,null,null,null,null,null,null,null,null,null,null,null,null,null,null,null,null,null,null,null,null,null,null,null,null,null,null,null,null,null,null,null,null,null,null,"160",null,null,null,null,null,null,null,"178539",null,null,null,null,null,null,null,null,null,null,null,null,null,null,null,null,null,null,null,null,null,null,null,null,null,0,null,null,null,null,null,null,null,null,null,null,null,null,null,null,null,0,null,null,null,null,null,null,null,null,null,null,null,null,null,null,null,null,0,null,null,null,null,null,null,null,null,null,null,null,null,null,null,null,null,"",null,null,null,null,null,null,null,null,null,null,null,null,null,0]
[null,null,"в том числе:",null,null,null,null,null,null,null,null,null,null,null,null,null,null,null,null,null,null,null,null,null,null,null,null,null,null,null,null,null,null,null,null,null,null,null,null,null,null,null,null,null,null,null,null,null,null,null,null,null,null,null,null,null,null,null,null,null,null,null,null,null,null,null,"161",null,null,null,null,null,null,null,"Х",null,null,null,null,null,null,null,null,null,null,null,null,null,null,null,null,null,null,null,null,null,null,null,null,null,0,null,null,null,null,null,null,null,null,null,null,null,null,null,null,null,0,null,null,null,null,null,null,null,null,null,null,null,null,null,null,null,null,0,null,null,null,null,null,null,null,null,null,null,null,null,null,null,null,null,"",null,null,null,null,null,null,null,null,null,null,null,null,null,0]
[null,null,"от производства продукции"]
[null,null,"от проведения научно-исследовательских и опытных работ",null,null,null,null,null,null,null,null,null,null,null,null,null,null,null,null,null,null,null,null,null,null,null,null,null,null,null,null,null,null,null,null,null,null,null,null,null,null,null,null,null,null,null,null,null,null,null,null,null,null,null,null,null,null,null,null,null,null,null,null,null,null,null,"162",null,null,null,null,null,null,null,"Х",null,null,null,null,null,null,null,null,null,null,null,null,null,null,null,null,null,null,null,null,null,null,null,null,null,0,null,null,null,null,null,null,null,null,null,null,null,null,null,null,null,0,null,null,null,null,null,null,null,null,null,null,null,null,null,null,null,null,0,null,null,null,null,null,null,null,null,null,null,null,null,null,null,null,null,"",null,null,null,null,null,null,null,null,null,null,null,null,null,0]
[null,null,"от использования лабораторной посуды и оснастки оборудования",null,null,null,null,null,null,null,null,null,null,null,null,null,null,null,null,null,null,null,null,null,null,null,null,null,null,null,null,null,null,null,null,null,null,null,null,null,null,null,null,null,null,null,null,null,null,null,null,null,null,null,null,null,null,null,null,null,null,null,null,null,null,null,"163",null,null,null,null,null,null,null,"Х",null,null,null,null,null,null,null,null,null,null,null,null,null,null,null,null,null,null,null,null,null,null,null,null,null,0,null,null,null,null,null,null,null,null,null,null,null,null,null,null,null,0,null,null,null,null,null,null,null,null,null,null,null,null,null,null,null,null,0,null,null,null,null,null,null,null,null,null,null,null,null,null,null,null,null,"",null,null,null,null,null,null,null,null,null,null,null,null,null,0]
[null,null,"от комплектующих изделий",null,null,null,null,null,null,null,null,null,null,null,null,null,null,null,null,null,null,null,null,null,null,null,null,null,null,null,null,null,null,null,null,null,null,null,null,null,null,null,null,null,null,null,null,null,null,null,null,null,null,null,null,null,null,null,null,null,null,null,null,null,null,null,"164",null,null,null,null,null,null,null,"Х",null,null,null,null,null,null,null,null,null,null,null,null,null,null,null,null,null,null,null,null,null,null,null,null,null,0,null,null,null,null,null,null,null,null,null,null,null,null,null,null,null,0,null,null,null,null,null,null,null,null,null,null,null,null,null,null,null,null,0,null,null,null,null,null,null,null,null,null,null,null,null,null,null,null,null,"",null,null,null,null,null,null,null,null,null,null,null,null,null,0]
[null,null,"от использования термопар и термометров сопротивления",null,null,null,null,null,null,null,null,null,null,null,null,null,null,null,null,null,null,null,null,null,null,null,null,null,null,null,null,null,null,null,null,null,null,null,null,null,null,null,null,null,null,null,null,null,null,null,null,null,null,null,null,null,null,null,null,null,null,null,null,null,null,null,"165",null,null,null,null,null,null,null,"Х",null,null,null,null,null,null,null,null,null,null,null,null,null,null,null,null,null,null,null,null,null,null,null,null,null,0,null,null,null,null,null,null,null,null,null,null,null,null,null,null,null,0,null,null,null,null,null,null,null,null,null,null,null,null,null,null,null,null,0,null,null,null,null,null,null,null,null,null,null,null,null,null,null,null,null,"",null,null,null,null,null,null,null,null,null,null,null,null,null,0]
[null,null,"от использования приборов, оборудования и других изделий",null,null,null,null,null,null,null,null,null,null,null,null,null,null,null,null,null,null,null,null,null,null,null,null,null,null,null,null,null,null,null,null,null,null,null,null,null,null,null,null,null,null,null,null,null,null,null,null,null,null,null,null,null,null,null,null,null,null,null,null,null,null,null,"166",null,null,null,null,null,null,null,"Х",null,null,null,null,null,null,null,null,null,null,null,null,null,null,null,null,null,null,null,null,null,null,null,null,null,0,null,null,null,null,null,null,null,null,null,null,null,null,null,null,null,0,null,null,null,null,null,null,null,null,null,null,null,null,null,null,null,null,0,null,null,null,null,null,null,null,null,null,null,null,null,null,null,null,null,"",null,null,null,null,null,null,null,null,null,null,null,null,null,0]
[]
[null,"Линия отрыва (для отчетности, представляемой индивидуальным предпринимателем)"]
[null,"Руководитель организации",null,null,null,null,null,null,null,null,null,null,null,null,null,null,null,null,null,null,null,null,null,null,null,null,null,null,null,null,null,null,null,null,null,null,null,null,{"$f":"IFERROR(IF(AND(ФОРМА!E7=\"\",ФОРМА!E8=\"\"),\"-\",IF(ФОРМА!E7=\"\",CONCATENATE(LEFT(TRIM(ФОРМА!E8),FIND(\" \",TRIM(ФОРМА!E8),1)),MID(TRIM(ФОРМА!E8),FIND(\" \",TRIM(ФОРМА!E8),1)+1,1),\".\",MID(TRIM(ФОРМА!E8),FIND(\" \",TRIM(ФОРМА!E8),FIND(\" \",TRIM(ФОРМА!E8),1)+1)+1,1),\".\"),CONCATENATE(LEFT(TRIM(ФОРМА!E7),FIND(\" \",TRIM(ФОРМА!E7),1)),MID(TRIM(ФОРМА!E7),FIND(\" \",TRIM(ФОРМА!E7),1)+1,1),\".\",MID(TRIM(ФОРМА!E7),FIND(\" \",TRIM(ФОРМА!E7),FIND(\" \",TRIM(ФОРМА!E7),1)+1)+1,1),\".\"))),\"Данные введены некорректно\")","v":"-"}]
[null,"(индивидуальный предприниматель)"]
[null,null,null,null,null,null,null,null,null,null,null,null,null,null,null,null,null,null,null,null,null,null,null,null,null,null,null,null,null,null,null,null,null,null,null,null,null,null,"(Ф.И.О.)",null,null,null,null,null,null,null,null,null,null,null,null,null,null,null,null,null,null,null,null,null,null,null,null,null,null,null,null,null,null,null,null,null,null,null,null,"(подпись)"]
[null,"Должностное лицо, ответственное ",null,null,null,null,null,null,null,null,null,null,null,null,null,null,null,null,null,null,null,null,null,null,null,null,null,null,null,null,null,null,null,null,null,null,null,null,{"$f":"IF(ФОРМА!E25=\"\",\"-\",ФОРМА!E25)","v":"-"},null,null,null,null,null,null,null,null,null,null,null,null,null,null,null,null,null,null,null,null,null,null,null,null,null,null,null,{"$f":"IFERROR(IF(ФОРМА!E26=\"\",\"-\",CONCATENATE(LEFT(TRIM(ФОРМА!E26),FIND(\" \",TRIM(ФОРМА!E26),1)),MID(TRIM(ФОРМА!E26),FIND(\" \",TRIM(ФОРМА!E26),1)+1,1),\".\",MID(TRIM(ФОРМА!E26),FIND(\" \",TRIM(ФОРМА!E26),FIND(\" \",TRIM(ФОРМА!E26),1)+1)+1,1),\".\")),\"Данные введены некорректно\")","v":"-"}]
[null,"за составление формы"]
[null,null,null,null,null,null,null,null,null,null,null,null,null,null,null,null,null,null,null,null,null,null,null,null,null,null,null,null,null,null,null,null,null,null,null,null,null,null,"(должность)",null,null,null,null,null,null,null,null,null,null,null,null,null,null,null,null,null,null,null,null,null,null,null,null,null,null,null,"(Ф.И.О.)",null,null,null,null,null,null,null,null,null,null,null,null,null,null,null,null,null,null,null,null,null,null,null,null,null,null,null,null,null,null,null,null,null,null,null,null,null,null,"(подпись)"]
[null,null,null,null,null,null,null,null,null,null,null,null,null,null,null,null,null,null,null,null,null,null,null,null,null,null,null,null,null,null,null,null,null,null,null,null,null,null,{"$f":"IF(ФОРМА!E27=\"\",\"-\",ФОРМА!E27)","v":"-"},null,null,null,null,null,null,null,null,null,null,null,null,null,null,null,null,null,null,null,null,null,null,null,null,null,null,null,"«",null,null,null,null,null,"»",null,null,null,null,null,null,null,null,null,null,null,null,null,null,null,null,20,null,null,null,null,null,null," год"]
[null,null,null,null,null,null,null,null,null,null,null,null,null,null,null,null,null,null,null,null,null,null,null,null,null,null,null,null,null,null,null,null,null,null,null,null,null,null,"(номер контактного телефона)",null,null,null,null,null,null,null,null,null,null,null,null,null,null,null,null,null,null,null,null,null,null,null,null,null,null,null,"(дата составления документа)"]

{"sheet":"П  ","index":10,"n_rows":0,"n_cols":0,"rows_kept":0,"cut":false,"hidden":false,"merged":[]}

{"sheet":"2дм-д(1,","index":11,"n_rows":31,"n_cols":137,"rows_kept":31,"cut":false,"hidden":false,"merged":[[0,20,0,136],[4,14,4,142],[2,20,2,136],[16,82,18,116],[13,1,13,81],[13,82,13,116],[13,125,13,151],[14,2,14,81],[6,20,6,136],[8,30,8,126],[9,30,9,126],[22,1,22,149],[14,82,15,116],[15,2,15,5],[15,6,15,81],[16,2,17,81],[18,2,18,5],[18,6,18,81],[14,125,16,151],[21,2,21,148],[26,1,26,149],[30,1,30,15],[30,16,30,35],[30,36,30,55],[30,56,30,75],[29,1,29,15],[29,16,29,35],[29,36,29,55],[29,56,29,75],[27,1,28,15],[27,16,27,155],[28,16,28,35],[28,36,28,55],[28,56,28,75],[23,17,23,148],[10,75,10,80],[30,116,30,135],[30,136,30,155],[30,76,30,95],[30,96,30,115],[28,76,28,95],[28,96,28,115],[28,116,28,135],[28,136,28,155],[29,76,29,95],[29,96,29,115],[29,116,29,135],[29,136,29,155],[17,127,18,149],[24,1,24,149]]}
[null,null,null,null,null,null,null,null,null,null,null,null,null,null,null,null,null,null,null,null,"ФЕДЕРАЛЬНОЕ ГОСУДАРСТВЕННОЕ СТАТИСТИЧЕСКОЕ НАБЛЮДЕНИЕ"]
[]
[null,null,null,null,null,null,null,null,null,null,null,null,null,null,null,null,null,null,null,null,"КОНФИДЕНЦИАЛЬНОСТЬ ГАРАНТИРУЕТСЯ ПОЛУЧАТЕЛЕМ ИНФОРМАЦИИ"]
[]
[null,null,null,null,null,null,null,null,null,null,null,null,null,null,"Нарушение порядка представления статистической информации, а равно представление недостоверной статистической информации\nвлечет ответственность, установленную статьей 13.19 Кодекса Российской Федерации об административных правонарушениях\n от 30.12.2001 № 195-ФЗ, а также статьей 3 Закона Российской Федерации от 13.05.92 № 2761-1 \"Об ответственности за нарушение\n порядка представления государственной статистической отчетности\""]
[]
[null,null,null,null,null,null,null,null,null,null,null,null,null,null,null,null,null,null,null,null,"В соответствии со статьей 6 Федерального закона от 27.07.2006 № 152-ФЗ \"О персональных данных\" обработка персональных данных осуществляется для статистических целей при условии обязательного обезличивания персональных данных"]
[]
[null,null,null,null,null,null,null,null,null,null,null,null,null,null,null,null,null,null,null,null,null,null,null,null,null,null,null,null,null,null,"СВЕДЕНИЯ ОБ ОСТАТКАХ, ПОСТУПЛЕНИИ И РАСХОДЕ ДРАГОЦЕННЫХ МЕТАЛЛОВ, "]
[null,null,null,null,null,null,null,null,null,null,null,null,null,null,null,null,null,null,null,null,null,null,null,null,null,null,null,null,null,null,"ПОЛУЧЕННЫХ ДЛЯ ВЫПОЛНЕНИЯ ДАВАЛЬЧЕСКИХ ЗАКАЗОВ"]
[null,null,null,null,null,null,null,null,null,null,null,null,null,null,null,null,null,null,null,null,null,null,null,null,null,null,null,null,null,null,null,null,null,null,null,null,null,null,null,null,null,null,null,null,null,null,null,null,null,null,null,null,null,null,null,null,null,null,null,null,null,null,null,null,null,null,null,null,null,null,null,null,null,null,"за",{"$f":"IF(ФОРМА!I24=\"\",\"-\",ФОРМА!I24)","v":"-"},null,null,null,null,null,"г."]
[]
[]
[null,"Представляют:",null,null,null,null,null,null,null,null,null,null,null,null,null,null,null,null,null,null,null,null,null,null,null,null,null,null,null,null,null,null,null,null,null,null,null,null,null,null,null,null,null,null,null,null,null,null,null,null,null,null,null,null,null,null,null,null,null,null,null,null,null,null,null,null,null,null,null,null,null,null,null,null,null,null,null,null,null,null,null,null,"Сроки представления",null,null,null,null,null,null,null,null,null,null,null,null,null,null,null,null,null,null,null,null,null,null,null,null,null,null,null,null,null,null,null,null,null,null,null,null,null,null,null,null,null,null,"Форма № 2-ДМ\n(давальческое сырье)"]
[null,null,"юридические лица, физические лица, занимающиеся предпринимательской деятельностью без образования юридического лица (индивидуальные предприниматели), осуществляющие изготовление изделий, полуфабрикатов, солей и кислот из давальческих драгоценных металлов:",null,null,null,null,null,null,null,null,null,null,null,null,null,null,null,null,null,null,null,null,null,null,null,null,null,null,null,null,null,null,null,null,null,null,null,null,null,null,null,null,null,null,null,null,null,null,null,null,null,null,null,null,null,null,null,null,null,null,null,null,null,null,null,null,null,null,null,null,null,null,null,null,null,null,null,null,null,null,null,"1 марта \nпосле отчетного периода",null,null,null,null,null,null,null,null,null,null,null,null,null,null,null,null,null,null,null,null,null,null,null,null,null,null,null,null,null,null,null,null,null,null,null,null,null,null,null,null,null,null,"Утверждена\nПостановлением Росстата\nот 14.11.2007 № 88"]
[null,null,"-",null,null,null,"Гохрану России (121170, г. Москва, ул. 1812 года, дом 14)"]
[null,null,"Гохран России:",null,null,null,null,null,null,null,null,null,null,null,null,null,null,null,null,null,null,null,null,null,null,null,null,null,null,null,null,null,null,null,null,null,null,null,null,null,null,null,null,null,null,null,null,null,null,null,null,null,null,null,null,null,null,null,null,null,null,null,null,null,null,null,null,null,null,null,null,null,null,null,null,null,null,null,null,null,null,null,"по согласованной \nпрограмме и срокам"]
[null,null,null,null,null,null,null,null,null,null,null,null,null,null,null,null,null,null,null,null,null,null,null,null,null,null,null,null,null,null,null,null,null,null,null,null,null,null,null,null,null,null,null,null,null,null,null,null,null,null,null,null,null,null,null,null,null,null,null,null,null,null,null,null,null,null,null,null,null,null,null,null,null,null,null,null,null,null,null,null,null,null,null,null,null,null,null,null,null,null,null,null,null,null,null,null,null,null,null,null,null,null,null,null,null,null,null,null,null,null,null,null,null,null,null,null,null,null,null,null,null,null,null,null,null,null,null,"Годовая"]
[null,null,"-",null,null,null,"Росстату (107450, г. Москва, ул. Мясницкая, д. 39, строение 1)"]
[]
[null,null,"Наименование отчитывающейся организации (фамилия, имя, отчество индивидуального предпринимателя)"]
[null,null,{"$f":"IF(AND(ФОРМА!E5=\"\",ФОРМА!E8=\"\"),\"-\",IF(ФОРМА!E5=\"\",ФОРМА!E8,IF(ФОРМА!E6=\"\",ФОРМА!E5,ФОРМА!E5&\" (\"&ФОРМА!E6&\")\")))","v":"-"}]
[]
[null,null,"Почтовый адрес",null,null,null,null,null,null,null,null,null,null,null,null,null,null,{"$f":"IF(ФОРМА!E9=\"\",\"-\",ФОРМА!E9)","v":"-"}]
[]
[]
[null,"Линия отрыва (для отчетности, представляемой индивидуальным предпринимателем)"]
[null,"Код\nформы\nпо ОКУД",null,null,null,null,null,null,null,null,null,null,null,null,null,null,"Код "]
[null,null,null,null,null,null,null,null,null,null,null,null,null,null,null,null,"отчитывающейся организации (индивидуального предпринимателя)\nпо ОКПО",null,null,null,null,null,null,null,null,null,null,null,null,null,null,null,null,null,null,null,"вида деятельности\nпо ОКВЭД",null,null,null,null,null,null,null,null,null,null,null,null,null,null,null,null,null,null,null,"территории\nпо ОКАТО",null,null,null,null,null,null,null,null,null,null,null,null,null,null,null,null,null,null,null,"министерства (ведомства), органа управления \nпо ОКОГУ",null,null,null,null,null,null,null,null,null,null,null,null,null,null,null,null,null,null,null,"организационно-правовой формы\nпо ОКОПФ",null,null,null,null,null,null,null,null,null,null,null,null,null,null,null,null,null,null,null,"формы собственности\nпо ОКФС"]
[null,1,null,null,null,null,null,null,null,null,null,null,null,null,null,null,2,null,null,null,null,null,null,null,null,null,null,null,null,null,null,null,null,null,null,null,3,null,null,null,null,null,null,null,null,null,null,null,null,null,null,null,null,null,null,null,4,null,null,null,null,null,null,null,null,null,null,null,null,null,null,null,null,null,null,null,5,null,null,null,null,null,null,null,null,null,null,null,null,null,null,null,null,null,null,null,6,null,null,null,null,null,null,null,null,null,null,null,null,null,null,null,null,null,null,null,7,null,null,null,null,null,null,null,null,null,null,null,null,null,null,null,null,null,null,null,8]
[null,"0607071",null,null,null,null,null,null,null,null,null,null,null,null,null,null,{"$f":"IF(ФОРМА!$E$18=\"\",\"-\",ФОРМА!$E$18)","v":"-"},null,null,null,null,null,null,null,null,null,null,null,null,null,null,null,null,null,null,null,{"$f":"IF(ФОРМА!$E$19=\"\",\"-\",ФОРМА!$E$19)","v":"-"},null,null,null,null,null,null,null,null,null,null,null,null,null,null,null,null,null,null,null,{"$f":"IF(ФОРМА!$E$20=\"\",\"-\",ФОРМА!$E$20)","v":"-"},null,null,null,null,null,null,null,null,null,null,null,null,null,null,null,null,null,null,null,{"$f":"IF(ФОРМА!$E$21=\"\",\"-\",ФОРМА!$E$21)","v":"-"},null,null,null,null,null,null,null,null,null,null,null,null,null,null,null,null,null,null,null,{"$f":"IF(ФОРМА!$E$22=\"\",\"-\",ФОРМА!$E$22)","v":"-"},null,null,null,null,null,null,null,null,null,null,null,null,null,null,null,null,null,null,null,{"$f":"IF(ФОРМА!$E$23=\"\",\"-\",ФОРМА!$E$23)","v":"-"}]

{"sheet":"2)  ","index":12,"n_rows":32,"n_cols":160,"rows_kept":32,"cut":false,"hidden":false,"merged":[[15,27,15,35],[14,119,14,137],[11,50,11,72],[11,74,11,96],[18,138,18,158],[19,50,19,72],[19,74,19,96],[19,98,19,117],[19,138,19,158],[14,50,14,72],[14,74,14,96],[14,98,14,117],[14,138,14,158],[15,50,15,72],[15,74,15,96],[15,98,15,117],[15,138,15,158],[16,50,16,72],[16,74,16,96],[16,98,16,117],[16,138,16,158],[17,138,17,158],[11,27,11,35],[11,119,11,137],[6,50,6,72],[6,74,6,96],[6,98,6,117],[10,74,10,96],[10,98,10,117],[18,27,18,35],[18,36,19,49],[19,27,19,35],[18,119,18,137],[15,119,15,137],[16,27,16,35],[16,36,17,49],[17,27,17,35],[16,119,16,137],[17,119,17,137],[17,50,17,72],[17,74,17,96],[17,98,17,117],[18,50,18,72],[18,74,18,96],[18,98,18,117],[19,119,19,137],[14,27,14,35],[14,36,15,49],[1,138,2,158],[3,138,3,158],[7,138,7,158],[10,138,10,158],[4,138,4,158],[4,98,4,117],[8,138,8,158],[9,138,9,158],[4,74,4,96],[6,138,6,158],[6,119,6,137],[5,74,5,96],[5,98,5,117],[5,138,5,158],[10,27,10,35],[12,27,12,35],[12,36,13,49],[13,27,13,35],[12,119,12,137],[13,119,13,137],[11,138,11,158],[12,138,12,158],[13,138,13,158],[11,98,11,117],[12,50,12,72],[12,74,12,96],[12,98,12,117],[13,50,13,72],[13,74,13,96],[13,98,13,117],[1,1,2,26],[3,27,3,35],[6,2,6,26],[8,2,8,26],[7,2,7,26],[1,27,2,35],[4,2,4,26],[4,27,4,35],[5,27,5,35],[5,2,5,26],[6,27,6,35],[8,27,8,35],[7,27,7,35],[4,36,5,49],[1,50,2,73],[1,36,2,49],[4,119,4,137],[5,119,5,137],[2,98,2,118],[3,119,3,137],[1,98,1,137],[2,119,2,137],[3,98,3,118],[1,74,2,97],[4,50,4,72],[5,50,5,72],[21,9,21,159],[21,1,21,8],[23,1,23,159],[3,1,3,26],[3,36,3,49],[3,50,3,73],[9,2,9,26],[10,2,10,26],[12,2,12,26],[11,2,11,26],[13,2,13,26],[14,2,14,26],[16,2,16,26],[15,2,15,26],[17,2,17,26],[18,2,18,26],[19,2,19,26],[3,74,3,97],[6,36,7,49],[9,27,9,35],[7,119,7,137],[7,50,7,72],[7,74,7,96],[7,98,7,117],[28,106,28,131],[29,38,29,61],[29,66,29,101],[29,106,29,131],[25,76,25,101],[26,38,26,70],[26,76,26,101],[27,66,28,101],[27,38,28,61],[24,38,25,70],[8,36,9,49],[10,36,11,49],[9,119,9,137],[8,119,8,137],[10,119,10,137],[8,50,8,72],[8,74,8,96],[8,98,8,117],[10,50,10,72],[9,50,9,72],[9,74,9,96],[9,98,9,117],[31,38,31,61],[31,66,31,101],[30,76,30,89],[30,90,30,93],[30,94,30,97],[30,98,30,101],[30,38,30,61],[30,67,30,68],[30,73,30,75],[30,69,30,72]]}
[null,null,null,null,null,null,null,null,null,null,null,null,null,null,null,null,null,null,null,null,null,null,null,null,null,null,null,null,null,null,null,null,null,null,null,null,null,null,null,null,null,null,null,null,null,null,null,null,null,null,null,null,null,null,null,null,null,null,null,null,null,null,null,null,null,null,null,null,null,null,null,null,null,null,null,null,null,null,null,null,null,null,null,null,null,null,null,null,null,null,null,null,null,null,null,null,null,null,null,null,null,null,null,null,null,null,null,null,null,null,null,null,null,null,null,null,null,null,null,null,null,null,null,null,null,null,null,null,null,null,null,null,null,null,null,null,null,null,null,null,null,null,null,null,null,null,null,null,null,null,null,null,null,null,null,null,null,"Код по ОКЕИ: грамм - 163"]
[null,"Наименование драгоценных металлов",null,null,null,null,null,null,null,null,null,null,null,null,null,null,null,null,null,null,null,null,null,null,null,null,null,"Код строки 1",null,null,null,null,null,null,null,null,"Код\nпо ОКП",null,null,null,null,null,null,null,null,null,null,null,null,null,"Остаток на начало отчетного года",null,null,null,null,null,null,null,null,null,null,null,null,null,null,null,null,null,null,null,null,null,null,null,"Поступило \nв отчетном году",null,null,null,null,null,null,null,null,null,null,null,null,null,null,null,null,null,null,null,null,null,null,null,"Переработано и отгружено \nв отчетном году",null,null,null,null,null,null,null,null,null,null,null,null,null,null,null,null,null,null,null,null,null,null,null,null,null,null,null,null,null,null,null,null,null,null,null,null,null,null,null,"Остаток на конец отчетного года"]
[null,null,null,null,null,null,null,null,null,null,null,null,null,null,null,null,null,null,null,null,null,null,null,null,null,null,null,null,null,null,null,null,null,null,null,null,null,null,null,null,null,null,null,null,null,null,null,null,null,null,null,null,null,null,null,null,null,null,null,null,null,null,null,null,null,null,null,null,null,null,null,null,null,null,null,null,null,null,null,null,null,null,null,null,null,null,null,null,null,null,null,null,null,null,null,null,null,null,"всего",null,null,null,null,null,null,null,null,null,null,null,null,null,null,null,null,null,null,null,null,"в счет отходов производства давальцев"]
[null,1,null,null,null,null,null,null,null,null,null,null,null,null,null,null,null,null,null,null,null,null,null,null,null,null,null,2,null,null,null,null,null,null,null,null,3,null,null,null,null,null,null,null,null,null,null,null,null,null,4,null,null,null,null,null,null,null,null,null,null,null,null,null,null,null,null,null,null,null,null,null,null,null,5,null,null,null,null,null,null,null,null,null,null,null,null,null,null,null,null,null,null,null,null,null,null,null,6,null,null,null,null,null,null,null,null,null,null,null,null,null,null,null,null,null,null,null,null,7,null,null,null,null,null,null,null,null,null,null,null,null,null,null,null,null,null,null,8]
[null,null,"Золото",null,null,null,null,null,null,null,null,null,null,null,null,null,null,null,null,null,null,null,null,null,null,null,null,"01",null,null,null,null,null,null,null,null,175340,null,null,null,null,null,null,null,null,null,null,null,null,null,null,null,null,null,null,null,null,null,null,null,null,null,null,null,null,null,null,null,null,null,null,null,null,{"$f":"IF(ISERROR(1+AY5),0,AY5)","v":0},null,null,null,null,null,null,null,null,null,null,null,null,null,null,null,null,null,null,null,null,null,null,null,{"$f":"IF(ISERROR(1+BW5),0,BW5)","v":0},null,null,null,null,null,null,null,null,null,null,null,null,null,null,null,null,null,null,null,null,{"$f":"IF(ISERROR(1+CU5),0,CU5)","v":0},null,null,null,null,null,null,null,null,null,null,null,null,null,null,null,null,null,null,null,{"$f":"IF(AND(AY5=\"\",BW5=\"\",CU5=\"\"),\"\",IF(FD5=0,\"-\",FD5))","v":""},null,null,null,null,null,null,null,null,null,null,null,null,null,null,null,null,null,null,null,null,{"$f":"BV5+CT5-DO5","v":0}]
[null,null,null,null,null,null,null,null,null,null,null,null,null,null,null,null,null,null,null,null,null,null,null,null,null,null,null,"30",null,null,null,null,null,null,null,null,null,null,null,null,null,null,null,null,null,null,null,null,null,null,null,null,null,null,null,null,null,null,null,null,null,null,null,null,null,null,null,null,null,null,null,null,null,0,null,null,null,null,null,null,null,null,null,null,null,null,null,null,null,null,null,null,null,null,null,null,null,0,null,null,null,null,null,null,null,null,null,null,null,null,null,null,null,null,null,null,null,null,{"$f":"IF(ISERROR(1+CU6),0,CU6)","v":0},null,null,null,null,null,null,null,null,null,null,null,null,null,null,null,null,null,null,null,{"$f":"IF(AND(AY6=\"\",BW6=\"\",CU6=\"\"),\"\",IF(FD6=0,\"-\",FD6))","v":""},null,null,null,null,null,null,null,null,null,null,null,null,null,null,null,null,null,null,null,null,{"$f":"BV6+CT6-DO6","v":0}]
[null,null,"Серебро",null,null,null,null,null,null,null,null,null,null,null,null,null,null,null,null,null,null,null,null,null,null,null,null,"02",null,null,null,null,null,null,null,null,175220,null,null,null,null,null,null,null,null,null,null,null,null,null,null,null,null,null,null,null,null,null,null,null,null,null,null,null,null,null,null,null,null,null,null,null,null,0,null,null,null,null,null,null,null,null,null,null,null,null,null,null,null,null,null,null,null,null,null,null,null,0,null,null,null,null,null,null,null,null,null,null,null,null,null,null,null,null,null,null,null,null,0,null,null,null,null,null,null,null,null,null,null,null,null,null,null,null,null,null,null,null,"",null,null,null,null,null,null,null,null,null,null,null,null,null,null,null,null,null,null,null,null,0]
[null,null,null,null,null,null,null,null,null,null,null,null,null,null,null,null,null,null,null,null,null,null,null,null,null,null,null,"40",null,null,null,null,null,null,null,null,null,null,null,null,null,null,null,null,null,null,null,null,null,null,null,null,null,null,null,null,null,null,null,null,null,null,null,null,null,null,null,null,null,null,null,null,null,0,null,null,null,null,null,null,null,null,null,null,null,null,null,null,null,null,null,null,null,null,null,null,null,0,null,null,null,null,null,null,null,null,null,null,null,null,null,null,null,null,null,null,null,null,0,null,null,null,null,null,null,null,null,null,null,null,null,null,null,null,null,null,null,null,"",null,null,null,null,null,null,null,null,null,null,null,null,null,null,null,null,null,null,null,null,0]
[null,null,"Платина",null,null,null,null,null,null,null,null,null,null,null,null,null,null,null,null,null,null,null,null,null,null,null,null,"03",null,null,null,null,null,null,null,null,"175120",null,null,null,null,null,null,null,null,null,null,null,null,null,null,null,null,null,null,null,null,null,null,null,null,null,null,null,null,null,null,null,null,null,null,null,null,0,null,null,null,null,null,null,null,null,null,null,null,null,null,null,null,null,null,null,null,null,null,null,null,0,null,null,null,null,null,null,null,null,null,null,null,null,null,null,null,null,null,null,null,null,0,null,null,null,null,null,null,null,null,null,null,null,null,null,null,null,null,null,null,null,"",null,null,null,null,null,null,null,null,null,null,null,null,null,null,null,null,null,null,null,null,0]
[null,null,null,null,null,null,null,null,null,null,null,null,null,null,null,null,null,null,null,null,null,null,null,null,null,null,null,"50",null,null,null,null,null,null,null,null,null,null,null,null,null,null,null,null,null,null,null,null,null,null,null,null,null,null,null,null,null,null,null,null,null,null,null,null,null,null,null,null,null,null,null,null,null,0,null,null,null,null,null,null,null,null,null,null,null,null,null,null,null,null,null,null,null,null,null,null,null,0,null,null,null,null,null,null,null,null,null,null,null,null,null,null,null,null,null,null,null,null,0,null,null,null,null,null,null,null,null,null,null,null,null,null,null,null,null,null,null,null,"",null,null,null,null,null,null,null,null,null,null,null,null,null,null,null,null,null,null,null,null,0]
[null,null,"Иридий",null,null,null,null,null,null,null,null,null,null,null,null,null,null,null,null,null,null,null,null,null,null,null,null,"04",null,null,null,null,null,null,null,null,"175171",null,null,null,null,null,null,null,null,null,null,null,null,null,null,null,null,null,null,null,null,null,null,null,null,null,null,null,null,null,null,null,null,null,null,null,null,0,null,null,null,null,null,null,null,null,null,null,null,null,null,null,null,null,null,null,null,null,null,null,null,0,null,null,null,null,null,null,null,null,null,null,null,null,null,null,null,null,null,null,null,null,0,null,null,null,null,null,null,null,null,null,null,null,null,null,null,null,null,null,null,null,"",null,null,null,null,null,null,null,null,null,null,null,null,null,null,null,null,null,null,null,null,0]
[null,null,null,null,null,null,null,null,null,null,null,null,null,null,null,null,null,null,null,null,null,null,null,null,null,null,null,"60",null,null,null,null,null,null,null,null,null,null,null,null,null,null,null,null,null,null,null,null,null,null,null,null,null,null,null,null,null,null,null,null,null,null,null,null,null,null,null,null,null,null,null,null,null,0,null,null,null,null,null,null,null,null,null,null,null,null,null,null,null,null,null,null,null,null,null,null,null,0,null,null,null,null,null,null,null,null,null,null,null,null,null,null,null,null,null,null,null,null,0,null,null,null,null,null,null,null,null,null,null,null,null,null,null,null,null,null,null,null,"",null,null,null,null,null,null,null,null,null,null,null,null,null,null,null,null,null,null,null,null,0]
[null,null,"Родий",null,null,null,null,null,null,null,null,null,null,null,null,null,null,null,null,null,null,null,null,null,null,null,null,"05",null,null,null,null,null,null,null,null,"175161",null,null,null,null,null,null,null,null,null,null,null,null,null,null,null,null,null,null,null,null,null,null,null,null,null,null,null,null,null,null,null,null,null,null,null,null,0,null,null,null,null,null,null,null,null,null,null,null,null,null,null,null,null,null,null,null,null,null,null,null,0,null,null,null,null,null,null,null,null,null,null,null,null,null,null,null,null,null,null,null,null,0,null,null,null,null,null,null,null,null,null,null,null,null,null,null,null,null,null,null,null,"",null,null,null,null,null,null,null,null,null,null,null,null,null,null,null,null,null,null,null,null,0]
[null,null,null,null,null,null,null,null,null,null,null,null,null,null,null,null,null,null,null,null,null,null,null,null,null,null,null,"70",null,null,null,null,null,null,null,null,null,null,null,null,null,null,null,null,null,null,null,null,null,null,null,null,null,null,null,null,null,null,null,null,null,null,null,null,null,null,null,null,null,null,null,null,null,0,null,null,null,null,null,null,null,null,null,null,null,null,null,null,null,null,null,null,null,null,null,null,null,0,null,null,null,null,null,null,null,null,null,null,null,null,null,null,null,null,null,null,null,null,0,null,null,null,null,null,null,null,null,null,null,null,null,null,null,null,null,null,null,null,"",null,null,null,null,null,null,null,null,null,null,null,null,null,null,null,null,null,null,null,null,0]
[null,null,"Палладий",null,null,null,null,null,null,null,null,null,null,null,null,null,null,null,null,null,null,null,null,null,null,null,null,"06",null,null,null,null,null,null,null,null,"175140",null,null,null,null,null,null,null,null,null,null,null,null,null,null,null,null,null,null,null,null,null,null,null,null,null,null,null,null,null,null,null,null,null,null,null,null,0,null,null,null,null,null,null,null,null,null,null,null,null,null,null,null,null,null,null,null,null,null,null,null,0,null,null,null,null,null,null,null,null,null,null,null,null,null,null,null,null,null,null,null,null,0,null,null,null,null,null,null,null,null,null,null,null,null,null,null,null,null,null,null,null,"",null,null,null,null,null,null,null,null,null,null,null,null,null,null,null,null,null,null,null,null,0]
[null,null,null,null,null,null,null,null,null,null,null,null,null,null,null,null,null,null,null,null,null,null,null,null,null,null,null,"80",null,null,null,null,null,null,null,null,null,null,null,null,null,null,null,null,null,null,null,null,null,null,null,null,null,null,null,null,null,null,null,null,null,null,null,null,null,null,null,null,null,null,null,null,null,0,null,null,null,null,null,null,null,null,null,null,null,null,null,null,null,null,null,null,null,null,null,null,null,0,null,null,null,null,null,null,null,null,null,null,null,null,null,null,null,null,null,null,null,null,0,null,null,null,null,null,null,null,null,null,null,null,null,null,null,null,null,null,null,null,"",null,null,null,null,null,null,null,null,null,null,null,null,null,null,null,null,null,null,null,null,0]
[null,null,"Рутений",null,null,null,null,null,null,null,null,null,null,null,null,null,null,null,null,null,null,null,null,null,null,null,null,"07",null,null,null,null,null,null,null,null,"175181",null,null,null,null,null,null,null,null,null,null,null,null,null,null,null,null,null,null,null,null,null,null,null,null,null,null,null,null,null,null,null,null,null,null,null,null,0,null,null,null,null,null,null,null,null,null,null,null,null,null,null,null,null,null,null,null,null,null,null,null,0,null,null,null,null,null,null,null,null,null,null,null,null,null,null,null,null,null,null,null,null,0,null,null,null,null,null,null,null,null,null,null,null,null,null,null,null,null,null,null,null,"",null,null,null,null,null,null,null,null,null,null,null,null,null,null,null,null,null,null,null,null,0]
[null,null,null,null,null,null,null,null,null,null,null,null,null,null,null,null,null,null,null,null,null,null,null,null,null,null,null,"90",null,null,null,null,null,null,null,null,null,null,null,null,null,null,null,null,null,null,null,null,null,null,null,null,null,null,null,null,null,null,null,null,null,null,null,null,null,null,null,null,null,null,null,null,null,0,null,null,null,null,null,null,null,null,null,null,null,null,null,null,null,null,null,null,null,null,null,null,null,0,null,null,null,null,null,null,null,null,null,null,null,null,null,null,null,null,null,null,null,null,0,null,null,null,null,null,null,null,null,null,null,null,null,null,null,null,null,null,null,null,"",null,null,null,null,null,null,null,null,null,null,null,null,null,null,null,null,null,null,null,null,0]
[null,null,"Осмий",null,null,null,null,null,null,null,null,null,null,null,null,null,null,null,null,null,null,null,null,null,null,null,null,"08",null,null,null,null,null,null,null,null,"175191",null,null,null,null,null,null,null,null,null,null,null,null,null,null,null,null,null,null,null,null,null,null,null,null,null,null,null,null,null,null,null,null,null,null,null,null,0,null,null,null,null,null,null,null,null,null,null,null,null,null,null,null,null,null,null,null,null,null,null,null,0,null,null,null,null,null,null,null,null,null,null,null,null,null,null,null,null,null,null,null,null,0,null,null,null,null,null,null,null,null,null,null,null,null,null,null,null,null,null,null,null,"",null,null,null,null,null,null,null,null,null,null,null,null,null,null,null,null,null,null,null,null,0]
[null,null,null,null,null,null,null,null,null,null,null,null,null,null,null,null,null,null,null,null,null,null,null,null,null,null,null,"100",null,null,null,null,null,null,null,null,null,null,null,null,null,null,null,null,null,null,null,null,null,null,null,null,null,null,null,null,null,null,null,null,null,null,null,null,null,null,null,null,null,null,null,null,null,0,null,null,null,null,null,null,null,null,null,null,null,null,null,null,null,null,null,null,null,null,null,null,null,0,null,null,null,null,null,null,null,null,null,null,null,null,null,null,null,null,null,null,null,null,0,null,null,null,null,null,null,null,null,null,null,null,null,null,null,null,null,null,null,null,"",null,null,null,null,null,null,null,null,null,null,null,null,null,null,null,null,null,null,null,null,0]
[]
[null,"1_",null,null,null,null,null,null,null,"по строкам 01 - 08 показываются драгоценные металлы, получаемые из всех источников;\nпо строкам 30 - 100 показываются драгоценные металлы, получаемые на создание и пополнение оборотных фондов."]
[]
[null,"Линия отрыва (для отчетности, представляемой индивидуальным предпринимателем)"]
[null,"Руководитель организации",null,null,null,null,null,null,null,null,null,null,null,null,null,null,null,null,null,null,null,null,null,null,null,null,null,null,null,null,null,null,null,null,null,null,null,null,{"$f":"IFERROR(IF(AND(ФОРМА!E7=\"\",ФОРМА!E8=\"\"),\"-\",IF(ФОРМА!E7=\"\",CONCATENATE(LEFT(TRIM(ФОРМА!E8),FIND(\" \",TRIM(ФОРМА!E8),1)),MID(TRIM(ФОРМА!E8),FIND(\" \",TRIM(ФОРМА!E8),1)+1,1),\".\",MID(TRIM(ФОРМА!E8),FIND(\" \",TRIM(ФОРМА!E8),FIND(\" \",TRIM(ФОРМА!E8),1)+1)+1,1),\".\"),CONCATENATE(LEFT(TRIM(ФОРМА!E7),FIND(\" \",TRIM(ФОРМА!E7),1)),MID(TRIM(ФОРМА!E7),FIND(\" \",TRIM(ФОРМА!E7),1)+1,1),\".\",MID(TRIM(ФОРМА!E7),FIND(\" \",TRIM(ФОРМА!E7),FIND(\" \",TRIM(ФОРМА!E7),1)+1)+1,1),\".\"))),\"Данные введены некорректно\")","v":"-"}]
[null,"(индивидуальный предприниматель)"]
[null,null,null,null,null,null,null,null,null,null,null,null,null,null,null,null,null,null,null,null,null,null,null,null,null,null,null,null,null,null,null,null,null,null,null,null,null,null,"(Ф.И.О.)",null,null,null,null,null,null,null,null,null,null,null,null,null,null,null,null,null,null,null,null,null,null,null,null,null,null,null,null,null,null,null,null,null,null,null,null,null,"(подпись)"]
[null,"Должностное лицо, ответственное ",null,null,null,null,null,null,null,null,null,null,null,null,null,null,null,null,null,null,null,null,null,null,null,null,null,null,null,null,null,null,null,null,null,null,null,null,{"$f":"IF(ФОРМА!E25=\"\",\"-\",ФОРМА!E25)","v":"-"},null,null,null,null,null,null,null,null,null,null,null,null,null,null,null,null,null,null,null,null,null,null,null,null,null,null,null,{"$f":"IFERROR(IF(ФОРМА!E26=\"\",\"-\",CONCATENATE(LEFT(TRIM(ФОРМА!E26),FIND(\" \",TRIM(ФОРМА!E26),1)),MID(TRIM(ФОРМА!E26),FIND(\" \",TRIM(ФОРМА!E26),1)+1,1),\".\",MID(TRIM(ФОРМА!E26),FIND(\" \",TRIM(ФОРМА!E26),FIND(\" \",TRIM(ФОРМА!E26),1)+1)+1,1),\".\")),\"Данные введены некорректно\")","v":"-"}]
[null,"за составление формы"]
[null,null,null,null,null,null,null,null,null,null,null,null,null,null,null,null,null,null,null,null,null,null,null,null,null,null,null,null,null,null,null,null,null,null,null,null,null,null,"(должность)",null,null,null,null,null,null,null,null,null,null,null,null,null,null,null,null,null,null,null,null,null,null,null,null,null,null,null,"(Ф.И.О.)",null,null,null,null,null,null,null,null,null,null,null,null,null,null,null,null,null,null,null,null,null,null,null,null,null,null,null,null,null,null,null,null,null,null,null,null,null,null,null,"(подпись)"]
[null,null,null,null,null,null,null,null,null,null,null,null,null,null,null,null,null,null,null,null,null,null,null,null,null,null,null,null,null,null,null,null,null,null,null,null,null,null,{"$f":"IF(ФОРМА!E27=\"\",\"-\",ФОРМА!E27)","v":"-"},null,null,null,null,null,null,null,null,null,null,null,null,null,null,null,null,null,null,null,null,null,null,null,null,null,null,null,null,"«",null,null,null,null,null,"»",null,null,null,null,null,null,null,null,null,null,null,null,null,null,null,null,20,null,null,null,null,null,null,null," год"]
[null,null,null,null,null,null,null,null,null,null,null,null,null,null,null,null,null,null,null,null,null,null,null,null,null,null,null,null,null,null,null,null,null,null,null,null,null,null,"(номер контактного телефона)",null,null,null,null,null,null,null,null,null,null,null,null,null,null,null,null,null,null,null,null,null,null,null,null,null,null,null,"(дата составления документа)"]

{"sheet":"П   ","index":13,"n_rows":0,"n_cols":0,"rows_kept":0,"cut":false,"hidden":false,"merged":[]}

{"sheet":"4дм(1,","index":14,"n_rows":36,"n_cols":138,"rows_kept":36,"cut":false,"hidden":false,"merged":[[9,30,9,126],[34,118,34,136],[34,137,34,155],[34,1,34,22],[34,23,34,41],[34,42,34,60],[34,61,34,79],[34,80,34,98],[34,99,34,117],[13,1,13,90],[13,91,13,118],[13,127,13,151],[32,1,33,22],[29,1,29,151],[27,1,27,151],[31,1,31,151],[0,20,0,136],[2,20,2,136],[4,14,4,142],[6,20,6,136],[8,30,8,126],[33,80,33,98],[33,99,33,117],[33,118,33,136],[33,137,33,155],[33,42,33,60],[33,61,33,79],[35,137,35,155],[35,1,35,22],[35,23,35,41],[35,42,35,60],[35,61,35,79],[35,80,35,98],[26,2,26,150],[28,17,28,150],[22,2,22,90],[10,75,10,80],[35,99,35,117],[35,118,35,136],[14,91,21,118],[20,127,21,151],[21,2,21,5],[22,91,23,118],[23,2,23,5],[23,6,23,90],[19,2,20,90],[14,127,19,151],[32,23,32,155],[33,23,33,41]]}
[null,null,null,null,null,null,null,null,null,null,null,null,null,null,null,null,null,null,null,null,"ФЕДЕРАЛЬНОЕ ГОСУДАРСТВЕННОЕ СТАТИСТИЧЕСКОЕ НАБЛЮДЕНИЕ"]
[]
[null,null,null,null,null,null,null,null,null,null,null,null,null,null,null,null,null,null,null,null,"КОНФИДЕНЦИАЛЬНОСТЬ ГАРАНТИРУЕТСЯ ПОЛУЧАТЕЛЕМ ИНФОРМАЦИИ"]
[]
[null,null,null,null,null,null,null,null,null,null,null,null,null,null,"Нарушение порядка представления статистической информации, а равно представление недостоверной статистической информации\nвлечет ответственность, установленную статьей 13.19 Кодекса Российской Федерации об административных правонарушениях\n от 30.12.2001 № 195-ФЗ, а также статьей 3 Закона Российской Федерации от 13.05.92 № 2761-1 \"Об ответственности за нарушение\n порядка представления государственной статистической отчетности\""]
[]
[null,null,null,null,null,null,null,null,null,null,null,null,null,null,null,null,null,null,null,null,"В соответствии со статьей 6 Федерального закона от 27.07.2006 № 152-ФЗ \"О персональных данных\" обработка персональных данных осуществляется для статистических целей при условии обязательного обезличивания персональных данных"]
[]
[null,null,null,null,null,null,null,null,null,null,null,null,null,null,null,null,null,null,null,null,null,null,null,null,null,null,null,null,null,null,"СВЕДЕНИЯ ОБ ОСТАТКАХ, ПОСТУПЛЕНИИ И РАСХОДЕ ДРАГОЦЕННЫХ МЕТАЛЛОВ, "]
[null,null,null,null,null,null,null,null,null,null,null,null,null,null,null,null,null,null,null,null,null,null,null,null,null,null,null,null,null,null,"СОДЕРЖАЩИХСЯ В СОСТАВЕ ПРИБОРОВ, ОБОРУДОВАНИЯ И ДРУГИХ ИЗДЕЛИЙ"]
[null,null,null,null,null,null,null,null,null,null,null,null,null,null,null,null,null,null,null,null,null,null,null,null,null,null,null,null,null,null,null,null,null,null,null,null,null,null,null,null,null,null,null,null,null,null,null,null,null,null,null,null,null,null,null,null,null,null,null,null,null,null,null,null,null,null,null,null,null,null,null,null,null,null,"за",{"$f":"IF(ФОРМА!I24=\"\",\"-\",ФОРМА!I24)","v":"-"},null,null,null,null,null,"г."]
[]
[]
[null,"Представляют:",null,null,null,null,null,null,null,null,null,null,null,null,null,null,null,null,null,null,null,null,null,null,null,null,null,null,null,null,null,null,null,null,null,null,null,null,null,null,null,null,null,null,null,null,null,null,null,null,null,null,null,null,null,null,null,null,null,null,null,null,null,null,null,null,null,null,null,null,null,null,null,null,null,null,null,null,null,null,null,null,null,null,null,null,null,null,null,null,null,"Сроки представления",null,null,null,null,null,null,null,null,null,null,null,null,null,null,null,null,null,null,null,null,null,null,null,null,null,null,null,null,null,null,null,null,null,null,null,"Форма № 4-ДМ"]
[null,null,"юридические лица, физические лица, занимающиеся предпринимательской деятельностью",null,null,null,null,null,null,null,null,null,null,null,null,null,null,null,null,null,null,null,null,null,null,null,null,null,null,null,null,null,null,null,null,null,null,null,null,null,null,null,null,null,null,null,null,null,null,null,null,null,null,null,null,null,null,null,null,null,null,null,null,null,null,null,null,null,null,null,null,null,null,null,null,null,null,null,null,null,null,null,null,null,null,null,null,null,null,null,null,"1 марта \nпосле отчетного периода",null,null,null,null,null,null,null,null,null,null,null,null,null,null,null,null,null,null,null,null,null,null,null,null,null,null,null,null,null,null,null,null,null,null,null,"Утверждена\nПостановлением Росстата\nот 14.11.2007 № 88"]
[null,null,"без образования юридического лица (индивидуальные предприниматели), имеющие"]
[null,null,"в своем распоряжении основные средства, покупные комплектующие изделия,"]
[null,null,"кино-, фото-, рентгеноматериалы, кабельную продукцию, серебряно-цинковые элементы"]
[null,null,"питания (аккумуляторы), запасные части и другие материальные ценности, в составе"]
[null,null,"которых содержатся драгоценные металлы:"]
[null,null,null,null,null,null,null,null,null,null,null,null,null,null,null,null,null,null,null,null,null,null,null,null,null,null,null,null,null,null,null,null,null,null,null,null,null,null,null,null,null,null,null,null,null,null,null,null,null,null,null,null,null,null,null,null,null,null,null,null,null,null,null,null,null,null,null,null,null,null,null,null,null,null,null,null,null,null,null,null,null,null,null,null,null,null,null,null,null,null,null,null,null,null,null,null,null,null,null,null,null,null,null,null,null,null,null,null,null,null,null,null,null,null,null,null,null,null,null,null,null,null,null,null,null,null,null,"Годовая"]
[null,null,"-",null,null,null,"Гохрану России (121170, г. Москва, ул. 1812 года, дом 14)"]
[null,null,"Гохран России:",null,null,null,null,null,null,null,null,null,null,null,null,null,null,null,null,null,null,null,null,null,null,null,null,null,null,null,null,null,null,null,null,null,null,null,null,null,null,null,null,null,null,null,null,null,null,null,null,null,null,null,null,null,null,null,null,null,null,null,null,null,null,null,null,null,null,null,null,null,null,null,null,null,null,null,null,null,null,null,null,null,null,null,null,null,null,null,null,"по согласованной \nпрограмме и срокам"]
[null,null,"-",null,null,null,"Росстату (107450, г. Москва, ул. Мясницкая, д. 39, строение 1)"]
[]
[null,null,"Наименование отчитывающейся организации (фамилия, имя, отчество индивидуального предпринимателя)"]
[null,null,{"$f":"IF(AND(ФОРМА!E5=\"\",ФОРМА!E8=\"\"),\"-\",IF(ФОРМА!E5=\"\",ФОРМА!E8,IF(ФОРМА!E6=\"\",ФОРМА!E5,ФОРМА!E5&\" (\"&ФОРМА!E6&\")\")))","v":"-"}]
[]
[null,null,"Почтовый адрес",null,null,null,null,null,null,null,null,null,null,null,null,null,null,{"$f":"IF(ФОРМА!E9=\"\",\"-\",ФОРМА!E9)","v":"-"}]
[]
[]
[null,"Линия отрыва (для отчетности, представляемой индивидуальным предпринимателем)"]
[null,"Код\nформы\nпо ОКУД",null,null,null,null,null,null,null,null,null,null,null,null,null,null,null,null,null,null,null,null,null,"Код "]
[null,null,null,null,null,null,null,null,null,null,null,null,null,null,null,null,null,null,null,null,null,null,null,"отчитывающейся организации (индивидуального предпринимателя)\nпо ОКПО",null,null,null,null,null,null,null,null,null,null,null,null,null,null,null,null,null,null,"вида деятельности\nпо ОКВЭД",null,null,null,null,null,null,null,null,null,null,null,null,null,null,null,null,null,null,"территории\nпо ОКАТО",null,null,null,null,null,null,null,null,null,null,null,null,null,null,null,null,null,null,"министерства (ведомства), органа управления \nпо ОКОГУ",null,null,null,null,null,null,null,null,null,null,null,null,null,null,null,null,null,null,"организационно-правовой формы\nпо ОКОПФ",null,null,null,null,null,null,null,null,null,null,null,null,null,null,null,null,null,null,"формы собственности\nпо ОКФС"]
[null,1,null,null,null,null,null,null,null,null,null,null,null,null,null,null,null,null,null,null,null,null,null,2,null,null,null,null,null,null,null,null,null,null,null,null,null,null,null,null,null,null,3,null,null,null,null,null,null,null,null,null,null,null,null,null,null,null,null,null,null,4,null,null,null,null,null,null,null,null,null,null,null,null,null,null,null,null,null,null,5,null,null,null,null,null,null,null,null,null,null,null,null,null,null,null,null,null,null,6,null,null,null,null,null,null,null,null,null,null,null,null,null,null,null,null,null,null,7,null,null,null,null,null,null,null,null,null,null,null,null,null,null,null,null,null,null,8]
[null,"0607073",null,null,null,null,null,null,null,null,null,null,null,null,null,null,null,null,null,null,null,null,null,{"$f":"IF(ФОРМА!$E$18=\"\",\"-\",ФОРМА!$E$18)","v":"-"},null,null,null,null,null,null,null,null,null,null,null,null,null,null,null,null,null,null,{"$f":"IF(ФОРМА!$E$19=\"\",\"-\",ФОРМА!$E$19)","v":"-"},null,null,null,null,null,null,null,null,null,null,null,null,null,null,null,null,null,null,{"$f":"IF(ФОРМА!$E$20=\"\",\"-\",ФОРМА!$E$20)","v":"-"},null,null,null,null,null,null,null,null,null,null,null,null,null,null,null,null,null,null,{"$f":"IF(ФОРМА!$E$21=\"\",\"-\",ФОРМА!$E$21)","v":"-"},null,null,null,null,null,null,null,null,null,null,null,null,null,null,null,null,null,null,{"$f":"IF(ФОРМА!$E$22=\"\",\"-\",ФОРМА!$E$22)","v":"-"},null,null,null,null,null,null,null,null,null,null,null,null,null,null,null,null,null,null,{"$f":"IF(ФОРМА!$E$23=\"\",\"-\",ФОРМА!$E$23)","v":"-"}]

{"sheet":"2,3,4)","index":15,"n_rows":72,"n_cols":162,"rows_kept":72,"cut":false,"hidden":false,"merged":[[3,134,3,147],[6,65,6,77],[8,65,8,77],[3,149,3,160],[4,149,5,160],[16,65,16,77],[11,58,11,64],[12,58,12,64],[1,149,1,160],[2,149,2,160],[1,134,1,148],[2,134,2,148],[2,65,2,77],[2,58,2,64],[2,78,2,91],[2,92,2,105],[4,134,5,147],[4,148,5,148],[6,120,6,132],[6,134,6,147],[6,149,6,160],[7,120,7,132],[7,134,7,147],[7,149,7,160],[21,2,21,57],[29,2,29,57],[24,58,24,64],[25,58,25,64],[26,58,26,64],[27,58,27,64],[29,58,29,64],[22,2,22,57],[23,2,23,57],[28,2,28,57],[28,58,28,64],[26,2,26,57],[26,65,26,77],[23,65,23,77],[12,2,12,57],[16,2,16,57],[17,2,17,57],[18,2,18,57],[19,2,19,57],[13,2,13,57],[15,2,15,57],[20,2,20,57],[25,65,25,77],[24,65,24,77],[22,65,22,77],[16,58,16,64],[19,58,19,64],[20,58,20,64],[13,58,13,64],[15,58,15,64],[21,58,21,64],[17,58,18,64],[22,58,22,64],[25,2,25,57],[24,2,24,57],[23,58,23,64],[11,2,11,57],[5,2,5,57],[6,2,6,57],[6,58,6,64],[3,58,3,64],[4,58,5,64],[3,65,3,77],[7,2,7,57],[8,2,8,57],[9,2,9,57],[7,58,7,64],[8,58,8,64],[9,58,9,64],[10,58,10,64],[7,65,7,77],[10,2,10,57],[1,1,1,57],[2,1,2,57],[3,2,3,57],[4,2,4,57],[1,65,1,77],[1,78,1,91],[1,92,1,105],[1,106,1,119],[1,120,1,133],[1,58,1,64],[3,120,3,132],[3,106,3,118],[3,92,3,104],[3,78,3,90],[2,106,2,119],[2,120,2,133],[4,120,5,132],[17,65,18,77],[4,65,5,77],[11,65,11,77],[12,65,12,77],[10,65,10,77],[9,65,9,77],[23,78,23,90],[23,92,23,104],[23,106,23,118],[4,92,5,104],[4,78,5,90],[4,91,5,91],[4,105,5,105],[4,106,5,118],[21,65,21,77],[20,65,20,77],[19,65,19,77],[7,78,7,90],[7,92,7,104],[7,106,7,118],[8,78,8,90],[8,92,8,104],[8,106,8,118],[10,78,10,90],[27,65,27,77],[34,2,34,57],[34,58,34,64],[34,65,34,77],[30,65,30,77],[30,78,30,91],[27,78,27,90],[29,78,29,90],[31,1,31,57],[31,58,31,64],[31,65,31,77],[31,78,31,91],[33,2,33,57],[33,58,33,64],[33,65,33,77],[29,65,29,77],[28,65,28,77],[27,2,27,57],[28,78,28,90],[32,78,32,90],[34,78,34,90],[35,58,36,64],[35,65,36,77],[30,106,30,119],[30,120,30,133],[30,134,30,148],[30,1,30,57],[30,58,30,64],[32,2,32,57],[32,58,32,64],[32,65,32,77],[33,78,33,90],[33,92,33,104],[33,106,33,118],[33,120,33,132],[33,134,33,147],[35,78,36,90],[35,91,36,91],[35,92,36,104],[35,105,36,105],[35,106,36,118],[35,119,36,119],[35,120,36,132],[35,133,36,133],[35,134,36,147],[51,149,51,160],[52,78,52,90],[52,92,52,104],[40,149,40,160],[53,2,53,57],[53,58,53,64],[53,65,53,77],[52,2,52,57],[52,58,52,64],[52,65,52,77],[51,2,51,57],[51,58,51,64],[51,65,51,77],[49,2,49,57],[50,2,50,57],[50,58,50,64],[50,65,50,77],[48,2,48,57],[48,58,49,64],[48,65,49,77],[47,2,47,57],[47,58,47,64],[47,65,47,77],[44,78,44,90],[55,78,55,91],[55,92,55,105],[55,106,55,119],[55,120,55,133],[55,134,55,148],[54,65,54,77],[51,78,51,90],[51,92,51,104],[51,106,51,118],[51,120,51,132],[51,134,51,147],[53,134,53,147],[14,2,14,57],[14,58,14,64],[14,65,14,77],[31,92,31,105],[31,106,31,119],[31,120,31,133],[31,134,31,148],[40,78,40,90],[40,92,40,104],[40,106,40,118],[40,120,40,132],[40,134,40,147],[38,2,38,57],[38,58,38,64],[38,65,38,77],[30,92,30,105],[36,2,36,57],[37,2,37,57],[37,58,37,64],[37,65,37,77],[35,2,35,57],[39,2,39,57],[40,2,40,57],[15,65,15,77],[44,92,44,104],[44,106,44,118],[44,120,44,132],[44,134,44,147],[44,149,44,160],[43,78,43,90],[43,92,43,104],[43,106,43,118],[43,120,43,132],[43,134,43,147],[43,149,43,160],[46,2,46,57],[46,58,46,64],[46,65,46,77],[57,2,57,57],[55,1,55,57],[54,2,54,57],[54,58,54,64],[44,2,44,57],[44,58,44,64],[44,65,44,77],[57,58,57,64],[57,65,57,77],[55,58,55,64],[55,65,55,77],[41,2,41,57],[42,2,42,57],[39,58,39,64],[39,65,39,77],[41,58,41,64],[41,65,41,77],[45,2,45,57],[45,58,45,64],[45,65,45,77],[43,2,43,57],[43,58,43,64],[43,65,43,77],[40,58,40,64],[40,65,40,77],[42,58,42,64],[42,65,42,77],[67,38,68,61],[64,38,65,70],[59,2,59,57],[59,58,59,64],[59,65,59,77],[59,78,59,90],[59,92,59,104],[59,106,59,118],[59,120,59,132],[66,38,66,70],[66,75,66,100],[63,1,63,161],[65,75,65,100],[56,92,56,105],[56,106,56,119],[56,120,56,133],[56,134,56,148],[56,1,56,57],[56,58,56,64],[56,65,56,77],[56,78,56,91],[61,2,61,57],[61,58,61,64],[61,65,61,77],[60,2,60,57],[60,58,60,64],[60,65,60,77],[59,134,59,147],[58,2,58,57],[58,58,58,64],[58,65,58,77],[56,149,56,160],[71,38,71,61],[71,66,71,100],[70,38,70,61],[70,66,70,67],[70,68,70,71],[70,72,70,74],[70,75,70,88],[69,38,69,61],[69,66,69,100],[70,89,70,93],[70,94,70,96],[70,97,70,100],[69,106,69,131],[68,106,68,131],[67,66,68,100],[58,134,58,147],[58,149,58,160],[61,78,61,90],[61,92,61,104],[61,106,61,118],[61,120,61,132],[61,134,61,147],[61,149,61,160],[4,161,5,161],[4,133,5,133],[4,119,5,119],[17,78,18,90],[17,91,18,91],[17,92,18,104],[17,105,18,105],[17,106,18,118],[17,119,18,119],[17,120,18,132],[17,133,18,133],[17,134,18,147],[17,148,18,148],[17,149,18,160],[17,161,18,161],[6,78,6,90],[6,92,6,104],[6,106,6,118],[8,120,8,132],[8,134,8,147],[8,149,8,160],[9,78,9,90],[9,92,9,104],[9,106,9,118],[35,161,36,161],[48,78,49,90],[48,91,49,91],[48,92,49,104],[48,105,49,105],[48,106,49,118],[48,119,49,119],[48,120,49,132],[48,133,49,133],[48,134,49,147],[48,148,49,148],[48,149,49,160],[48,161,49,161],[37,78,37,90],[37,92,37,104],[37,106,37,118],[37,120,37,132],[37,134,37,147],[37,149,37,160],[38,78,38,90],[38,92,38,104],[38,106,38,118],[41,78,41,90],[41,92,41,104],[9,120,9,132],[9,134,9,147],[9,149,9,160],[10,92,10,104],[10,106,10,118],[10,120,10,132],[10,134,10,147],[10,149,10,160],[11,78,11,90],[11,92,11,104],[11,106,11,118],[11,120,11,132],[11,134,11,147],[11,149,11,160],[12,78,12,90],[12,92,12,104],[12,106,12,118],[12,120,12,132],[12,134,12,147],[12,149,12,160],[13,78,13,90],[13,92,13,104],[13,106,13,118],[13,120,13,132],[13,134,13,147],[13,149,13,160],[14,78,14,90],[14,92,14,104],[14,106,14,118],[14,120,14,132],[14,134,14,147],[14,149,14,160],[15,78,15,90],[15,92,15,104],[15,106,15,118],[15,120,15,132],[15,134,15,147],[15,149,15,160],[16,78,16,90],[16,92,16,104],[16,106,16,118],[16,120,16,132],[16,134,16,147],[16,149,16,160],[19,78,19,90],[19,92,19,104],[19,106,19,118],[19,120,19,132],[19,134,19,147],[19,149,19,160],[20,78,20,90],[20,92,20,104],[20,106,20,118],[20,120,20,132],[20,134,20,147],[20,149,20,160],[21,78,21,90],[21,92,21,104],[21,106,21,118],[21,120,21,132],[21,134,21,147],[21,149,21,160],[22,78,22,90],[22,92,22,104],[22,106,22,118],[22,120,22,132],[22,134,22,147],[22,149,22,160],[23,120,23,132],[23,134,23,147],[23,149,23,160],[24,78,24,90],[24,92,24,104],[24,106,24,118],[24,120,24,132],[24,134,24,147],[24,149,24,160],[25,78,25,90],[25,92,25,104],[25,106,25,118],[25,120,25,132],[25,134,25,147],[25,149,25,160],[26,78,26,90],[26,92,26,104],[26,106,26,118],[26,120,26,132],[26,134,26,147],[26,149,26,160],[27,92,27,104],[27,106,27,118],[27,120,27,132],[27,134,27,147],[27,149,27,160],[28,92,28,104],[28,106,28,118],[28,120,28,132],[28,134,28,147],[28,149,28,160],[29,92,29,104],[29,106,29,118],[29,120,29,132],[29,134,29,147],[29,149,29,160],[32,92,32,104],[32,106,32,118],[32,120,32,132],[32,134,32,147],[32,149,32,160],[30,149,30,160],[31,149,31,160],[38,120,38,132],[38,134,38,147],[38,149,38,160],[35,148,36,148],[35,149,36,160],[33,149,33,160],[34,92,34,104],[34,106,34,118],[34,120,34,132],[34,134,34,147],[34,149,34,160],[39,78,39,90],[39,92,39,104],[39,106,39,118],[39,120,39,132],[39,134,39,147],[39,149,39,160],[42,78,42,90],[42,92,42,104],[42,106,42,118],[42,120,42,132],[42,134,42,147],[42,149,42,160],[41,106,41,118],[41,120,41,132],[41,134,41,147],[41,149,41,160],[45,78,45,90],[45,92,45,104],[45,106,45,118],[45,120,45,132],[45,134,45,147],[45,149,45,160],[46,78,46,90],[46,92,46,104],[46,106,46,118],[46,120,46,132],[46,134,46,147],[46,149,46,160],[47,78,47,90],[47,92,47,104],[47,106,47,118],[47,120,47,132],[47,134,47,147],[47,149,47,160],[50,78,50,90],[50,92,50,104],[50,106,50,118],[50,120,50,132],[50,134,50,147],[50,149,50,160],[53,149,53,160],[54,78,54,90],[54,92,54,104],[54,106,54,118],[54,120,54,132],[54,134,54,147],[54,149,54,160],[52,120,52,132],[52,134,52,147],[52,106,52,118],[55,149,55,160],[13,65,13,77],[59,149,59,160],[60,78,60,90],[60,92,60,104],[60,106,60,118],[60,120,60,132],[60,134,60,147],[60,149,60,160],[57,78,57,90],[57,92,57,104],[57,106,57,118],[57,120,57,132],[57,134,57,147],[57,149,57,160],[58,78,58,90],[58,92,58,104],[58,106,58,118],[58,120,58,132],[52,149,52,160],[53,78,53,90],[53,92,53,104],[53,106,53,118],[53,120,53,132]]}
[null,null,null,null,null,null,null,null,null,null,null,null,null,null,null,null,null,null,null,null,null,null,null,null,null,null,null,null,null,null,null,null,null,null,null,null,null,null,null,null,null,null,null,null,null,null,null,null,null,null,null,null,null,null,null,null,null,null,null,null,null,null,null,null,null,null,null,null,null,null,null,null,null,null,null,null,null,null,null,null,null,null,null,null,null,null,null,null,null,null,null,null,null,null,null,null,null,null,null,null,null,null,null,null,null,null,null,null,null,null,null,null,null,null,null,null,null,null,null,null,null,null,null,null,null,null,null,null,null,null,null,null,null,null,null,null,null,null,null,null,null,null,null,null,null,null,null,null,null,null,null,null,null,null,null,null,null,null,null,"Код по ОКЕИ: грамм - 163"]
[null,"Наименование драгоценных металлов\nв объектах учета",null,null,null,null,null,null,null,null,null,null,null,null,null,null,null,null,null,null,null,null,null,null,null,null,null,null,null,null,null,null,null,null,null,null,null,null,null,null,null,null,null,null,null,null,null,null,null,null,null,null,null,null,null,null,null,null,"Код стро-ки",null,null,null,null,null,null,"Код\nпо ОКП ",null,null,null,null,null,null,null,null,null,null,null,null,"Остаток\nна начало отчетного года",null,null,null,null,null,null,null,null,null,null,null,null,null,"Поступило\nв отчетном году",null,null,null,null,null,null,null,null,null,null,null,null,null,"Списано\nв лом\nи отходы",null,null,null,null,null,null,null,null,null,null,null,null,null,"Израсходо-вано на про-изводство, реализовано, безвозмездно передано",null,null,null,null,null,null,null,null,null,null,null,null,null,"Потеряно при эксплуатации и прочие потери",null,null,null,null,null,null,null,null,null,null,null,null,null,null,"Остаток\nна конец отчетного года"]
[null,1,null,null,null,null,null,null,null,null,null,null,null,null,null,null,null,null,null,null,null,null,null,null,null,null,null,null,null,null,null,null,null,null,null,null,null,null,null,null,null,null,null,null,null,null,null,null,null,null,null,null,null,null,null,null,null,null,2,null,null,null,null,null,null,3,null,null,null,null,null,null,null,null,null,null,null,null,4,null,null,null,null,null,null,null,null,null,null,null,null,null,5,null,null,null,null,null,null,null,null,null,null,null,null,null,6,null,null,null,null,null,null,null,null,null,null,null,null,null,7,null,null,null,null,null,null,null,null,null,null,null,null,null,8,null,null,null,null,null,null,null,null,null,null,null,null,null,null,9]
[null,null,"Золото - всего",null,null,null,null,null,null,null,null,null,null,null,null,null,null,null,null,null,null,null,null,null,null,null,null,null,null,null,null,null,null,null,null,null,null,null,null,null,null,null,null,null,null,null,null,null,null,null,null,null,null,null,null,null,null,null,100,null,null,null,null,null,null,175001,null,null,null,null,null,null,null,null,null,null,null,null,null,null,null,null,null,null,null,null,null,null,null,null,null,{"$f":"IF(ISERROR(1+CA4),0,CA4)","v":0},null,null,null,null,null,null,null,null,null,null,null,null,null,{"$f":"IF(ISERROR(1+CO4),0,CO4)","v":0},null,null,null,null,null,null,null,null,null,null,null,null,null,{"$f":"IF(ISERROR(1+DC4),0,DC4)","v":0},null,null,null,null,null,null,null,null,null,null,null,null,null,{"$f":"IF(ISERROR(1+DQ4),0,DQ4)","v":0},null,null,null,null,null,null,null,null,null,null,null,null,null,null,{"$f":"IF(ISERROR(1+EE4),0,EE4)","v":0},{"$f":"IF(AND(CA4=\"\",CO4=\"\",DC4=\"\",DQ4=\"\",EE4=\"\"),\"\",IF(FF4=0,\"-\",FF4))","v":""},null,null,null,null,null,null,null,null,null,null,null,{"$f":"CN4+DB4-DP4-ED4-ES4","v":0}]
[null,null,"в том числе:",null,null,null,null,null,null,null,null,null,null,null,null,null,null,null,null,null,null,null,null,null,null,null,null,null,null,null,null,null,null,null,null,null,null,null,null,null,null,null,null,null,null,null,null,null,null,null,null,null,null,null,null,null,null,null,105,null,null,null,null,null,null,"Х",null,null,null,null,null,null,null,null,null,null,null,null,null,null,null,null,null,null,null,null,null,null,null,null,null,{"$f":"IF(ISERROR(1+CA5),0,CA5)","v":0},null,null,null,null,null,null,null,null,null,null,null,null,null,0,null,null,null,null,null,null,null,null,null,null,null,null,null,0,null,null,null,null,null,null,null,null,null,null,null,null,null,0,null,null,null,null,null,null,null,null,null,null,null,null,null,null,0,"",null,null,null,null,null,null,null,null,null,null,null,0]
[null,null,"в основных средствах (фондах)"]
[null,null,"из них: бытовая телерадиоаппаратура и другие приборы и изделия культурно-бытового назначения",null,null,null,null,null,null,null,null,null,null,null,null,null,null,null,null,null,null,null,null,null,null,null,null,null,null,null,null,null,null,null,null,null,null,null,null,null,null,null,null,null,null,null,null,null,null,null,null,null,null,null,null,null,null,null,106,null,null,null,null,null,null,"Х",null,null,null,null,null,null,null,null,null,null,null,null,null,null,null,null,null,null,null,null,null,null,null,null,null,0,null,null,null,null,null,null,null,null,null,null,null,null,null,0,null,null,null,null,null,null,null,null,null,null,null,null,null,0,null,null,null,null,null,null,null,null,null,null,null,null,null,0,null,null,null,null,null,null,null,null,null,null,null,null,null,null,0,"",null,null,null,null,null,null,null,null,null,null,null,0]
[null,null,"в покупных полуфабрикатах и комплектующих изделиях",null,null,null,null,null,null,null,null,null,null,null,null,null,null,null,null,null,null,null,null,null,null,null,null,null,null,null,null,null,null,null,null,null,null,null,null,null,null,null,null,null,null,null,null,null,null,null,null,null,null,null,null,null,null,null,110,null,null,null,null,null,null,"Х",null,null,null,null,null,null,null,null,null,null,null,null,null,null,null,null,null,null,null,null,null,null,null,null,null,0,null,null,null,null,null,null,null,null,null,null,null,null,null,0,null,null,null,null,null,null,null,null,null,null,null,null,null,0,null,null,null,null,null,null,null,null,null,null,null,null,null,0,null,null,null,null,null,null,null,null,null,null,null,null,null,null,0,"",null,null,null,null,null,null,null,null,null,null,null,0]
[null,null,"в запасных частях",null,null,null,null,null,null,null,null,null,null,null,null,null,null,null,null,null,null,null,null,null,null,null,null,null,null,null,null,null,null,null,null,null,null,null,null,null,null,null,null,null,null,null,null,null,null,null,null,null,null,null,null,null,null,null,115,null,null,null,null,null,null,"Х",null,null,null,null,null,null,null,null,null,null,null,null,null,null,null,null,null,null,null,null,null,null,null,null,null,0,null,null,null,null,null,null,null,null,null,null,null,null,null,0,null,null,null,null,null,null,null,null,null,null,null,null,null,0,null,null,null,null,null,null,null,null,null,null,null,null,null,0,null,null,null,null,null,null,null,null,null,null,null,null,null,null,0,"",null,null,null,null,null,null,null,null,null,null,null,0]
[null,null,"в оборудовании",null,null,null,null,null,null,null,null,null,null,null,null,null,null,null,null,null,null,null,null,null,null,null,null,null,null,null,null,null,null,null,null,null,null,null,null,null,null,null,null,null,null,null,null,null,null,null,null,null,null,null,null,null,null,null,120,null,null,null,null,null,null,"Х",null,null,null,null,null,null,null,null,null,null,null,null,null,null,null,null,null,null,null,null,null,null,null,null,null,0,null,null,null,null,null,null,null,null,null,null,null,null,null,0,null,null,null,null,null,null,null,null,null,null,null,null,null,0,null,null,null,null,null,null,null,null,null,null,null,null,null,0,null,null,null,null,null,null,null,null,null,null,null,null,null,null,0,"",null,null,null,null,null,null,null,null,null,null,null,0]
[null,null,"в материалах",null,null,null,null,null,null,null,null,null,null,null,null,null,null,null,null,null,null,null,null,null,null,null,null,null,null,null,null,null,null,null,null,null,null,null,null,null,null,null,null,null,null,null,null,null,null,null,null,null,null,null,null,null,null,null,125,null,null,null,null,null,null,"Х",null,null,null,null,null,null,null,null,null,null,null,null,null,null,null,null,null,null,null,null,null,null,null,null,null,0,null,null,null,null,null,null,null,null,null,null,null,null,null,0,null,null,null,null,null,null,null,null,null,null,null,null,null,0,null,null,null,null,null,null,null,null,null,null,null,null,null,0,null,null,null,null,null,null,null,null,null,null,null,null,null,null,0,"",null,null,null,null,null,null,null,null,null,null,null,0]
[null,null,"в готовой продукции",null,null,null,null,null,null,null,null,null,null,null,null,null,null,null,null,null,null,null,null,null,null,null,null,null,null,null,null,null,null,null,null,null,null,null,null,null,null,null,null,null,null,null,null,null,null,null,null,null,null,null,null,null,null,null,130,null,null,null,null,null,null,"Х",null,null,null,null,null,null,null,null,null,null,null,null,null,null,null,null,null,null,null,null,null,null,null,null,null,0,null,null,null,null,null,null,null,null,null,null,null,null,null,0,null,null,null,null,null,null,null,null,null,null,null,null,null,0,null,null,null,null,null,null,null,null,null,null,null,null,null,0,null,null,null,null,null,null,null,null,null,null,null,null,null,null,0,"",null,null,null,null,null,null,null,null,null,null,null,0]
[null,null,null,null,null,null,null,null,null,null,null,null,null,null,null,null,null,null,null,null,null,null,null,null,null,null,null,null,null,null,null,null,null,null,null,null,null,null,null,null,null,null,null,null,null,null,null,null,null,null,null,null,null,null,null,null,null,null,null,null,null,null,null,null,null,"Х",null,null,null,null,null,null,null,null,null,null,null,null,null,null,null,null,null,null,null,null,null,null,null,null,null,0,null,null,null,null,null,null,null,null,null,null,null,null,null,0,null,null,null,null,null,null,null,null,null,null,null,null,null,0,null,null,null,null,null,null,null,null,null,null,null,null,null,0,null,null,null,null,null,null,null,null,null,null,null,null,null,null,0,"",null,null,null,null,null,null,null,null,null,null,null,0]
[null,null,null,null,null,null,null,null,null,null,null,null,null,null,null,null,null,null,null,null,null,null,null,null,null,null,null,null,null,null,null,null,null,null,null,null,null,null,null,null,null,null,null,null,null,null,null,null,null,null,null,null,null,null,null,null,null,null,null,null,null,null,null,null,null,"Х",null,null,null,null,null,null,null,null,null,null,null,null,null,null,null,null,null,null,null,null,null,null,null,null,null,0,null,null,null,null,null,null,null,null,null,null,null,null,null,0,null,null,null,null,null,null,null,null,null,null,null,null,null,0,null,null,null,null,null,null,null,null,null,null,null,null,null,0,null,null,null,null,null,null,null,null,null,null,null,null,null,null,0,"",null,null,null,null,null,null,null,null,null,null,null,0]
[null,null,null,null,null,null,null,null,null,null,null,null,null,null,null,null,null,null,null,null,null,null,null,null,null,null,null,null,null,null,null,null,null,null,null,null,null,null,null,null,null,null,null,null,null,null,null,null,null,null,null,null,null,null,null,null,null,null,null,null,null,null,null,null,null,"Х",null,null,null,null,null,null,null,null,null,null,null,null,null,null,null,null,null,null,null,null,null,null,null,null,null,0,null,null,null,null,null,null,null,null,null,null,null,null,null,0,null,null,null,null,null,null,null,null,null,null,null,null,null,0,null,null,null,null,null,null,null,null,null,null,null,null,null,0,null,null,null,null,null,null,null,null,null,null,null,null,null,null,0,"",null,null,null,null,null,null,null,null,null,null,null,0]
[null,null,null,null,null,null,null,null,null,null,null,null,null,null,null,null,null,null,null,null,null,null,null,null,null,null,null,null,null,null,null,null,null,null,null,null,null,null,null,null,null,null,null,null,null,null,null,null,null,null,null,null,null,null,null,null,null,null,null,null,null,null,null,null,null,"Х",null,null,null,null,null,null,null,null,null,null,null,null,null,null,null,null,null,null,null,null,null,null,null,null,null,0,null,null,null,null,null,null,null,null,null,null,null,null,null,0,null,null,null,null,null,null,null,null,null,null,null,null,null,0,null,null,null,null,null,null,null,null,null,null,null,null,null,0,null,null,null,null,null,null,null,null,null,null,null,null,null,null,0,"",null,null,null,null,null,null,null,null,null,null,null,0]
[null,null,"Серебро - всего",null,null,null,null,null,null,null,null,null,null,null,null,null,null,null,null,null,null,null,null,null,null,null,null,null,null,null,null,null,null,null,null,null,null,null,null,null,null,null,null,null,null,null,null,null,null,null,null,null,null,null,null,null,null,null,200,null,null,null,null,null,null,"175002",null,null,null,null,null,null,null,null,null,null,null,null,null,null,null,null,null,null,null,null,null,null,null,null,null,0,null,null,null,null,null,null,null,null,null,null,null,null,null,0,null,null,null,null,null,null,null,null,null,null,null,null,null,0,null,null,null,null,null,null,null,null,null,null,null,null,null,0,null,null,null,null,null,null,null,null,null,null,null,null,null,null,0,"",null,null,null,null,null,null,null,null,null,null,null,0]
[null,null,"в том числе:",null,null,null,null,null,null,null,null,null,null,null,null,null,null,null,null,null,null,null,null,null,null,null,null,null,null,null,null,null,null,null,null,null,null,null,null,null,null,null,null,null,null,null,null,null,null,null,null,null,null,null,null,null,null,null,205,null,null,null,null,null,null,"Х",null,null,null,null,null,null,null,null,null,null,null,null,null,null,null,null,null,null,null,null,null,null,null,null,null,0,null,null,null,null,null,null,null,null,null,null,null,null,null,0,null,null,null,null,null,null,null,null,null,null,null,null,null,0,null,null,null,null,null,null,null,null,null,null,null,null,null,0,null,null,null,null,null,null,null,null,null,null,null,null,null,null,0,"",null,null,null,null,null,null,null,null,null,null,null,0]
[null,null,"в основных средствах (фондах)"]
[null,null,"из них: бытовая телерадиоаппаратура и другие приборы и изделия культурно-бытового назначения",null,null,null,null,null,null,null,null,null,null,null,null,null,null,null,null,null,null,null,null,null,null,null,null,null,null,null,null,null,null,null,null,null,null,null,null,null,null,null,null,null,null,null,null,null,null,null,null,null,null,null,null,null,null,null,206,null,null,null,null,null,null,"Х",null,null,null,null,null,null,null,null,null,null,null,null,null,null,null,null,null,null,null,null,null,null,null,null,null,0,null,null,null,null,null,null,null,null,null,null,null,null,null,0,null,null,null,null,null,null,null,null,null,null,null,null,null,0,null,null,null,null,null,null,null,null,null,null,null,null,null,0,null,null,null,null,null,null,null,null,null,null,null,null,null,null,0,"",null,null,null,null,null,null,null,null,null,null,null,0]
[null,null,"в покупных полуфабрикатах и комплектующих изделиях",null,null,null,null,null,null,null,null,null,null,null,null,null,null,null,null,null,null,null,null,null,null,null,null,null,null,null,null,null,null,null,null,null,null,null,null,null,null,null,null,null,null,null,null,null,null,null,null,null,null,null,null,null,null,null,210,null,null,null,null,null,null,"Х",null,null,null,null,null,null,null,null,null,null,null,null,null,null,null,null,null,null,null,null,null,null,null,null,null,0,null,null,null,null,null,null,null,null,null,null,null,null,null,0,null,null,null,null,null,null,null,null,null,null,null,null,null,0,null,null,null,null,null,null,null,null,null,null,null,null,null,0,null,null,null,null,null,null,null,null,null,null,null,null,null,null,0,"",null,null,null,null,null,null,null,null,null,null,null,0]
[null,null,"в кинофотоматериалах",null,null,null,null,null,null,null,null,null,null,null,null,null,null,null,null,null,null,null,null,null,null,null,null,null,null,null,null,null,null,null,null,null,null,null,null,null,null,null,null,null,null,null,null,null,null,null,null,null,null,null,null,null,null,null,215,null,null,null,null,null,null,"Х",null,null,null,null,null,null,null,null,null,null,null,null,null,null,null,null,null,null,null,null,null,null,null,null,null,0,null,null,null,null,null,null,null,null,null,null,null,null,null,0,null,null,null,null,null,null,null,null,null,null,null,null,null,0,null,null,null,null,null,null,null,null,null,null,null,null,null,0,null,null,null,null,null,null,null,null,null,null,null,null,null,null,0,"",null,null,null,null,null,null,null,null,null,null,null,0]
[null,null,"в кабельных изделиях",null,null,null,null,null,null,null,null,null,null,null,null,null,null,null,null,null,null,null,null,null,null,null,null,null,null,null,null,null,null,null,null,null,null,null,null,null,null,null,null,null,null,null,null,null,null,null,null,null,null,null,null,null,null,null,220,null,null,null,null,null,null,"Х",null,null,null,null,null,null,null,null,null,null,null,null,null,null,null,null,null,null,null,null,null,null,null,null,null,0,null,null,null,null,null,null,null,null,null,null,null,null,null,0,null,null,null,null,null,null,null,null,null,null,null,null,null,0,null,null,null,null,null,null,null,null,null,null,null,null,null,0,null,null,null,null,null,null,null,null,null,null,null,null,null,null,0,"",null,null,null,null,null,null,null,null,null,null,null,0]
[null,null,"в источниках питания",null,null,null,null,null,null,null,null,null,null,null,null,null,null,null,null,null,null,null,null,null,null,null,null,null,null,null,null,null,null,null,null,null,null,null,null,null,null,null,null,null,null,null,null,null,null,null,null,null,null,null,null,null,null,null,225,null,null,null,null,null,null,"Х",null,null,null,null,null,null,null,null,null,null,null,null,null,null,null,null,null,null,null,null,null,null,null,null,null,0,null,null,null,null,null,null,null,null,null,null,null,null,null,0,null,null,null,null,null,null,null,null,null,null,null,null,null,0,null,null,null,null,null,null,null,null,null,null,null,null,null,0,null,null,null,null,null,null,null,null,null,null,null,null,null,null,0,"",null,null,null,null,null,null,null,null,null,null,null,0]
[null,null,"в оборудовании",null,null,null,null,null,null,null,null,null,null,null,null,null,null,null,null,null,null,null,null,null,null,null,null,null,null,null,null,null,null,null,null,null,null,null,null,null,null,null,null,null,null,null,null,null,null,null,null,null,null,null,null,null,null,null,230,null,null,null,null,null,null,"Х",null,null,null,null,null,null,null,null,null,null,null,null,null,null,null,null,null,null,null,null,null,null,null,null,null,0,null,null,null,null,null,null,null,null,null,null,null,null,null,0,null,null,null,null,null,null,null,null,null,null,null,null,null,0,null,null,null,null,null,null,null,null,null,null,null,null,null,0,null,null,null,null,null,null,null,null,null,null,null,null,null,null,0,"",null,null,null,null,null,null,null,null,null,null,null,0]
[null,null,"в запасных частях",null,null,null,null,null,null,null,null,null,null,null,null,null,null,null,null,null,null,null,null,null,null,null,null,null,null,null,null,null,null,null,null,null,null,null,null,null,null,null,null,null,null,null,null,null,null,null,null,null,null,null,null,null,null,null,235,null,null,null,null,null,null,"Х",null,null,null,null,null,null,null,null,null,null,null,null,null,null,null,null,null,null,null,null,null,null,null,null,null,0,null,null,null,null,null,null,null,null,null,null,null,null,null,0,null,null,null,null,null,null,null,null,null,null,null,null,null,0,null,null,null,null,null,null,null,null,null,null,null,null,null,0,null,null,null,null,null,null,null,null,null,null,null,null,null,null,0,"",null,null,null,null,null,null,null,null,null,null,null,0]
[null,null,"в материалах",null,null,null,null,null,null,null,null,null,null,null,null,null,null,null,null,null,null,null,null,null,null,null,null,null,null,null,null,null,null,null,null,null,null,null,null,null,null,null,null,null,null,null,null,null,null,null,null,null,null,null,null,null,null,null,240,null,null,null,null,null,null,"Х",null,null,null,null,null,null,null,null,null,null,null,null,null,null,null,null,null,null,null,null,null,null,null,null,null,0,null,null,null,null,null,null,null,null,null,null,null,null,null,0,null,null,null,null,null,null,null,null,null,null,null,null,null,0,null,null,null,null,null,null,null,null,null,null,null,null,null,0,null,null,null,null,null,null,null,null,null,null,null,null,null,null,0,"",null,null,null,null,null,null,null,null,null,null,null,0]
[null,null,"в готовой продукции",null,null,null,null,null,null,null,null,null,null,null,null,null,null,null,null,null,null,null,null,null,null,null,null,null,null,null,null,null,null,null,null,null,null,null,null,null,null,null,null,null,null,null,null,null,null,null,null,null,null,null,null,null,null,null,245,null,null,null,null,null,null,"Х",null,null,null,null,null,null,null,null,null,null,null,null,null,null,null,null,null,null,null,null,null,null,null,null,null,0,null,null,null,null,null,null,null,null,null,null,null,null,null,0,null,null,null,null,null,null,null,null,null,null,null,null,null,0,null,null,null,null,null,null,null,null,null,null,null,null,null,0,null,null,null,null,null,null,null,null,null,null,null,null,null,null,0,"",null,null,null,null,null,null,null,null,null,null,null,0]
[null,null,null,null,null,null,null,null,null,null,null,null,null,null,null,null,null,null,null,null,null,null,null,null,null,null,null,null,null,null,null,null,null,null,null,null,null,null,null,null,null,null,null,null,null,null,null,null,null,null,null,null,null,null,null,null,null,null,null,null,null,null,null,null,null,"Х",null,null,null,null,null,null,null,null,null,null,null,null,null,null,null,null,null,null,null,null,null,null,null,null,null,0,null,null,null,null,null,null,null,null,null,null,null,null,null,0,null,null,null,null,null,null,null,null,null,null,null,null,null,0,null,null,null,null,null,null,null,null,null,null,null,null,null,0,null,null,null,null,null,null,null,null,null,null,null,null,null,null,0,"",null,null,null,null,null,null,null,null,null,null,null,0]
[null,null,null,null,null,null,null,null,null,null,null,null,null,null,null,null,null,null,null,null,null,null,null,null,null,null,null,null,null,null,null,null,null,null,null,null,null,null,null,null,null,null,null,null,null,null,null,null,null,null,null,null,null,null,null,null,null,null,null,null,null,null,null,null,null,"Х",null,null,null,null,null,null,null,null,null,null,null,null,null,null,null,null,null,null,null,null,null,null,null,null,null,0,null,null,null,null,null,null,null,null,null,null,null,null,null,0,null,null,null,null,null,null,null,null,null,null,null,null,null,0,null,null,null,null,null,null,null,null,null,null,null,null,null,0,null,null,null,null,null,null,null,null,null,null,null,null,null,null,0,"",null,null,null,null,null,null,null,null,null,null,null,0]
[null,"Наименование драгоценных металлов\nв объектах учета",null,null,null,null,null,null,null,null,null,null,null,null,null,null,null,null,null,null,null,null,null,null,null,null,null,null,null,null,null,null,null,null,null,null,null,null,null,null,null,null,null,null,null,null,null,null,null,null,null,null,null,null,null,null,null,null,"Код стро-ки",null,null,null,null,null,null,"Код\nпо ОКП ",null,null,null,null,null,null,null,null,null,null,null,null,"Остаток\nна начало отчетного года",null,null,null,null,null,null,null,null,null,null,null,null,null,"Поступило\nв отчетном году",null,null,null,null,null,null,null,null,null,null,null,null,null,"Списано\nв лом\nи отходы",null,null,null,null,null,null,null,null,null,null,null,null,null,"Израсходо-вано на про-изводство, реализовано, безвозмездно передано",null,null,null,null,null,null,null,null,null,null,null,null,null,"Потеряно при эксплуатации и прочие потери",null,null,null,null,null,null,null,null,null,null,null,null,null,null,"Остаток\nна конец отчетного года"]
[null,1,null,null,null,null,null,null,null,null,null,null,null,null,null,null,null,null,null,null,null,null,null,null,null,null,null,null,null,null,null,null,null,null,null,null,null,null,null,null,null,null,null,null,null,null,null,null,null,null,null,null,null,null,null,null,null,null,2,null,null,null,null,null,null,3,null,null,null,null,null,null,null,null,null,null,null,null,4,null,null,null,null,null,null,null,null,null,null,null,null,null,5,null,null,null,null,null,null,null,null,null,null,null,null,null,6,null,null,null,null,null,null,null,null,null,null,null,null,null,7,null,null,null,null,null,null,null,null,null,null,null,null,null,8,null,null,null,null,null,null,null,null,null,null,null,null,null,null,9]
[null,null,null,null,null,null,null,null,null,null,null,null,null,null,null,null,null,null,null,null,null,null,null,null,null,null,null,null,null,null,null,null,null,null,null,null,null,null,null,null,null,null,null,null,null,null,null,null,null,null,null,null,null,null,null,null,null,null,null,null,null,null,null,null,null,"Х",null,null,null,null,null,null,null,null,null,null,null,null,null,null,null,null,null,null,null,null,null,null,null,null,null,{"$f":"IF(ISERROR(1+CA33),0,CA33)","v":0},null,null,null,null,null,null,null,null,null,null,null,null,null,{"$f":"IF(ISERROR(1+CO33),0,CO33)","v":0},null,null,null,null,null,null,null,null,null,null,null,null,null,{"$f":"IF(ISERROR(1+DC33),0,DC33)","v":0},null,null,null,null,null,null,null,null,null,null,null,null,null,{"$f":"IF(ISERROR(1+DQ33),0,DQ33)","v":0},null,null,null,null,null,null,null,null,null,null,null,null,null,null,{"$f":"IF(ISERROR(1+EE33),0,EE33)","v":0},{"$f":"IF(AND(CA33=\"\",CO33=\"\",DC33=\"\",DQ33=\"\",EE33=\"\"),\"\",IF(FF33=0,\"-\",FF33))","v":""},null,null,null,null,null,null,null,null,null,null,null,{"$f":"CN33+DB33-DP33-ED33-ES33","v":0}]
[null,null,null,null,null,null,null,null,null,null,null,null,null,null,null,null,null,null,null,null,null,null,null,null,null,null,null,null,null,null,null,null,null,null,null,null,null,null,null,null,null,null,null,null,null,null,null,null,null,null,null,null,null,null,null,null,null,null,null,null,null,null,null,null,null,"Х",null,null,null,null,null,null,null,null,null,null,null,null,null,null,null,null,null,null,null,null,null,null,null,null,null,0,null,null,null,null,null,null,null,null,null,null,null,null,null,0,null,null,null,null,null,null,null,null,null,null,null,null,null,0,null,null,null,null,null,null,null,null,null,null,null,null,null,0,null,null,null,null,null,null,null,null,null,null,null,null,null,null,0,"",null,null,null,null,null,null,null,null,null,null,null,0]
[null,null,"Платина - всего",null,null,null,null,null,null,null,null,null,null,null,null,null,null,null,null,null,null,null,null,null,null,null,null,null,null,null,null,null,null,null,null,null,null,null,null,null,null,null,null,null,null,null,null,null,null,null,null,null,null,null,null,null,null,null,300,null,null,null,null,null,null,"175003",null,null,null,null,null,null,null,null,null,null,null,null,null,null,null,null,null,null,null,null,null,null,null,null,null,0,null,null,null,null,null,null,null,null,null,null,null,null,null,0,null,null,null,null,null,null,null,null,null,null,null,null,null,0,null,null,null,null,null,null,null,null,null,null,null,null,null,0,null,null,null,null,null,null,null,null,null,null,null,null,null,null,0,"",null,null,null,null,null,null,null,null,null,null,null,0]
[null,null,"в том числе:",null,null,null,null,null,null,null,null,null,null,null,null,null,null,null,null,null,null,null,null,null,null,null,null,null,null,null,null,null,null,null,null,null,null,null,null,null,null,null,null,null,null,null,null,null,null,null,null,null,null,null,null,null,null,null,305,null,null,null,null,null,null,"Х",null,null,null,null,null,null,null,null,null,null,null,null,null,null,null,null,null,null,null,null,null,null,null,null,null,0,null,null,null,null,null,null,null,null,null,null,null,null,null,0,null,null,null,null,null,null,null,null,null,null,null,null,null,0,null,null,null,null,null,null,null,null,null,null,null,null,null,0,null,null,null,null,null,null,null,null,null,null,null,null,null,null,0,"",null,null,null,null,null,null,null,null,null,null,null,0]
[null,null,"в основных средствах (фондах)"]
[null,null,"из них: бытовая телерадиоаппаратура и другие приборы и изделия культурно-бытового назначения",null,null,null,null,null,null,null,null,null,null,null,null,null,null,null,null,null,null,null,null,null,null,null,null,null,null,null,null,null,null,null,null,null,null,null,null,null,null,null,null,null,null,null,null,null,null,null,null,null,null,null,null,null,null,null,306,null,null,null,null,null,null,"Х",null,null,null,null,null,null,null,null,null,null,null,null,null,null,null,null,null,null,null,null,null,null,null,null,null,0,null,null,null,null,null,null,null,null,null,null,null,null,null,0,null,null,null,null,null,null,null,null,null,null,null,null,null,0,null,null,null,null,null,null,null,null,null,null,null,null,null,0,null,null,null,null,null,null,null,null,null,null,null,null,null,null,0,"",null,null,null,null,null,null,null,null,null,null,null,0]
[null,null,"в покупных полуфабрикатах и комплектующих изделиях",null,null,null,null,null,null,null,null,null,null,null,null,null,null,null,null,null,null,null,null,null,null,null,null,null,null,null,null,null,null,null,null,null,null,null,null,null,null,null,null,null,null,null,null,null,null,null,null,null,null,null,null,null,null,null,315,null,null,null,null,null,null,"Х",null,null,null,null,null,null,null,null,null,null,null,null,null,null,null,null,null,null,null,null,null,null,null,null,null,0,null,null,null,null,null,null,null,null,null,null,null,null,null,0,null,null,null,null,null,null,null,null,null,null,null,null,null,0,null,null,null,null,null,null,null,null,null,null,null,null,null,0,null,null,null,null,null,null,null,null,null,null,null,null,null,null,0,"",null,null,null,null,null,null,null,null,null,null,null,0]
[null,null,"в оборудовании",null,null,null,null,null,null,null,null,null,null,null,null,null,null,null,null,null,null,null,null,null,null,null,null,null,null,null,null,null,null,null,null,null,null,null,null,null,null,null,null,null,null,null,null,null,null,null,null,null,null,null,null,null,null,null,320,null,null,null,null,null,null,"Х",null,null,null,null,null,null,null,null,null,null,null,null,null,null,null,null,null,null,null,null,null,null,null,null,null,0,null,null,null,null,null,null,null,null,null,null,null,null,null,0,null,null,null,null,null,null,null,null,null,null,null,null,null,0,null,null,null,null,null,null,null,null,null,null,null,null,null,0,null,null,null,null,null,null,null,null,null,null,null,null,null,null,0,"",null,null,null,null,null,null,null,null,null,null,null,0]
[null,null,"в запасных частях",null,null,null,null,null,null,null,null,null,null,null,null,null,null,null,null,null,null,null,null,null,null,null,null,null,null,null,null,null,null,null,null,null,null,null,null,null,null,null,null,null,null,null,null,null,null,null,null,null,null,null,null,null,null,null,325,null,null,null,null,null,null,"Х",null,null,null,null,null,null,null,null,null,null,null,null,null,null,null,null,null,null,null,null,null,null,null,null,null,0,null,null,null,null,null,null,null,null,null,null,null,null,null,0,null,null,null,null,null,null,null,null,null,null,null,null,null,0,null,null,null,null,null,null,null,null,null,null,null,null,null,0,null,null,null,null,null,null,null,null,null,null,null,null,null,null,0,"",null,null,null,null,null,null,null,null,null,null,null,0]
[null,null,"в материалах",null,null,null,null,null,null,null,null,null,null,null,null,null,null,null,null,null,null,null,null,null,null,null,null,null,null,null,null,null,null,null,null,null,null,null,null,null,null,null,null,null,null,null,null,null,null,null,null,null,null,null,null,null,null,null,330,null,null,null,null,null,null,"Х",null,null,null,null,null,null,null,null,null,null,null,null,null,null,null,null,null,null,null,null,null,null,null,null,null,0,null,null,null,null,null,null,null,null,null,null,null,null,null,0,null,null,null,null,null,null,null,null,null,null,null,null,null,0,null,null,null,null,null,null,null,null,null,null,null,null,null,0,null,null,null,null,null,null,null,null,null,null,null,null,null,null,0,"",null,null,null,null,null,null,null,null,null,null,null,0]
[null,null,"в готовой продукции",null,null,null,null,null,null,null,null,null,null,null,null,null,null,null,null,null,null,null,null,null,null,null,null,null,null,null,null,null,null,null,null,null,null,null,null,null,null,null,null,null,null,null,null,null,null,null,null,null,null,null,null,null,null,null,335,null,null,null,null,null,null,"Х",null,null,null,null,null,null,null,null,null,null,null,null,null,null,null,null,null,null,null,null,null,null,null,null,null,0,null,null,null,null,null,null,null,null,null,null,null,null,null,0,null,null,null,null,null,null,null,null,null,null,null,null,null,0,null,null,null,null,null,null,null,null,null,null,null,null,null,0,null,null,null,null,null,null,null,null,null,null,null,null,null,null,0,"",null,null,null,null,null,null,null,null,null,null,null,0]
[null,null,null,null,null,null,null,null,null,null,null,null,null,null,null,null,null,null,null,null,null,null,null,null,null,null,null,null,null,null,null,null,null,null,null,null,null,null,null,null,null,null,null,null,null,null,null,null,null,null,null,null,null,null,null,null,null,null,null,null,null,null,null,null,null,"Х",null,null,null,null,null,null,null,null,null,null,null,null,null,null,null,null,null,null,null,null,null,null,null,null,null,0,null,null,null,null,null,null,null,null,null,null,null,null,null,0,null,null,null,null,null,null,null,null,null,null,null,null,null,0,null,null,null,null,null,null,null,null,null,null,null,null,null,0,null,null,null,null,null,null,null,null,null,null,null,null,null,null,0,"",null,null,null,null,null,null,null,null,null,null,null,0]
[null,null,null,null,null,null,null,null,null,null,null,null,null,null,null,null,null,null,null,null,null,null,null,null,null,null,null,null,null,null,null,null,null,null,null,null,null,null,null,null,null,null,null,null,null,null,null,null,null,null,null,null,null,null,null,null,null,null,null,null,null,null,null,null,null,"Х",null,null,null,null,null,null,null,null,null,null,null,null,null,null,null,null,null,null,null,null,null,null,null,null,null,0,null,null,null,null,null,null,null,null,null,null,null,null,null,0,null,null,null,null,null,null,null,null,null,null,null,null,null,0,null,null,null,null,null,null,null,null,null,null,null,null,null,0,null,null,null,null,null,null,null,null,null,null,null,null,null,null,0,"",null,null,null,null,null,null,null,null,null,null,null,0]
[null,null,null,null,null,null,null,null,null,null,null,null,null,null,null,null,null,null,null,null,null,null,null,null,null,null,null,null,null,null,null,null,null,null,null,null,null,null,null,null,null,null,null,null,null,null,null,null,null,null,null,null,null,null,null,null,null,null,null,null,null,null,null,null,null,"Х",null,null,null,null,null,null,null,null,null,null,null,null,null,null,null,null,null,null,null,null,null,null,null,null,null,0,null,null,null,null,null,null,null,null,null,null,null,null,null,0,null,null,null,null,null,null,null,null,null,null,null,null,null,0,null,null,null,null,null,null,null,null,null,null,null,null,null,0,null,null,null,null,null,null,null,null,null,null,null,null,null,null,0,"",null,null,null,null,null,null,null,null,null,null,null,0]
[null,null,null,null,null,null,null,null,null,null,null,null,null,null,null,null,null,null,null,null,null,null,null,null,null,null,null,null,null,null,null,null,null,null,null,null,null,null,null,null,null,null,null,null,null,null,null,null,null,null,null,null,null,null,null,null,null,null,null,null,null,null,null,null,null,"Х",null,null,null,null,null,null,null,null,null,null,null,null,null,null,null,null,null,null,null,null,null,null,null,null,null,0,null,null,null,null,null,null,null,null,null,null,null,null,null,0,null,null,null,null,null,null,null,null,null,null,null,null,null,0,null,null,null,null,null,null,null,null,null,null,null,null,null,0,null,null,null,null,null,null,null,null,null,null,null,null,null,null,0,"",null,null,null,null,null,null,null,null,null,null,null,0]
[null,null,"Металлы платиновой группы - всего",null,null,null,null,null,null,null,null,null,null,null,null,null,null,null,null,null,null,null,null,null,null,null,null,null,null,null,null,null,null,null,null,null,null,null,null,null,null,null,null,null,null,null,null,null,null,null,null,null,null,null,null,null,null,null,400,null,null,null,null,null,null,"175004",null,null,null,null,null,null,null,null,null,null,null,null,null,null,null,null,null,null,null,null,null,null,null,null,null,0,null,null,null,null,null,null,null,null,null,null,null,null,null,0,null,null,null,null,null,null,null,null,null,null,null,null,null,0,null,null,null,null,null,null,null,null,null,null,null,null,null,0,null,null,null,null,null,null,null,null,null,null,null,null,null,null,0,"",null,null,null,null,null,null,null,null,null,null,null,0]
[null,null,"в том числе:",null,null,null,null,null,null,null,null,null,null,null,null,null,null,null,null,null,null,null,null,null,null,null,null,null,null,null,null,null,null,null,null,null,null,null,null,null,null,null,null,null,null,null,null,null,null,null,null,null,null,null,null,null,null,null,405,null,null,null,null,null,null,"Х",null,null,null,null,null,null,null,null,null,null,null,null,null,null,null,null,null,null,null,null,null,null,null,null,null,0,null,null,null,null,null,null,null,null,null,null,null,null,null,0,null,null,null,null,null,null,null,null,null,null,null,null,null,0,null,null,null,null,null,null,null,null,null,null,null,null,null,0,null,null,null,null,null,null,null,null,null,null,null,null,null,null,0,"",null,null,null,null,null,null,null,null,null,null,null,0]
[null,null,"в основных средствах (фондах)"]
[null,null,"из них: бытовая телерадиоаппаратура и другие приборы и изделия культурно-бытового назначения",null,null,null,null,null,null,null,null,null,null,null,null,null,null,null,null,null,null,null,null,null,null,null,null,null,null,null,null,null,null,null,null,null,null,null,null,null,null,null,null,null,null,null,null,null,null,null,null,null,null,null,null,null,null,null,406,null,null,null,null,null,null,"Х",null,null,null,null,null,null,null,null,null,null,null,null,null,null,null,null,null,null,null,null,null,null,null,null,null,0,null,null,null,null,null,null,null,null,null,null,null,null,null,0,null,null,null,null,null,null,null,null,null,null,null,null,null,0,null,null,null,null,null,null,null,null,null,null,null,null,null,0,null,null,null,null,null,null,null,null,null,null,null,null,null,null,0,"",null,null,null,null,null,null,null,null,null,null,null,0]
[null,null,"в покупных полуфабрикатах и комплектующих изделиях",null,null,null,null,null,null,null,null,null,null,null,null,null,null,null,null,null,null,null,null,null,null,null,null,null,null,null,null,null,null,null,null,null,null,null,null,null,null,null,null,null,null,null,null,null,null,null,null,null,null,null,null,null,null,null,410,null,null,null,null,null,null,"Х",null,null,null,null,null,null,null,null,null,null,null,null,null,null,null,null,null,null,null,null,null,null,null,null,null,0,null,null,null,null,null,null,null,null,null,null,null,null,null,0,null,null,null,null,null,null,null,null,null,null,null,null,null,0,null,null,null,null,null,null,null,null,null,null,null,null,null,0,null,null,null,null,null,null,null,null,null,null,null,null,null,null,0,"",null,null,null,null,null,null,null,null,null,null,null,0]
[null,null,"в оборудовании",null,null,null,null,null,null,null,null,null,null,null,null,null,null,null,null,null,null,null,null,null,null,null,null,null,null,null,null,null,null,null,null,null,null,null,null,null,null,null,null,null,null,null,null,null,null,null,null,null,null,null,null,null,null,null,415,null,null,null,null,null,null,"Х",null,null,null,null,null,null,null,null,null,null,null,null,null,null,null,null,null,null,null,null,null,null,null,null,null,0,null,null,null,null,null,null,null,null,null,null,null,null,null,0,null,null,null,null,null,null,null,null,null,null,null,null,null,0,null,null,null,null,null,null,null,null,null,null,null,null,null,0,null,null,null,null,null,null,null,null,null,null,null,null,null,null,0,"",null,null,null,null,null,null,null,null,null,null,null,0]
[null,null,"в запасных частях",null,null,null,null,null,null,null,null,null,null,null,null,null,null,null,null,null,null,null,null,null,null,null,null,null,null,null,null,null,null,null,null,null,null,null,null,null,null,null,null,null,null,null,null,null,null,null,null,null,null,null,null,null,null,null,420,null,null,null,null,null,null,"Х",null,null,null,null,null,null,null,null,null,null,null,null,null,null,null,null,null,null,null,null,null,null,null,null,null,0,null,null,null,null,null,null,null,null,null,null,null,null,null,0,null,null,null,null,null,null,null,null,null,null,null,null,null,0,null,null,null,null,null,null,null,null,null,null,null,null,null,0,null,null,null,null,null,null,null,null,null,null,null,null,null,null,0,"",null,null,null,null,null,null,null,null,null,null,null,0]
[null,null,"в материалах",null,null,null,null,null,null,null,null,null,null,null,null,null,null,null,null,null,null,null,null,null,null,null,null,null,null,null,null,null,null,null,null,null,null,null,null,null,null,null,null,null,null,null,null,null,null,null,null,null,null,null,null,null,null,null,425,null,null,null,null,null,null,"Х",null,null,null,null,null,null,null,null,null,null,null,null,null,null,null,null,null,null,null,null,null,null,null,null,null,0,null,null,null,null,null,null,null,null,null,null,null,null,null,0,null,null,null,null,null,null,null,null,null,null,null,null,null,0,null,null,null,null,null,null,null,null,null,null,null,null,null,0,null,null,null,null,null,null,null,null,null,null,null,null,null,null,0,"",null,null,null,null,null,null,null,null,null,null,null,0]
[null,"Наименование драгоценных металлов\nв объектах учета",null,null,null,null,null,null,null,null,null,null,null,null,null,null,null,null,null,null,null,null,null,null,null,null,null,null,null,null,null,null,null,null,null,null,null,null,null,null,null,null,null,null,null,null,null,null,null,null,null,null,null,null,null,null,null,null,"Код стро-ки",null,null,null,null,null,null,"Код\nпо ОКП ",null,null,null,null,null,null,null,null,null,null,null,null,"Остаток\nна начало отчетного года",null,null,null,null,null,null,null,null,null,null,null,null,null,"Поступило\nв отчетном году",null,null,null,null,null,null,null,null,null,null,null,null,null,"Списано\nв лом\nи отходы",null,null,null,null,null,null,null,null,null,null,null,null,null,"Израсходо-вано на про-изводство, реализовано, безвозмездно передано",null,null,null,null,null,null,null,null,null,null,null,null,null,"Потеряно при эксплуатации и прочие потери",null,null,null,null,null,null,null,null,null,null,null,null,null,null,"Остаток\nна конец отчетного года"]
[null,1,null,null,null,null,null,null,null,null,null,null,null,null,null,null,null,null,null,null,null,null,null,null,null,null,null,null,null,null,null,null,null,null,null,null,null,null,null,null,null,null,null,null,null,null,null,null,null,null,null,null,null,null,null,null,null,null,2,null,null,null,null,null,null,3,null,null,null,null,null,null,null,null,null,null,null,null,4,null,null,null,null,null,null,null,null,null,null,null,null,null,5,null,null,null,null,null,null,null,null,null,null,null,null,null,6,null,null,null,null,null,null,null,null,null,null,null,null,null,7,null,null,null,null,null,null,null,null,null,null,null,null,null,8,null,null,null,null,null,null,null,null,null,null,null,null,null,null,9]
[null,null,"в готовой продукции",null,null,null,null,null,null,null,null,null,null,null,null,null,null,null,null,null,null,null,null,null,null,null,null,null,null,null,null,null,null,null,null,null,null,null,null,null,null,null,null,null,null,null,null,null,null,null,null,null,null,null,null,null,null,null,430,null,null,null,null,null,null,"Х",null,null,null,null,null,null,null,null,null,null,null,null,null,null,null,null,null,null,null,null,null,null,null,null,null,{"$f":"IF(ISERROR(1+CA58),0,CA58)","v":0},null,null,null,null,null,null,null,null,null,null,null,null,null,{"$f":"IF(ISERROR(1+CO58),0,CO58)","v":0},null,null,null,null,null,null,null,null,null,null,null,null,null,{"$f":"IF(ISERROR(1+DC58),0,DC58)","v":0},null,null,null,null,null,null,null,null,null,null,null,null,null,{"$f":"IF(ISERROR(1+DQ58),0,DQ58)","v":0},null,null,null,null,null,null,null,null,null,null,null,null,null,null,{"$f":"IF(ISERROR(1+EE58),0,EE58)","v":0},{"$f":"IF(AND(CA58=\"\",CO58=\"\",DC58=\"\",DQ58=\"\",EE58=\"\"),\"\",IF(FF58=0,\"-\",FF58))","v":""},null,null,null,null,null,null,null,null,null,null,null,{"$f":"CN58+DB58-DP58-ED58-ES58","v":0}]
[null,null,null,null,null,null,null,null,null,null,null,null,null,null,null,null,null,null,null,null,null,null,null,null,null,null,null,null,null,null,null,null,null,null,null,null,null,null,null,null,null,null,null,null,null,null,null,null,null,null,null,null,null,null,null,null,null,null,null,null,null,null,null,null,null,"Х",null,null,null,null,null,null,null,null,null,null,null,null,null,null,null,null,null,null,null,null,null,null,null,null,null,0,null,null,null,null,null,null,null,null,null,null,null,null,null,0,null,null,null,null,null,null,null,null,null,null,null,null,null,0,null,null,null,null,null,null,null,null,null,null,null,null,null,0,null,null,null,null,null,null,null,null,null,null,null,null,null,null,0,"",null,null,null,null,null,null,null,null,null,null,null,0]
[null,null,null,null,null,null,null,null,null,null,null,null,null,null,null,null,null,null,null,null,null,null,null,null,null,null,null,null,null,null,null,null,null,null,null,null,null,null,null,null,null,null,null,null,null,null,null,null,null,null,null,null,null,null,null,null,null,null,null,null,null,null,null,null,null,"Х",null,null,null,null,null,null,null,null,null,null,null,null,null,null,null,null,null,null,null,null,null,null,null,null,null,0,null,null,null,null,null,null,null,null,null,null,null,null,null,0,null,null,null,null,null,null,null,null,null,null,null,null,null,0,null,null,null,null,null,null,null,null,null,null,null,null,null,0,null,null,null,null,null,null,null,null,null,null,null,null,null,null,0,"",null,null,null,null,null,null,null,null,null,null,null,0]
[null,null,null,null,null,null,null,null,null,null,null,null,null,null,null,null,null,null,null,null,null,null,null,null,null,null,null,null,null,null,null,null,null,null,null,null,null,null,null,null,null,null,null,null,null,null,null,null,null,null,null,null,null,null,null,null,null,null,null,null,null,null,null,null,null,"Х",null,null,null,null,null,null,null,null,null,null,null,null,null,null,null,null,null,null,null,null,null,null,null,null,null,0,null,null,null,null,null,null,null,null,null,null,null,null,null,0,null,null,null,null,null,null,null,null,null,null,null,null,null,0,null,null,null,null,null,null,null,null,null,null,null,null,null,0,null,null,null,null,null,null,null,null,null,null,null,null,null,null,0,"",null,null,null,null,null,null,null,null,null,null,null,0]
[null,null,null,null,null,null,null,null,null,null,null,null,null,null,null,null,null,null,null,null,null,null,null,null,null,null,null,null,null,null,null,null,null,null,null,null,null,null,null,null,null,null,null,null,null,null,null,null,null,null,null,null,null,null,null,null,null,null,null,null,null,null,null,null,null,"Х",null,null,null,null,null,null,null,null,null,null,null,null,null,null,null,null,null,null,null,null,null,null,null,null,null,0,null,null,null,null,null,null,null,null,null,null,null,null,null,0,null,null,null,null,null,null,null,null,null,null,null,null,null,0,null,null,null,null,null,null,null,null,null,null,null,null,null,0,null,null,null,null,null,null,null,null,null,null,null,null,null,null,0,"",null,null,null,null,null,null,null,null,null,null,null,0]
[]
[null,"Линия отрыва (для отчетности, представляемой индивидуальным предпринимателем)"]
[null,"Руководитель организации",null,null,null,null,null,null,null,null,null,null,null,null,null,null,null,null,null,null,null,null,null,null,null,null,null,null,null,null,null,null,null,null,null,null,null,null,{"$f":"IFERROR(IF(AND(ФОРМА!E7=\"\",ФОРМА!E8=\"\"),\"-\",IF(ФОРМА!E7=\"\",CONCATENATE(LEFT(TRIM(ФОРМА!E8),FIND(\" \",TRIM(ФОРМА!E8),1)),MID(TRIM(ФОРМА!E8),FIND(\" \",TRIM(ФОРМА!E8),1)+1,1),\".\",MID(TRIM(ФОРМА!E8),FIND(\" \",TRIM(ФОРМА!E8),FIND(\" \",TRIM(ФОРМА!E8),1)+1)+1,1),\".\"),CONCATENATE(LEFT(TRIM(ФОРМА!E7),FIND(\" \",TRIM(ФОРМА!E7),1)),MID(TRIM(ФОРМА!E7),FIND(\" \",TRIM(ФОРМА!E7),1)+1,1),\".\",MID(TRIM(ФОРМА!E7),FIND(\" \",TRIM(ФОРМА!E7),FIND(\" \",TRIM(ФОРМА!E7),1)+1)+1,1),\".\"))),\"Данные введены некорректно\")","v":"-"}]
[null,"(индивидуальный предприниматель)"]
[null,null,null,null,null,null,null,null,null,null,null,null,null,null,null,null,null,null,null,null,null,null,null,null,null,null,null,null,null,null,null,null,null,null,null,null,null,null,"(Ф.И.О.)",null,null,null,null,null,null,null,null,null,null,null,null,null,null,null,null,null,null,null,null,null,null,null,null,null,null,null,null,null,null,null,null,null,null,null,null,"(подпись)"]
[null,"Должностное лицо, ответственное ",null,null,null,null,null,null,null,null,null,null,null,null,null,null,null,null,null,null,null,null,null,null,null,null,null,null,null,null,null,null,null,null,null,null,null,null,{"$f":"IF(ФОРМА!E25=\"\",\"-\",ФОРМА!E25)","v":"-"},null,null,null,null,null,null,null,null,null,null,null,null,null,null,null,null,null,null,null,null,null,null,null,null,null,null,null,{"$f":"IFERROR(IF(ФОРМА!E26=\"\",\"-\",CONCATENATE(LEFT(TRIM(ФОРМА!E26),FIND(\" \",TRIM(ФОРМА!E26),1)),MID(TRIM(ФОРМА!E26),FIND(\" \",TRIM(ФОРМА!E26),1)+1,1),\".\",MID(TRIM(ФОРМА!E26),FIND(\" \",TRIM(ФОРМА!E26),FIND(\" \",TRIM(ФОРМА!E26),1)+1)+1,1),\".\")),\"Данные введены некорректно\")","v":"-"}]
[null,"за составление формы"]
[null,null,null,null,null,null,null,null,null,null,null,null,null,null,null,null,null,null,null,null,null,null,null,null,null,null,null,null,null,null,null,null,null,null,null,null,null,null,"(должность)",null,null,null,null,null,null,null,null,null,null,null,null,null,null,null,null,null,null,null,null,null,null,null,null,null,null,null,"(Ф.И.О.)",null,null,null,null,null,null,null,null,null,null,null,null,null,null,null,null,null,null,null,null,null,null,null,null,null,null,null,null,null,null,null,null,null,null,null,null,null,null,null,"(подпись)"]
[null,null,null,null,null,null,null,null,null,null,null,null,null,null,null,null,null,null,null,null,null,null,null,null,null,null,null,null,null,null,null,null,null,null,null,null,null,null,{"$f":"IF(ФОРМА!E27=\"\",\"-\",ФОРМА!E27)","v":"-"},null,null,null,null,null,null,null,null,null,null,null,null,null,null,null,null,null,null,null,null,null,null,null,null,null,null,null,"«",null,null,null,null,null,"»",null,null,null,null,null,null,null,null,null,null,null,null,null,null,null,null,20,null,null,null,null,null,null,null," год"]
[null,null,null,null,null,null,null,null,null,null,null,null,null,null,null,null,null,null,null,null,null,null,null,null,null,null,null,null,null,null,null,null,null,null,null,null,null,null,"(номер контактного телефона)",null,null,null,null,null,null,null,null,null,null,null,null,null,null,null,null,null,null,null,null,null,null,null,null,null,null,null,"(дата составления документа)"]

{"sheet":"П    ","index":16,"n_rows":0,"n_cols":0,"rows_kept":0,"cut":false,"hidden":false,"merged":[]}

{"sheet":"5дм(1,","index":17,"n_rows":31,"n_cols":137,"rows_kept":31,"cut":false,"hidden":false,"merged":[[13,1,13,81],[28,96,28,115],[28,116,28,135],[0,20,0,136],[4,14,4,142],[2,20,2,136],[6,20,6,136],[13,82,13,116],[13,123,13,153],[10,72,10,85],[10,87,10,92],[14,82,15,116],[15,2,15,5],[15,6,15,81],[30,96,30,115],[30,116,30,135],[29,96,29,115],[14,2,14,81],[8,30,8,126],[9,30,9,126],[24,17,24,150],[30,136,30,155],[29,136,29,155],[11,30,11,126],[27,1,28,15],[27,16,27,155],[28,16,28,35],[28,36,28,55],[28,56,28,75],[28,76,28,95],[30,1,30,15],[30,16,30,35],[30,36,30,55],[30,56,30,75],[29,76,29,95],[29,1,29,15],[29,16,29,35],[29,36,29,55],[29,56,29,75],[30,76,30,95],[29,116,29,135],[22,2,22,150],[23,1,23,151],[25,1,25,151],[18,125,19,151],[18,2,18,5],[18,6,18,81],[28,136,28,155],[17,82,18,116],[14,123,17,153]]}
[null,null,null,null,null,null,null,null,null,null,null,null,null,null,null,null,null,null,null,null,"ФЕДЕРАЛЬНОЕ ГОСУДАРСТВЕННОЕ СТАТИСТИЧЕСКОЕ НАБЛЮДЕНИЕ"]
[]
[null,null,null,null,null,null,null,null,null,null,null,null,null,null,null,null,null,null,null,null,"КОНФИДЕНЦИАЛЬНОСТЬ ГАРАНТИРУЕТСЯ ПОЛУЧАТЕЛЕМ ИНФОРМАЦИИ"]
[]
[null,null,null,null,null,null,null,null,null,null,null,null,null,null,"Нарушение порядка представления статистической информации, а равно представление недостоверной статистической информации\nвлечет ответственность, установленную статьей 13.19 Кодекса Российской Федерации об административных правонарушениях\n от 30.12.2001 № 195-ФЗ, а также статьей 3 Закона Российской Федерации от 13.05.92 № 2761-1 \"Об ответственности за нарушение\n порядка представления государственной статистической отчетности\""]
[]
[null,null,null,null,null,null,null,null,null,null,null,null,null,null,null,null,null,null,null,null,"В соответствии со статьей 6 Федерального закона от 27.07.2006 № 152-ФЗ \"О персональных данных\" обработка персональных данных осуществляется для статистических целей при условии обязательного обезличивания персональных данных"]
[]
[null,null,null,null,null,null,null,null,null,null,null,null,null,null,null,null,null,null,null,null,null,null,null,null,null,null,null,null,null,null,"СВЕДЕНИЯ О ПОСТУПЛЕНИИ ЛОМА И ОТХОДОВ ДРАГОЦЕННЫХ МЕТАЛЛОВ"]
[null,null,null,null,null,null,null,null,null,null,null,null,null,null,null,null,null,null,null,null,null,null,null,null,null,null,null,null,null,null,"И ПРОИЗВОДСТВЕ ИЗ НИХ АФФИНИРОВАННЫХ ДРАГОЦЕННЫХ МЕТАЛЛОВ"]
[null,null,null,null,null,null,null,null,null,null,null,null,null,null,null,null,null,null,null,null,null,null,null,null,null,null,null,null,null,null,null,null,null,null,null,null,null,null,null,null,null,null,null,null,null,null,null,null,null,null,null,null,null,null,null,null,null,null,null,null,null,null,null,null,null,null,null,null,null,null,null,"за январь - ",{"$f":"IF(ФОРМА!H24=\"\",\"-\",ФОРМА!H24)","v":"-"},null,null,null,null,null,null,null,null,null,null,null,null,null,null,{"$f":"IF(ФОРМА!I24=\"\",\"-\",ФОРМА!I24)","v":"-"},null,null,null,null,null,"г."]
[null,null,null,null,null,null,null,null,null,null,null,null,null,null,null,null,null,null,null,null,null,null,null,null,null,null,null,null,null,null,"(нарастающим итогом)"]
[]
[null,"Представляют:",null,null,null,null,null,null,null,null,null,null,null,null,null,null,null,null,null,null,null,null,null,null,null,null,null,null,null,null,null,null,null,null,null,null,null,null,null,null,null,null,null,null,null,null,null,null,null,null,null,null,null,null,null,null,null,null,null,null,null,null,null,null,null,null,null,null,null,null,null,null,null,null,null,null,null,null,null,null,null,null,"Сроки представления",null,null,null,null,null,null,null,null,null,null,null,null,null,null,null,null,null,null,null,null,null,null,null,null,null,null,null,null,null,null,null,null,null,null,null,null,null,null,null,null,"Форма № 5-ДМ"]
[null,null,"юридические лица, осуществляющие аффинаж:",null,null,null,null,null,null,null,null,null,null,null,null,null,null,null,null,null,null,null,null,null,null,null,null,null,null,null,null,null,null,null,null,null,null,null,null,null,null,null,null,null,null,null,null,null,null,null,null,null,null,null,null,null,null,null,null,null,null,null,null,null,null,null,null,null,null,null,null,null,null,null,null,null,null,null,null,null,null,null,"на 60 день\nпосле отчетного периода",null,null,null,null,null,null,null,null,null,null,null,null,null,null,null,null,null,null,null,null,null,null,null,null,null,null,null,null,null,null,null,null,null,null,null,null,null,null,null,null,"Утверждена\nПостановлением Росстата\nот 14.11.2007 № 88"]
[null,null,"-",null,null,null,"Гохрану России (121170, г. Москва, ул. 1812 года, дом 14)"]
[]
[null,null,"Гохран России:",null,null,null,null,null,null,null,null,null,null,null,null,null,null,null,null,null,null,null,null,null,null,null,null,null,null,null,null,null,null,null,null,null,null,null,null,null,null,null,null,null,null,null,null,null,null,null,null,null,null,null,null,null,null,null,null,null,null,null,null,null,null,null,null,null,null,null,null,null,null,null,null,null,null,null,null,null,null,null,"по согласованной \nпрограмме и срокам"]
[null,null,"-",null,null,null,"Росстату (107450, г. Москва, ул. Мясницкая, д. 39, строение 1)",null,null,null,null,null,null,null,null,null,null,null,null,null,null,null,null,null,null,null,null,null,null,null,null,null,null,null,null,null,null,null,null,null,null,null,null,null,null,null,null,null,null,null,null,null,null,null,null,null,null,null,null,null,null,null,null,null,null,null,null,null,null,null,null,null,null,null,null,null,null,null,null,null,null,null,null,null,null,null,null,null,null,null,null,null,null,null,null,null,null,null,null,null,null,null,null,null,null,null,null,null,null,null,null,null,null,null,null,null,null,null,null,null,null,null,null,null,null,{"$f":"IF(OR(BU11=\"март\",BU11=\"июнь\",BU11=\"сентябрь\"),\"Квартальная\",IF(BU11=\"декабрь\",\"Годовая\",\"Квартальная, годовая\"))","v":"Квартальная, годовая"}]
[]
[]
[null,null,"Наименование отчитывающейся организации"]
[null,null,{"$f":"IF(AND(ФОРМА!E5=\"\",ФОРМА!E8=\"\"),\"-\",IF(ФОРМА!E5=\"\",ФОРМА!E8,IF(ФОРМА!E6=\"\",ФОРМА!E5,ФОРМА!E5&\" (\"&ФОРМА!E6&\")\")))","v":"-"}]
[]
[null,null,"Почтовый адрес",null,null,null,null,null,null,null,null,null,null,null,null,null,null,{"$f":"IF(ФОРМА!E9=\"\",\"-\",ФОРМА!E9)","v":"-"}]
[]
[]
[null,"Код\nформы\nпо ОКУД",null,null,null,null,null,null,null,null,null,null,null,null,null,null,"Код "]
[null,null,null,null,null,null,null,null,null,null,null,null,null,null,null,null,"отчитывающейся организации \nпо ОКПО",null,null,null,null,null,null,null,null,null,null,null,null,null,null,null,null,null,null,null,"вида деятельности\nпо ОКВЭД",null,null,null,null,null,null,null,null,null,null,null,null,null,null,null,null,null,null,null,"территории\nпо ОКАТО",null,null,null,null,null,null,null,null,null,null,null,null,null,null,null,null,null,null,null,"министерства (ведомства), органа управления \nпо ОКОГУ",null,null,null,null,null,null,null,null,null,null,null,null,null,null,null,null,null,null,null,"организационно-правовой формы\nпо ОКОПФ",null,null,null,null,null,null,null,null,null,null,null,null,null,null,null,null,null,null,null,"формы собственности\nпо ОКФС"]
[null,1,null,null,null,null,null,null,null,null,null,null,null,null,null,null,2,null,null,null,null,null,null,null,null,null,null,null,null,null,null,null,null,null,null,null,3,null,null,null,null,null,null,null,null,null,null,null,null,null,null,null,null,null,null,null,4,null,null,null,null,null,null,null,null,null,null,null,null,null,null,null,null,null,null,null,5,null,null,null,null,null,null,null,null,null,null,null,null,null,null,null,null,null,null,null,6,null,null,null,null,null,null,null,null,null,null,null,null,null,null,null,null,null,null,null,7,null,null,null,null,null,null,null,null,null,null,null,null,null,null,null,null,null,null,null,8]
[null,"0607074",null,null,null,null,null,null,null,null,null,null,null,null,null,null,{"$f":"IF(ФОРМА!$E$18=\"\",\"-\",ФОРМА!$E$18)","v":"-"},null,null,null,null,null,null,null,null,null,null,null,null,null,null,null,null,null,null,null,{"$f":"IF(ФОРМА!$E$19=\"\",\"-\",ФОРМА!$E$19)","v":"-"},null,null,null,null,null,null,null,null,null,null,null,null,null,null,null,null,null,null,null,{"$f":"IF(ФОРМА!$E$20=\"\",\"-\",ФОРМА!$E$20)","v":"-"},null,null,null,null,null,null,null,null,null,null,null,null,null,null,null,null,null,null,null,{"$f":"IF(ФОРМА!$E$21=\"\",\"-\",ФОРМА!$E$21)","v":"-"},null,null,null,null,null,null,null,null,null,null,null,null,null,null,null,null,null,null,null,{"$f":"IF(ФОРМА!$E$22=\"\",\"-\",ФОРМА!$E$22)","v":"-"},null,null,null,null,null,null,null,null,null,null,null,null,null,null,null,null,null,null,null,{"$f":"IF(ФОРМА!$E$23=\"\",\"-\",ФОРМА!$E$23)","v":"-"}]

{"sheet":"2)   ","index":18,"n_rows":21,"n_cols":160,"rows_kept":21,"cut":false,"hidden":false,"merged":[[13,38,14,71],[16,38,17,62],[16,67,17,101],[12,79,12,94],[12,95,12,111],[9,79,9,94],[9,95,9,111],[11,1,11,28],[11,29,11,45],[11,46,11,61],[11,79,11,94],[12,1,12,28],[12,29,12,45],[12,46,12,61],[12,62,12,78],[11,62,11,78],[17,106,17,131],[19,95,19,97],[7,46,7,61],[7,62,7,78],[6,29,6,45],[6,46,6,61],[7,79,7,94],[20,38,20,62],[20,67,20,101],[18,38,18,62],[18,67,18,101],[19,38,19,62],[7,95,7,111],[6,62,6,78],[8,29,8,45],[8,46,8,61],[8,62,8,78],[8,79,8,94],[8,95,8,111],[7,29,7,45],[10,29,10,45],[10,46,10,61],[10,62,10,78],[9,29,9,45],[9,46,9,61],[19,98,19,101],[15,38,15,71],[15,76,15,101],[2,128,2,160],[3,79,3,94],[3,95,3,111],[2,29,2,61],[2,62,2,94],[5,29,5,45],[5,46,5,61],[5,62,5,78],[4,29,4,45],[4,46,4,61],[4,62,4,78],[19,67,19,68],[19,69,19,72],[19,73,19,75],[19,76,19,90],[19,91,19,94],[4,95,4,111],[4,79,4,94],[5,79,5,94],[2,95,2,127],[3,46,3,61],[3,29,3,45],[3,112,3,127],[8,112,8,127],[9,112,9,127],[1,1,3,28],[1,29,1,160],[14,76,14,101],[5,1,5,28],[6,79,6,94],[6,95,6,111],[4,1,4,28],[6,1,6,28],[3,62,3,78],[5,95,5,111],[8,1,8,28],[7,1,7,28],[10,1,10,28],[9,1,9,28],[9,62,9,78],[10,79,10,94],[10,95,10,111],[3,128,3,144],[3,145,3,160],[4,128,4,144],[4,145,4,160],[10,112,10,127],[5,128,5,144],[4,112,4,127],[5,112,5,127],[6,112,6,127],[7,112,7,127],[7,145,7,160],[8,128,8,144],[8,145,8,160],[9,128,9,144],[9,145,9,160],[7,128,7,144],[5,145,5,160],[6,128,6,144],[6,145,6,160],[18,106,18,131],[10,145,10,160],[11,128,11,144],[11,145,11,160],[12,128,12,144],[12,145,12,160],[11,112,11,127],[12,112,12,127],[10,128,10,144],[11,95,11,111]]}
[null,null,null,null,null,null,null,null,null,null,null,null,null,null,null,null,null,null,null,null,null,null,null,null,null,null,null,null,null,null,null,null,null,null,null,null,null,null,null,null,null,null,null,null,null,null,null,null,null,null,null,null,null,null,null,null,null,null,null,null,null,null,null,null,null,null,null,null,null,null,null,null,null,null,null,null,null,null,null,null,null,null,null,null,null,null,null,null,null,null,null,null,null,null,null,null,null,null,null,null,null,null,null,null,null,null,null,null,null,null,null,null,null,null,null,null,null,null,null,null,null,null,null,null,null,null,null,null,null,null,null,null,null,null,null,null,null,null,null,null,null,null,null,null,null,null,null,null,null,null,null,null,null,null,null,null,null,null,null,"Код по ОКЕИ: грамм - 163"]
[null,"Наименование\nломосдатчиков",null,null,null,null,null,null,null,null,null,null,null,null,null,null,null,null,null,null,null,null,null,null,null,null,null,null,null,"Наименование драгоценных металлов"]
[null,null,null,null,null,null,null,null,null,null,null,null,null,null,null,null,null,null,null,null,null,null,null,null,null,null,null,null,null,"золото",null,null,null,null,null,null,null,null,null,null,null,null,null,null,null,null,null,null,null,null,null,null,null,null,null,null,null,null,null,null,null,null,"серебро",null,null,null,null,null,null,null,null,null,null,null,null,null,null,null,null,null,null,null,null,null,null,null,null,null,null,null,null,null,null,null,null,"платина",null,null,null,null,null,null,null,null,null,null,null,null,null,null,null,null,null,null,null,null,null,null,null,null,null,null,null,null,null,null,null,null,"металлы платиновой группы"]
[null,null,null,null,null,null,null,null,null,null,null,null,null,null,null,null,null,null,null,null,null,null,null,null,null,null,null,null,null,"содержащееся \nв ломе и отходах",null,null,null,null,null,null,null,null,null,null,null,null,null,null,null,null,"в аффиниро-ванном виде",null,null,null,null,null,null,null,null,null,null,null,null,null,null,null,"содержащееся \nв ломе и отходах",null,null,null,null,null,null,null,null,null,null,null,null,null,null,null,null,"в аффиниро-ванном виде",null,null,null,null,null,null,null,null,null,null,null,null,null,null,null,"содержащаяся \nв ломе и отходах",null,null,null,null,null,null,null,null,null,null,null,null,null,null,null,null,"в аффиниро-ванном виде",null,null,null,null,null,null,null,null,null,null,null,null,null,null,null,"содержащиеся \nв ломе и отходах",null,null,null,null,null,null,null,null,null,null,null,null,null,null,null,null,"в аффиниро-ванном виде"]
[null,1,null,null,null,null,null,null,null,null,null,null,null,null,null,null,null,null,null,null,null,null,null,null,null,null,null,null,null,2,null,null,null,null,null,null,null,null,null,null,null,null,null,null,null,null,3,null,null,null,null,null,null,null,null,null,null,null,null,null,null,null,4,null,null,null,null,null,null,null,null,null,null,null,null,null,null,null,null,5,null,null,null,null,null,null,null,null,null,null,null,null,null,null,null,6,null,null,null,null,null,null,null,null,null,null,null,null,null,null,null,null,7,null,null,null,null,null,null,null,null,null,null,null,null,null,null,null,8,null,null,null,null,null,null,null,null,null,null,null,null,null,null,null,null,9]
[]
[]
[]
[]
[]
[]
[]
[]
[null,null,null,null,null,null,null,null,null,null,null,null,null,null,null,null,null,null,null,null,null,null,null,null,null,null,null,null,null,null,null,null,null,null,null,null,null,null,{"$f":"IFERROR(IF(AND(ФОРМА!E7=\"\",ФОРМА!E8=\"\"),\"-\",IF(ФОРМА!E7=\"\",CONCATENATE(LEFT(TRIM(ФОРМА!E8),FIND(\" \",TRIM(ФОРМА!E8),1)),MID(TRIM(ФОРМА!E8),FIND(\" \",TRIM(ФОРМА!E8),1)+1,1),\".\",MID(TRIM(ФОРМА!E8),FIND(\" \",TRIM(ФОРМА!E8),FIND(\" \",TRIM(ФОРМА!E8),1)+1)+1,1),\".\"),CONCATENATE(LEFT(TRIM(ФОРМА!E7),FIND(\" \",TRIM(ФОРМА!E7),1)),MID(TRIM(ФОРМА!E7),FIND(\" \",TRIM(ФОРМА!E7),1)+1,1),\".\",MID(TRIM(ФОРМА!E7),FIND(\" \",TRIM(ФОРМА!E7),FIND(\" \",TRIM(ФОРМА!E7),1)+1)+1,1),\".\"))),\"Данные введены некорректно\")","v":"-"}]
[null,"Руководитель организации"]
[null,null,null,null,null,null,null,null,null,null,null,null,null,null,null,null,null,null,null,null,null,null,null,null,null,null,null,null,null,null,null,null,null,null,null,null,null,null,"(Ф.И.О.)",null,null,null,null,null,null,null,null,null,null,null,null,null,null,null,null,null,null,null,null,null,null,null,null,null,null,null,null,null,null,null,null,null,null,null,null,null,"(подпись)"]
[null,"Должностное лицо, ответственное ",null,null,null,null,null,null,null,null,null,null,null,null,null,null,null,null,null,null,null,null,null,null,null,null,null,null,null,null,null,null,null,null,null,null,null,null,{"$f":"IF(ФОРМА!E25=\"\",\"-\",ФОРМА!E25)","v":"-"},null,null,null,null,null,null,null,null,null,null,null,null,null,null,null,null,null,null,null,null,null,null,null,null,null,null,null,null,{"$f":"IFERROR(IF(ФОРМА!E26=\"\",\"-\",CONCATENATE(LEFT(TRIM(ФОРМА!E26),FIND(\" \",TRIM(ФОРМА!E26),1)),MID(TRIM(ФОРМА!E26),FIND(\" \",TRIM(ФОРМА!E26),1)+1,1),\".\",MID(TRIM(ФОРМА!E26),FIND(\" \",TRIM(ФОРМА!E26),FIND(\" \",TRIM(ФОРМА!E26),1)+1)+1,1),\".\")),\"Данные введены некорректно\")","v":"-"}]
[null,"за составление формы"]
[null,null,null,null,null,null,null,null,null,null,null,null,null,null,null,null,null,null,null,null,null,null,null,null,null,null,null,null,null,null,null,null,null,null,null,null,null,null,"(должность)",null,null,null,null,null,null,null,null,null,null,null,null,null,null,null,null,null,null,null,null,null,null,null,null,null,null,null,null,"(Ф.И.О.)",null,null,null,null,null,null,null,null,null,null,null,null,null,null,null,null,null,null,null,null,null,null,null,null,null,null,null,null,null,null,null,null,null,null,null,null,null,null,"(подпись)"]
[null,null,null,null,null,null,null,null,null,null,null,null,null,null,null,null,null,null,null,null,null,null,null,null,null,null,null,null,null,null,null,null,null,null,null,null,null,null,{"$f":"IF(ФОРМА!E27=\"\",\"-\",ФОРМА!E27)","v":"-"},null,null,null,null,null,null,null,null,null,null,null,null,null,null,null,null,null,null,null,null,null,null,null,null,null,null,null,null,"«",null,null,null,null,null,"»",null,null,null,null,null,null,null,null,null,null,null,null,null,null,null,null,null,20,null,null,null,null,null,null," год"]
[null,null,null,null,null,null,null,null,null,null,null,null,null,null,null,null,null,null,null,null,null,null,null,null,null,null,null,null,null,null,null,null,null,null,null,null,null,null,"(номер контактного телефона)",null,null,null,null,null,null,null,null,null,null,null,null,null,null,null,null,null,null,null,null,null,null,null,null,null,null,null,null,"(дата составления документа)"]

{"sheet":"П     ","index":19,"n_rows":0,"n_cols":0,"rows_kept":0,"cut":false,"hidden":false,"merged":[]}